Workbook

Sheet Notiz (hidden)
A1: Niveliieren
A2: Level | L2: 1 | M2: 2 | N2: 3 | P2: 1. | Q2: Management
A3: Anz. Contents | L3: 1. | M3: 2. | P3: 1.1. | Q3: sb1 | R3: Management | S3: Produktion | T3: 3. | U3: Verkauf | V3: 3.1. | W3: verkäufer | X3: 3.2. | Y3: markler | Z3: 3.3. | AA3: markt
L4: 1.1. | M4: 2.1. | P4: 1.2. | Q4: sb2 | T4: 3.1. | U4: sb1
L5: 1.2. | M5: 2.2. | P5: 2. | Q5: verkauf | T5: 3.2. | U5: sb2
L6: lvl1 | P6: 2.1. | Q6: sb1 | T6: 3.3. | U6: sb3
L7: 1.2.1. | P7: 2.2. | Q7: sb2
L8: lvl2 | P8: 2.2.1. | Q8: verkäufer
Q9: sb2 | R9: verkauf | T9: 3 | U9: verkauf | X9: num spalte
P10: 2.3. | Q10: markler | T10: 3.1. | U10: verkäufer | X10: transfer downs to z
Q11: sb3 | U11: markler | X11: run downs step by step with num
P12: 2.4. | Q12: markt | U12: markt
Q13: sb1
Q14: sb2
A16: links filtern | B16: ="'"&A16 -> 'links filtern
A17: r entfernen | B17: ="'"&A17 -> 'r entfernen
A18: sprache anpassen | B18: 'sprache anpassen
A19: übersetzung anpassen | B19: 'übersetzung anpassen
B20: '
A21: Datenabfrage | B21: 'Datenabfrage
A22: User | B22: 'User
A23: Inhalt | B23: 'Inhalt
A24: Logik | B24: 'Logik
A25: PB | B25: 'PB
A26: Manuell Häcken Fragen | B26: 'Manuell Häcken Fragen
A27: Learnbase | B27: 'Learnbase
A28: Logik | B28: 'Logik
A29: Fragen&Antworten | B29: 'Fragen&Antworten
A30: Notenübersicht | B30: 'Notenübersicht
A31: Bestätigung | B31: 'Bestätigung
A32: Tutorial | B32: 'Tutorial
A33: Verfügbarkeit | B33: 'Verfügbarkeit
A34: Pflicht und Wahlfach | B34: 'Pflicht und Wahlfach
A35: Userforms | B35: 'Userforms
A36: PB UF | B36: 'PB UF
B37: '
A38: MM UF | B38: 'MM UF
A39: ProcessB UF | B39: 'ProcessB UF
A40: Time Bot UF | B40: 'Time Bot UF
A41: File MGT Bot UF | B41: 'File MGT Bot UF
A42: MGT Bot UF | B42: 'MGT Bot UF
B43: '
A44: MM | B44: 'MM
A45: Swimlanes | B45: 'Swimlanes
A46: Processes | B46: 'Processes
A47: Timebase | B47: 'Timebase
A48: Filebase4PB | B48: 'Filebase4PB
A49: EMS | B49: 'EMS
A50: Autogrow | B50: 'Autogrow
A51: Manuel by Legitimation | B51: 'Manuel by Legitimation
A52: Game | B52: 'Game
A53: Bonussystem | B53: 'Bonussystem
A54: Cash Gutscheine | B54: 'Cash Gutscheine
A55: Marketing | B55: 'Marketing
A56: Flyer | B56: 'Flyer
A57: Visitenkarte | B57: 'Visitenkarte
A58: Nachhilfe | B58: 'Nachhilfe
A59: VBA-Software | B59: 'VBA-Software
A60: Study | B60: 'Study
A61: Media | B61: 'Media
A62: Products | B62: 'Products
A63: Autovideos | B63: 'Autovideos
A64: Präsentation | B64: 'Präsentation
A65: Measure Textvelocity | B65: 'Measure Textvelocity
A66: Videos | B66: 'Videos
A67: Zeugnisse | B67: 'Zeugnisse
A68: Notenbild | B68: 'Notenbild

Sheet VorgehenSwim (hidden)
A1: sort | B1: id | C1: checkvariable | D1: Details | E1: Status | F1: Prio | G1: sammlung | H1: prio | I1: prio | J1: vorgehen
A2: 1 | B2: 1 | C2: name | D2: Filename | E2: 3 | F2: 2 | J2: swimlanes
A3: 1 | B3: 12 | C3: Notiz | F3: 4 | J3: relationen
A4: 2 | B4: 2 | C4: autorun | E4: 3 | F4: 3 | J4: schritt für schritt planung
A5: 3 | B5: 11 | C5: Funktionen | D5: Gehen alle Prozesse | E5: 3 | F5: 1
C6: Mainsheetname | D6: Loginunterbrechung&visibility
A7: 3 | B7: 8 | C7: Makros | D7: einbinden und zum funktionieren bringen
A8: 4 | B8: 9 | C8: Passwörter | D8: projekt, sheets, bearbeitungszugriff, files, abfragen keys
A9: 5 | B9: 106 | C9: Open | D9: sehr interessant vll vor welcome-zum login hin und her schieben vvl | E9: 1
A10: 6 | B10: 42 | C10: Welcome | D10: Loginbereich->Masterlogin? 2nd kopy entries sep pws
A11: 6 | B11: 22 | C11: Tabelle8 | D11: Masteraccounts
A12: 6 | B12: 23 | C12: Master | D12: Masterpage
A13: 7 | B13: 99 | C13: Main | D13: Hauptseite | E13: 1
A14: 7 | B14: 4 | C14: Hope | D14: House of Quality Excellence Benefits ext. | E14: 1
A15: 7 | B15: 33 | C15: Abb. | D15: offizieller visualizer für features und erklärung infos | E15: 1
A16: 7 | B16: 32 | C16: Description | D16: Beschreibungen fürs Manual | E16: 1
A17: 7 | B17: 121 | C17: Plan-Base-Balance | E17: 1
A18: 7 | B18: 6 | C18: Abb.2 | D18: Produktabbildungsviewsmitlevelsicht
A19: 8 | B19: 105 | C19: Login | D19: Loginbereich entered | E19: 1
A20: 8 | B20: 17 | C20: Support | D20: supportsheet | E20: 1
A21: 8 | B21: 130 | C21: Update | D21: Updatevisualisierer
A22: 8 | B22: 15 | C22: PBPLANS (2) | D22: Programm Base Bezahlpläne DatenlogikBank | E22: 1
A23: 8 | B23: 26 | C23: PBPLANS | D23: Programm Base Bezahlpläne DatenlogikBank
A24: 8 | B24: 18 | C24: Log | D24: Hope-log-keys-benefits ect.
A25: 8 | B25: 115 | C25: CBMB | D25: Cybernetic Base Map builder | F25: gruppieren
A26: 8 | B26: 116 | C26: Account | D26: account zahlungsmethoden background
A27: 8 | B27: 117 | C27: Activation | D27: Plans Aktivierung ect. | E27: 1
A28: 8 | B28: 118 | C28: Order | D28: Warenkorb | E28: 1
A29: 8 | B29: 119 | C29: VIP Area | D29: Rabatte ect. punkte | E29: 1
A30: 8 | B30: 120 | C30: Discount Area | E30: 1
A31: 8 | B31: 122 | C31: E-Mail-Affiliation | E31: 1
A32: 8 | B32: 39 | C32: Tabelle11 | D32: Cyberneticsauswahl->jumpsheet vor CBMB-Verschlüsselung überarbeitet
A33: 8 | B33: 40 | C33: CP | D33: Supportsheetmaterial:Cyberneticsauswahl->jumpsheet vor CBMB-Verschlüsselung überarbeitet
A34: 8 | B34: 41 | C34: Balance | D34: Wallet Geldübersicht, Gutscheine eingeben
A35: 8 | B35: 133 | C35: Cybs | D35: Cybernetics, Beschreibung Levelsteuerung, Zugang über Keys ect. feature Relation
A36: 8 | B36: 134 | C36: Busis | D36: Businesses
A37: 8 | B37: 140 | C37: Visualizer1 | D37: Visualizer1 | E37: 1
A38: 8 | B38: 141 | C38: Visualizer2 | D38: Visualizer2 | E38: 1
A39: 8 | B39: 142 | C39: Visualizer3 | D39: Visualizer3 | E39: 1
A40: 8 | B40: 143 | C40: Visualizer4 | D40: Visualizer4 | E40: 1
A41: 8 | B41: 144 | C41: Visualizer5 | D41: Visualizer5 | E41: 1
A42: 8 | B42: 145 | C42: Visualizer6 | D42: Visualizer6 | E42: 1
A43: 8 | B43: 146 | C43: Visualizer7 | D43: Visualizer7 | E43: 1
A44: 8 | B44: 147 | C44: 1 | D44: zugehörige Daten
A45: 8 | B45: 148 | C45: 2 | D45: zugehörige Daten
A46: 8 | B46: 149 | C46: 3 | D46: zugehörige Daten
A47: 8 | B47: 150 | C47: 4 | D47: zugehörige Daten
A48: 8 | B48: 151 | C48: 5 | D48: zugehörige Daten
A49: 8 | B49: 152 | C49: ESBTable | D49: zugehörige Daten
A50: 8 | B50: 153 | C50: ADBTable | D50: zugehörige Daten
A51: 8 | B51: 154 | C51: Angebote | D51: U-Data
A52: 8 | B52: 155 | C52: Informationen | D52: U-Data
A53: 8 | B53: 156 | C53: Zahlen&Fakten | D53: U-Data
A54: 8 | B54: 157 | C54: Preise | D54: U-Data
A55: 8 | B55: 158 | C55: Karten | D55: U-Data
A56: 8 | B56: 159 | C56: Vorgehen | D56: U-Data
A57: 8 | B57: 160 | C57: Distributionen | D57: U-Data
A58: 8 | B58: 161 | C58: Beurkundung | D58: U-Data
A59: 8 | B59: 162 | C59: Partner | D59: U-Data
A60: 8 | B60: 163 | C60: Referenzen | D60: U-Data
A61: 8 | B61: 164 | C61: Telephone | D61: U-Data
A62: 9 | B62: 123 | C62: WhiteList | D62: Personen in Vertrauen | E62: 1
A63: 9 | B63: 124 | C63: Access | D63: Hauptdateienabfrage
A64: 9 | B64: 102 | C64: Access2 | D64: Abfrage | E64: 1
A65: 9 | B65: 103 | C65: Steuerung | D65: Paramter | E65: 1
A66: 9 | B66: 126 | C66: Akeys | D66: aktivierungsschlüsselabfrage
A67: 9 | B67: 127 | C67: Preisgestaltung | D67: Levels Preise Punkte ect. | E67: swimlanes und selectionjump
A68: 9 | B68: 128 | C68: Updatelist | D68: aaa und bbbs
A69: 9 | B69: 132 | C69: SCConfig | D69: wichtige Steuerungselemente shortcuts ect. | E69: 1
A70: 10 | B70: 59 | C70: Auftragsliste | D70: Recherchiert Suchbegriffe
A71: 10 | B71: 60 | C71: sb | D71: Transponiert Auftragsliste Prozedur macht was? | E71: 3
A72: 10 | B72: 61 | C72: DB | D72: Deckblatt
A73: 10 | B73: 62 | C73: Content | D73: New Cybernetics + CBMB + Angebotsinhalte (Content)
A74: 10 | B74: 63 | C74: Overview | D74: PB-Steuerung
A75: 10 | B75: 64 | C75: SV | D75: PB-Sperrvermerk
A76: 10 | B76: 65 | C76: VW | D76: PB-Vorwort
A77: 10 | B77: 66 | C77: Danksagung | D77: PB-Danksagung
A78: 10 | B78: 67 | C78: Abstrakt | D78: PB-Abstrakt
A79: 10 | B79: 68 | C79: Abstract | D79: PB-Abstract
A80: 10 | B80: 69 | C80: EE | D80: PB-Eidesstattliche Erklärung
A81: 10 | B81: 70 | C81: ABBVZ | D81: PB-Abbildungsverzeichnis
A82: 10 | B82: 71 | C82: Hierarchie | D82: Manueller Arbeitsbereich für Schriftsätze
A83: 10 | B83: 72 | C83: C-DB | D83: Summierung Elemente und Referenzen
A84: 10 | B84: 73 | C84: C-DB2 | D84: Summierung Elemente und Referenzen
A85: 10 | B85: 74 | C85: Tabelle44 | D85: Splitt in Zeilen wegen Zeilenlänge
A86: 10 | B86: 75 | C86: Konsolidierung | D86: Zusammenführung der einzelnen selektierten Bestandteile
A87: 10 | B87: 76 | C87: SpecialPaperBot | D87: ist für Bilder und vollständigen Schriftsätzen notwendig
A88: 10 | B88: 77 | C88: Z | D88: wie sb (suchbegrifftransponierer
A89: 10 | B89: 78 | C89: lvl | D89: wiederholungen der suchtiefe (einstellung im overview)
A90: 10 | B90: 79 | C90: sb2 | D90: weitere suchbegriffs sheet (manuelle eingabe)? | E90: 3
A91: 10 | B91: 80 | C91: T1 | D91: scrapping Begriff in c1
A92: 10 | B92: 82 | C92: REF | D92: Quellenangaben
A93: 10 | B93: 83 | C93: T4 | D93: splitter filterer, sonderzeichen ersetzer
A94: 10 | B94: 84 | C94: R | D94: nix
A95: 10 | B95: 88 | C95: Tabelle3 (2) | D95: unterdeckblatt
A96: 10 | B96: 91 | C96: Tabelle6 (2) | D96: Abstract
A97: 10 | B97: 92 | C97: Tabelle8 (2) | D97: Eidestattliche Erklärung
A98: 10 | B98: 93 | C98: Tabelle9 (2) | D98: Inhaltsverzeichnis
A99: 10 | B99: 94 | C99: Tabelle12 (2) | D99: Danksagung
A100: 11 | B100: 44 | C100: O-List | D100: list daten verschiedener formate ein
A101: 11 | B101: 45 | C101: O-List (6) | D101: sicherungskopie
A102: 11 | B102: 46 | C102: B-List | D102: verarbeitet begriffe eingelesener olist daten
A103: 11 | B103: 47 | C103: Elaborator | D103: weiterverarbeitung
A104: 11 | B104: 48 | C104: OE-Listlog | D104: speichert ergebnisse
A105: 20 | B105: 34 | C105: Übersicht | D105: Prozessfaktoren und 22s
B106: 107 | C106: Pdf | D106: Bestellungslegung Zusatz zu Bestellung eines Produkts
B107: 129 | C107: ldb | D107: Registerdb für Kundenaccounts | E107: 1
B108: 5 | C108: Manuals | D108: mehrere Schreiben, eine große mit Nummerierung
B109: 81 | C109: T3 | D109: ähnliches sheet
B110: 13 | C110: A-Codes | D110: Gutscheincodes | E110: 1
B111: 19 | C111: i2 (2) | D111: News und Updatemonitoring
B112: 38 | C112: New Business | D112: Newbusinessesmit Pictureabfrage fehlt
B113: 43 | C113: PBS | D113: MM und pb vorgehen notiz 22 | E113: 2
B114: 49 | C114: MindMap | D114: Visualisiert elaborierte Begriffe - Cybernetic
B115: 52 | C115: LearnBase | D115: Lernbasis in Main | E115: 3
B116: 53 | C116: pabfrage | D116: Prüfungstestsabfrage | E116: 1
B117: 54 | C117: Abfragecenter | D117: operatives Abfragecenter | E117: 1
B118: 55 | C118: Learndb | D118: Speicherlog der durchgeführten Prüfungstests auf dem pc
B119: 56 | C119: ASheet | D119: pabfrage->asheet->Abfragecenter->learndb; beinhaltet Fragen als content und parameter
B120: 57 | C120: Learnlog | D120: Produktion von Lernelementen/summiert gelerntes
B121: 58 | C121: Studybase | D121: Studiumsübersicht-allgmeine Informationen - Notenspiegel - Orientierung->Lernbase->Abfragecenter | E121: 1
B122: 108 | C122: ADB | D122: Artificial Digital Books
B123: 109 | C123: Businesspage1 | D123: nix
B124: 110 | C124: EAMS | D124: electronic artificial mailing system | E124: 1
B125: 112 | C125: Tabelle9 | D125: deleted
B126: 3 | C126: sheetsvolume | E126: 2 | F126: 1
B127: 7 | C127: PBPLANS (2) | D127: Hintergrundtabelle mit Datensätzen
B128: 10 | C128: Order (2) | D128: 02_Shopentwurf
B129: 14 | C129: Abb.2 | D129: Visualisierungsentwurf mit leveling ! Datengröße bei Bilderbuttons!
B130: 16 | C130: Index | D130: levelindex lvl1 bis 3
B131: 20 | C131: 22 | D131: Businessmodell, Faktoren, 22s
B132: 21 | C132: Tabelle5 (2) | D132: Europas Länder für EMS vll | E132: 3
B133: 24 | C133: L-DB | D133: Registration db not in use
B134: 25 | C134: s2 | D134: systemzeit, loginversuche, timeouts
B135: 27 | C135: PBC (2) | D135: Visualisierungsentwurf mit leveling ! Datengröße bei Bilderbuttons!
B136: 28 | C136: Input (2) | D136: Scarpentwurf - ext.
B137: 29 | C137: News | D137: Affiliationkurs in Newssheet mit Abfrage 1 mal pro Tag
B138: 30 | C138: PW | D138: Promotionwall not working correctly makros suchen
B139: 31 | C139: Update (2) | D139: visualiser hülse ext.
B140: 35 | C140: Input | D140: scapwerte von webseite, lizenzschlüssel
B141: 36 | C141: i | D141: Verarbeitungssheets, Versionen input->vll zu updates
B142: 37 | C142: i2 | D142: ähnliches
B143: 50 | C143: IVZ | D143: Inhaltsverzeichnis in use? | E143: 3
B144: 51 | C144: Content (2) | D144: deleted
B145: 85 | C145: Tabelle0 | D145: nix
B146: 86 | C146: Tabelle1 (2) | D146: nix
B147: 87 | C147: Tabelle2 (2) | D147: nix
B148: 89 | C148: Tabelle4 (2) | D148: nix
B149: 90 | C149: Tabelle5 (3) | D149: nix
B150: 95 | C150: Tabelle13 | D150: nix
B151: 96 | C151: Tabelle21 | D151: nix
B152: 97 | C152: Tabelle14 | D152: nix
B153: 98 | C153: Tabelle10 | D153: deleted irgendwelche makrolisten und codes
B154: 100 | C154: Tabelle12 | D154: deleted notiz für main
B155: 101 | C155: EPBC | D155: nix
B156: 104 | C156: StepBYStep | D156: Clusteringversuch deleted
B157: 111 | C157: Businesspage2 | D157: nix
B158: 113 | C158: Tabelle2 | D158: nix
B159: 114 | C159: Tabelle1 | D159: nix
B160: 125 | C160: Datenuebertragung | D160: nix
B161: 131 | C161: Ordner | D161: nix
B162: 135 | C162: Tabelle3 | D162: Währungstabelle, Abfragen und kurse
B163: 136 | C163: Tabelle4 | D163: nix
B164: 137 | C164: Tabelle5 | D164: Clusteringversuch II nach sheets deleted
B165: 138 | C165: Tabelle6 | D165: nix
B166: 139 | C166: installed | D166: nix

Sheet A-Codes (hidden)
A1: ID | B1: Rabatt/Discount | C1: Gutscheine/ Voucher | D1: Specials | E1: Geschenk/ Gifts | F1: Wert | L1: ActivationKey | M1: Productnames | N1: Duration | O1: Users | P1: PCs
I2: Anzahl | J2: 1444 | L2: T120Y121 | M2: Free Base | O2: 1 | P2: 1
A3: 1 | B3: 653753574 | C3: 115572736 | D3: 953159252 | E3: 997187974 | F3: 1 € | G3: Ende Oktober 2019 | H3: €1 | I3: 400 | J3: =I3*H3 -> €400 | K3: 1000 | L3: T120Y122 | M3: Discover | N3: Ende Oktober 2019 | O3: 2 | P3: 5
A4: 2 | B4: 154117191 | C4: 545323841 | D4: 848242214 | E4: 598441345 | F4: 1 € | G4: Ende November 2019 | H4: €2 | I4: 300 | J4: =I3*H3 -> €400 | K4: 2000 | L4: T120Y123 | M4: Build | N4: Ende November 2019 | O4: 3 | P4: 10
A5: 3 | B5: 952279271 | C5: 724366149 | D5: 158171784 | E5: 515848872 | F5: 1 € | G5: Ende Dezember 2019 | H5: €3 | I5: 200 | J5: =I3*H3 -> 400 | K5: 1500 | L5: T120Y124 | M5: Rise | N5: Ende Dezember 2019 | O5: 4 | P5: 20
A6: 4 | B6: 185666743 | C6: 718972743 | D6: 949585679 | E6: 984333967 | F6: 1 € | G6: Ende Februar 2020 | H6: €4 | I6: 200 | K6: 2000 | L6: T120Y125 | M6: General | N6: Ende Februar 2020 | O6: 2 | P6: 15
A7: 5 | B7: 848273437 | C7: 266228234 | D7: 916869119 | E7: 393486344 | F7: 1 € | G7: Ende Februar 2020 | H7: €5 | I7: 200 | K7: 2500 | L7: T120Y126 | M7: Business | N7: Ende Februar 2020 | O7: 5 | P7: 30
A8: 6 | B8: 127393443 | C8: 993389271 | D8: 155636348 | E8: 244969672 | F8: 1 € | G8: Ende Februar 2020 | H8: €10 | I8: 200 | K8: 5000 | L8: T120Y127 | M8: Vip | N8: Ende Februar 2020 | O8: 5 | P8: 160
A9: 7 | B9: 983721925 | C9: 641232398 | D9: 191891498 | E9: 367761297 | F9: 1 € | G9: Ende Februar 2020 | H9: €20 | I9: 200 | K9: 10000 | L9: T120Y128 | M9: Silver | N9: Ende Februar 2020 | O9: 10 | P9: 250
A10: 8 | B10: 595217595 | C10: 161595759 | D10: 121367113 | E10: 498441257 | F10: 1 € | G10: Ende Februar 2020 | H10: €50 | I10: 200 | K10: 25000 | L10: T120Y129 | M10: Gold | N10: Ende Februar 2020 | O10: 15 | P10: 300
A11: 9 | B11: 137792168 | C11: 327393221 | D11: 442994695 | E11: 735828871 | F11: 1 € | G11: Ende April 2020 | H11: €100 | I11: 200 | K11: 50000 | L11: T120Y1210 | M11: Platin | N11: Ende April 2020 | O11: 20 | P11: 350
A12: 10 | B12: 482973473 | C12: 942874264 | D12: 583389372 | E12: 772834356 | F12: 1 € | G12: Ende April 2020 | H12: €200 | I12: 100 | K12: 100000 | L12: T120Y1211 | M12: Californium | N12: Ende April 2020 | O12: 25 | P12: 400
A13: 11 | B13: 468815499 | C13: 715124382 | D13: 347225347 | E13: 734897211 | F13: 1 € | G13: Ende April 2020 | H13: €300 | I13: 100 | K13: 150000 | L13: T120Y1212 | M13: Hydrogen | N13: Ende April 2020 | O13: 30 | P13: 500
A14: 12 | B14: 646855315 | C14: 691895499 | D14: 194834356 | E14: 723789688 | F14: 1 € | G14: Ende April 2020 | H14: €500 | I14: 100 | K14: 250000 | L14: T120Y1213 | M14: Antimatter | N14: Ende April 2020
A15: 13 | B15: 955675233 | C15: 869177538 | D15: 336783958 | E15: 119983844 | F15: 1 € | G15: Ende April 2020 | H15: €1,000 | I15: 100 | K15: 100000 | L15: T120Y1214 | M15: CUG Order Bot | N15: Ende April 2020
A16: 14 | B16: 579585935 | C16: 858919577 | D16: 457946426 | E16: 432447224 | F16: 1 € | G16: Ende Juni 2020 | H16: €10,000 | I16: 50 | K16: 1000000 | L16: T120Y1215 | M16: Coaching Configurator | N16: Ende Juni 2020
A17: 15 | B17: 778545244 | C17: 786262692 | D17: 694764577 | E17: 253959841 | F17: 1 € | G17: Ende Juni 2020 | H17: €100,000 | I17: 48 | K17: 10000000 | L17: T120Y1216 | M17: Einkaufsliste | N17: Ende Juni 2020
A18: 16 | B18: 846585965 | C18: 689657355 | D18: 513255838 | E18: 773985375 | F18: 1 € | G18: Ende Juni 2020 | H18: €1,000,000 | I18: 52 | K18: 52000000 | L18: T120Y1217 | M18: Essen | N18: Ende Juni 2020
A19: 17 | B19: 923426385 | C19: 676877224 | D19: 142761632 | E19: 248817625 | F19: 1 € | G19: Ende Juni 2020 | I19: =SUM(I3:I17) -> 2598 | K19: =SUM(K3:K18) -> 63699000 | L19: T120Y1218 | M19: Fitnessplan | N19: Ende Juni 2020
A20: 18 | B20: 765781535 | C20: 512512561 | D20: 376339345 | E20: 447635116 | F20: 1 € | G20: Ende Juni 2020 | L20: T120Y1219 | M20: Stundenplaner | N20: Ende Juni 2020
A21: 19 | B21: 749329341 | C21: 316883489 | D21: 938119186 | E21: 722747438 | F21: 1 € | G21: Ende August 2020 | L21: T120Y1220 | M21: Wochenplaner | N21: Ende August 2020
A22: 20 | B22: 919255992 | C22: 215818761 | D22: 416328618 | E22: 458378368 | F22: 1 € | G22: Ende August 2020 | L22: T120Y1221 | M22: Jahreskalender | N22: Ende August 2020
A23: 21 | B23: 288378234 | C23: 816882332 | D23: 914522972 | E23: 389839413 | F23: 1 € | G23: Ende August 2020 | L23: T120Y1222 | M23: Timing Bot | N23: Ende August 2020
A24: 22 | B24: 487339146 | C24: 647578793 | D24: 255659517 | E24: 242642574 | F24: 1 € | G24: Ende August 2020 | L24: T120Y1223 | M24: Sequencing Bot | N24: Ende August 2020
A25: 23 | B25: 764271463 | C25: 273854729 | D25: 331848139 | E25: 535444521 | F25: 1 € | G25: Ende August 2020 | L25: T120Y1224 | M25: Shaping Center | N25: Ende August 2020
A26: 24 | B26: 327998945 | C26: 512675211 | D26: 595771129 | E26: 427999834 | F26: 1 € | G26: Ende Oktober 2020 | L26: T120Y1225 | M26: Combiner | N26: Ende Oktober 2020
A27: 25 | B27: 494797769 | C27: 157969773 | D27: 936466511 | E27: 947431788 | F27: 1 € | G27: Ende Oktober 2020 | L27: T120Y1226 | M27: Robot Termament | N27: Ende Oktober 2020
A28: 26 | B28: 451336776 | C28: 866587291 | D28: 513675214 | E28: 357367361 | F28: 1 € | G28: Ende Oktober 2020 | L28: T120Y1227 | M28: Interdependenzen Bot | N28: Ende Oktober 2020
A29: 27 | B29: 859789982 | C29: 431431452 | D29: 557169783 | E29: 471393916 | F29: 1 € | G29: Ende Oktober 2020 | L29: T120Y1228 | M29: Pagestones Order Bot | N29: Ende Oktober 2020
A30: 28 | B30: 516243153 | C30: 676893668 | D30: 955923811 | E30: 916992387 | F30: 1 € | G30: Ende Oktober 2020 | L30: T120Y1229 | M30: ThermowaveBook Order Bot | N30: Ende Oktober 2020
A31: 29 | B31: 259783955 | C31: 495195712 | D31: 619562892 | E31: 111456944 | F31: 1 € | G31: Ende Dezember 2020 | L31: T120Y1230 | M31: WUSBT Order Bot | N31: Ende Dezember 2020
A32: 30 | B32: 492174484 | C32: 353515596 | D32: 452449119 | E32: 977699373 | F32: 1 € | G32: Ende Dezember 2020 | L32: T120Y1231 | M32: Study Configurator | N32: Ende Dezember 2020
A33: 31 | B33: 772248471 | C33: 363496658 | D33: 761791135 | E33: 788973541 | F33: 1 € | G33: Ende Dezember 2020 | L33: T120Y1232 | M33: Uni Kurs Gen | N33: Ende Dezember 2020
A34: 32 | B34: 671268646 | C34: 372812136 | D34: 478815493 | E34: 775959241 | F34: 1 € | G34: Ende Dezember 2020 | L34: T120Y1233 | M34: AAA.I Order Bot | N34: Ende Dezember 2020
A35: 33 | B35: 845918544 | C35: 836974473 | D35: 425633182 | E35: 347223221 | F35: 1 € | G35: Ende Dezember 2020 | L35: T120Y1234 | M35: Coaching University Order Bot | N35: Ende Dezember 2020
A36: 34 | B36: 481393116 | C36: 993282649 | D36: 771524994 | E36: 445912797 | F36: 1 € | G36: Ende Februar 2021 | L36: T120Y1235 | M36: Digital Trade Order Bot | N36: Ende Februar 2021
A37: 35 | B37: 989457133 | C37: 144967551 | D37: 377393918 | E37: 728463489 | F37: 1 € | G37: Ende Februar 2021 | L37: T120Y1236 | M37: E-M@illist Order Bot | N37: Ende Februar 2021
A38: 36 | B38: 643255968 | C38: 491789388 | D38: 744366149 | E38: 695776723 | F38: 1 € | G38: Ende Februar 2021 | L38: T120Y1237 | M38: Like Free Love Order Bot | N38: Ende Februar 2021
A39: 37 | B39: 934437196 | C39: 676588372 | D39: 478427985 | E39: 294237633 | F39: 1 € | G39: Ende Februar 2021 | L39: T120Y1238 | M39: Event - Adventures Order Bot | N39: Ende Februar 2021
A40: 38 | B40: 898147881 | C40: 121344881 | D40: 911364881 | E40: 534191729 | F40: 1 € | G40: Ende Februar 2021 | L40: T120Y1239 | M40: S.CIOs Order Bot | N40: Ende Februar 2021
A41: 39 | B41: 875976817 | C41: 912512461 | D41: 837339146 | E41: 836858562 | F41: 1 € | G41: Ende April 2021 | L41: T120Y1240 | M41: Surftouring Order Bot | N41: Ende April 2021
A42: 40 | B42: 911335992 | C42: 631431452 | D42: 232714476 | E42: 255376179 | F42: 1 € | G42: Ende April 2021 | L42: T120Y1241 | M42: Refresh Pad - ThermowaveBook | N42: Ende April 2021
A43: 41 | B43: 411512441 | C43: 899572587 | D43: 875515769 | E43: 974565687 | F43: 1 € | G43: Ende April 2021 | L43: T120Y1242 | M43: Submitis Order Bot | N43: Ende April 2021
A44: 42 | B44: 617362378 | C44: 351113514 | D44: 448273355 | E44: 671446776 | F44: 1 € | G44: Ende April 2021 | L44: T120Y1243 | M44: Management Bot | N44: Ende April 2021
A45: 43 | B45: 353159995 | C45: 142272436 | D45: 226683857 | E45: 256915511 | F45: 1 € | G45: Ende April 2021 | L45: T120Y1244 | M45: Zugangsdaten Log | N45: Ende April 2021
A46: 44 | B46: 863222391 | C46: 772512134 | D46: 699329677 | E46: 758176427 | F46: 1 € | G46: Ende Juni 2021 | L46: T120Y1245 | M46: Adviser | N46: Ende Juni 2021
A47: 45 | B47: 697731982 | C47: 559926281 | D47: 613711584 | E47: 353727268 | F47: 1 € | G47: Ende Juni 2021 | L47: T120Y1246 | M47: Prozess Reminder | N47: Ende Juni 2021
A48: 46 | B48: 674669918 | C48: 949537586 | D48: 854916123 | E48: 652892599 | F48: 1 € | G48: Ende Juni 2021 | L48: T120Y1247 | M48: Knowledge Reminder | N48: Ende Juni 2021
A49: 47 | B49: 669791925 | C49: 348218566 | D49: 428999132 | E49: 539221267 | F49: 1 € | G49: Ende Juni 2021 | L49: T120Y1248 | M49: Denkarium | N49: Ende Juni 2021
A50: 48 | B50: 836528838 | C50: 991767486 | D50: 526943437 | E50: 411464426 | F50: 1 € | G50: Ende Juni 2021 | L50: T120Y1249 | M50: Direct Memorandum I | N50: Ende Juni 2021
A51: 49 | B51: 579926511 | C51: 676892668 | D51: 562753443 | E51: 846587226 | F51: 1 € | G51: Ende August 2021 | L51: T120Y1250 | M51: Direct Memorandum II | N51: Ende August 2021
A52: 50 | B52: 229329241 | C52: 969389228 | D52: 849552931 | E52: 243872733 | F52: 1 € | G52: Ende August 2021 | L52: T120Y1251 | M52: Paper Log Bot | N52: Ende August 2021
A53: 51 | B53: 721663679 | C53: 487349912 | D53: 781616179 | E53: 438777834 | F53: 1 € | G53: Ende August 2021 | L53: T120Y1252 | M53: Classification Loop Bot | N53: Ende August 2021
A54: 52 | B54: 441168169 | C54: 997724625 | D54: 366434922 | E54: 319222298 | F54: 1 € | G54: Ende August 2021 | L54: T120Y1253 | M54: PaperBot | N54: Ende August 2021
A55: 53 | B55: 984665643 | C55: 672515769 | D55: 835475867 | E55: 451646332 | F55: 1 € | G55: Ende August 2021 | L55: T120Y1254 | M55: Preparer Bot | N55: Ende August 2021
A56: 54 | B56: 272616861 | C56: 895314453 | D56: 751333487 | E56: 392281661 | F56: 1 € | G56: Ende Oktober 2021 | L56: T120Y1255 | M56: Process Modell Drawer | N56: Ende Oktober 2021
A57: 55 | B57: 249525665 | C57: 681127629 | D57: 172575547 | E57: 145594953 | F57: 1 € | G57: Ende Oktober 2021 | L57: T120Y1256 | M57: Zeugnis Bachelor | N57: Ende Oktober 2021
A58: 56 | B58: 772518814 | C58: 182419173 | D58: 859689947 | E58: 984669119 | F58: 1 € | G58: Ende Oktober 2021 | L58: T120Y1257 | M58: Zeugnis Master | N58: Ende Oktober 2021
A59: 57 | B59: 727339719 | C59: 171232799 | D59: 495177586 | E59: 748578798 | F59: 1 € | G59: Ende Oktober 2021 | L59: T120Y1258 | M59: Zeugnis Doktorat | N59: Ende Oktober 2021
A60: 58 | B60: 936781958 | C60: 681691582 | D60: 361894399 | E60: 145212831 | F60: 1 € | G60: Ende Oktober 2021 | L60: T120Y1259 | M60: Habilitationsurkunde | N60: Ende Oktober 2021
A61: 59 | B61: 614285595 | C61: 251295163 | D61: 371542799 | E61: 946515237 | F61: 1 € | G61: Ende Dezember 2021 | L61: T120Y1260 | M61: Zertifikat Post Doc | N61: Ende Dezember 2021
A62: 60 | B62: 192411851 | C62: 529319241 | D62: 963686211 | E62: 823324763 | F62: 1 € | G62: Ende Dezember 2021 | L62: T120Y1261 | M62: Quality Audit Bot | N62: Ende Dezember 2021
A63: 61 | B63: 494564122 | C63: 845845794 | D63: 255649763 | E63: 316882231 | F63: 1 € | G63: Ende Dezember 2021 | L63: T120Y1262 | M63: Coaching Bot | N63: Ende Dezember 2021
A64: 62 | B64: 347262613 | C64: 943996712 | D64: 886268169 | E64: 319177538 | F64: 1 € | G64: Ende Dezember 2021 | L64: T120Y1263 | M64: License Bot | N64: Ende Dezember 2021
A65: 63 | B65: 556323922 | C65: 863499156 | D65: 242848841 | E65: 894564122 | F65: 1 € | G65: Ende Dezember 2021 | L65: T120Y1264 | M65: Key Generator | N65: Ende Dezember 2021
A66: 64 | B66: 735474857 | C66: 748242219 | D66: 252111289 | E66: 287933779 | F66: 1 € | G66: Ende Februar 2022 | L66: T120Y1265 | M66: PPTs Reader | N66: Ende Februar 2022
A67: 65 | B67: 145546953 | C67: 785725665 | D67: 367126512 | E67: 332774581 | F67: 1 € | G67: Ende Februar 2022 | L67: T120Y1266 | M67: TXTs Reader | N67: Ende Februar 2022
A68: 66 | B68: 325714757 | C68: 373421831 | D68: 536855295 | E68: 331847139 | F68: 1 € | G68: Ende Februar 2022 | L68: T120Y1267 | M68: Docx Reader | N68: Ende Februar 2022
A69: 67 | B69: 964864786 | C69: 781369749 | D69: 511231788 | E69: 848253982 | F69: 1 € | G69: Ende Februar 2022 | L69: T120Y1268 | M69: Key Word Filter | N69: Ende Februar 2022
A70: 68 | B70: 454699446 | C70: 523676211 | D70: 822747451 | E70: 458432918 | F70: 1 € | G70: Ende Februar 2022 | L70: T120Y1269 | M70: Translator | N70: Ende Februar 2022
A71: 69 | B71: 633734682 | C71: 123326985 | D71: 898711594 | E71: 158946427 | F71: 1 € | G71: Ende April 2022 | L71: T120Y1270 | M71: Website E-Mail Reader | N71: Ende April 2022
A72: 70 | B72: 832784591 | C72: 676882668 | D72: 491491459 | E72: 389431656 | F72: 1 € | G72: Ende April 2022 | L72: T120Y1271 | M72: Website Search Spider | N72: Ende April 2022
A73: 71 | B73: 553959251 | C73: 949685692 | D73: 118515352 | E73: 868719483 | F73: 1 € | G73: Ende April 2022 | L73: T120Y1272 | M73: Bestellung_Rechnungserstellung | N73: Ende April 2022
A74: 72 | B74: 428999156 | C74: 929772273 | D74: 226624625 | E74: 142316632 | F74: 1 € | G74: Ende April 2022 | L74: T120Y1273 | M74: Rechnung | N74: Ende April 2022
A75: 73 | B75: 394797659 | C75: 441999178 | D75: 671658676 | E75: 859151325 | F75: 1 € | G75: Ende April 2022 | L75: T120Y1274 | M75: Reminder | N75: Ende April 2022
A76: 74 | B76: 684669776 | C76: 363486658 | D76: 559916271 | E76: 147792169 | F76: 1 € | G76: Ende Juni 2022 | L76: T120Y1275 | M76: Mahnung | N76: Ende Juni 2022
A77: 75 | B77: 172812136 | C77: 358741151 | D77: 583653912 | E77: 545345848 | F77: 1 € | G77: Ende Juni 2022 | L77: T120Y1276 | M77: HRM Elaborator | N77: Ende Juni 2022
A78: 76 | B78: 951633143 | C78: 478915496 | D78: 191768486 | E78: 167617281 | F78: 1 € | G78: Ende Juni 2022 | L78: T120Y1277 | M78: Personal Encyclopedia | N78: Ende Juni 2022
A79: 77 | B79: 693137622 | C79: 458746226 | D79: 735376159 | E79: 795512498 | F79: 1 € | G79: Ende Juni 2022 | L79: T120Y1278 | M79: Data Elaborator | N79: Ende Juni 2022
A80: 78 | B80: 168741251 | C80: 999414227 | D80: 586659511 | E80: 758679814 | F80: 1 € | G80: Ende Juni 2022 | L80: T120Y1279 | M80: New Workbench | N80: Ende Juni 2022
A81: 79 | B81: 883359625 | C81: 112812599 | D81: 943995912 | E81: 884976476 | F81: 1 € | G81: Ende August 2022 | L81: T120Y1280 | M81: Modul Bot | N81: Ende August 2022
A82: 80 | B82: 235714184 | C82: 866587261 | D82: 339957971 | E82: 613525344 | F82: 1 € | G82: Ende August 2022 | L82: T120Y1281 | M82: Proposal | N82: Ende August 2022
A83: 81 | B83: 634897433 | C83: 823194753 | D83: 416282332 | E83: 144536874 | F83: 1 € | G83: Ende August 2022 | L83: T120Y1282 | M83: Applicatons | N83: Ende August 2022
A84: 82 | B84: 618171784 | C84: 633723137 | D84: 226953357 | E84: 721661567 | F84: 1 € | G84: Ende August 2022 | L84: T120Y1283 | M84: CV Bot | N84: Ende August 2022
A85: 83 | B85: 556891698 | C85: 815137143 | D85: 223989577 | E85: 273616326 | F85: 1 € | G85: Ende August 2022 | L85: T120Y1284 | M85: Recommendation Bot | N85: Ende August 2022
A86: 84 | B86: 644365946 | C86: 752111287 | D86: 846485968 | E86: 295444524 | F86: 1 € | G86: Ende Oktober 2022 | L86: T120Y1285 | M86: Doc Log Bot | N86: Ende Oktober 2022
A87: 85 | B87: 823326985 | C87: 893881998 | D87: 823326239 | E87: 462442342 | F87: 1 € | G87: Ende Oktober 2022 | L87: T120Y1286 | M87: Robot Decon | N87: Ende Oktober 2022
A88: 86 | B88: 674692446 | C88: 115945467 | D88: 664161349 | E88: 425744188 | F88: 1 € | G88: Ende Oktober 2022 | L88: T120Y1287 | M88: Summerizer2 | N88: Ende Oktober 2022
A89: 87 | B89: 549329241 | C89: 279852262 | D89: 438111157 | E89: 115845466 | F89: 1 € | G89: Ende Oktober 2022 | L89: T120Y1288 | M89: Visualizer | N89: Ende Oktober 2022
A90: 88 | B90: 919236992 | C90: 337794168 | D90: 341335221 | E90: 772248582 | F90: 1 € | G90: Ende Oktober 2022 | L90: T120Y1289 | M90: Facebook 5000 | N90: Ende Oktober 2022
A91: 89 | B91: 966167996 | C91: 926461955 | D91: 671268649 | E91: 781379753 | F91: 1 € | G91: Ende Dezember 2022 | L91: T120Y1290 | M91: Systemaudit | N91: Ende Dezember 2022
A92: 90 | B92: 374928935 | C92: 836987355 | D92: 634775211 | E92: 744491328 | F92: 1 € | G92: Ende Dezember 2022 | L92: T120Y1291 | M92: Qualityaudit | N92: Ende Dezember 2022
A93: 91 | B93: 818515596 | C93: 829983854 | D93: 421943746 | E93: 263873489 | F93: 1 € | G93: Ende Dezember 2022 | L93: T120Y1292 | M93: Performance Audit | N93: Ende Dezember 2022
A94: 92 | B94: 538887867 | C94: 665771557 | D94: 118218139 | E94: 475514325 | F94: 1 € | G94: Ende Dezember 2022 | L94: T120Y1293 | M94: Efficiency Audit | N94: Ende Dezember 2022
A95: 93 | B95: 697831193 | C95: 855491439 | D95: 184333413 | E95: 927393343 | F95: 1 € | G95: Ende Dezember 2022 | L95: T120Y1294 | M95: Effektivity Audit | N95: Ende Dezember 2022
A96: 94 | B96: 785446786 | C96: 198147881 | D96: 474531193 | E96: 194832158 | F96: 1 € | G96: Ende Februar 2023 | L96: T120Y1295 | M96: DOE Audit | N96: Ende Februar 2023
A97: 95 | B97: 556356682 | C97: 833885891 | D97: 356882231 | E97: 893286226 | F97: 1 € | G97: Ende Februar 2023 | L97: T120Y1296 | M97: Graw Robot | N97: Ende Februar 2023
A98: 96 | B98: 947538938 | C98: 864491383 | D98: 845672167 | E98: 822793915 | F98: 1 € | G98: Ende Februar 2023 | L98: T120Y1297 | M98: Springer Bot | N98: Ende Februar 2023
A99: 97 | B99: 589926512 | C99: 751333415 | D99: 721636449 | E99: 832471424 | F99: 1 € | G99: Ende Februar 2023 | L99: T120Y1298 | M99: Speech Bot | N99: Ende Februar 2023
A100: 98 | B100: 997197928 | C100: 337265469 | D100: 889678732 | E100: 147214922 | F100: 1 € | G100: Ende Februar 2023 | L100: T120Y1299 | M100: Cheap Product Order Bot | N100: Ende Februar 2023
A101: 99 | B101: 598552567 | C101: 627339718 | D101: 184333415 | E101: 445212886 | F101: 1 € | G101: Ende April 2023 | L101: T120Y12100 | M101: Börsen Bot | N101: Ende April 2023
A102: 100 | B102: 118835736 | C102: 359924382 | D102: 458436454 | E102: 145548296 | F102: 1 € | G102: Ende April 2023 | L102: T120Y12101 | M102: Streifenkarte CDBGalerieSave | N102: Ende April 2023
A103: 101 | B103: 762444421 | C103: 585572166 | D103: 178242773 | E103: 854693446 | F103: 1 € | G103: Ende April 2023 | L103: T120Y12102 | M103: Personalausweis digitale Kopie | N103: Ende April 2023
A104: 102 | B104: 961494658 | C104: 848918566 | D104: 268721594 | E104: 197193574 | F104: 1 € | G104: Ende April 2023 | L104: T120Y12103 | M104: Kredit Bot | N104: Ende April 2023
A105: 103 | B105: 549425564 | C105: 458373714 | D105: 931157958 | E105: 779956958 | F105: 1 € | G105: Ende April 2023 | L105: T120Y12104 | M105: Paper Visualizer | N105: Ende April 2023
A106: 104 | B106: 883729682 | C106: 219257298 | D106: 187998975 | E106: 327444521 | F106: 1 € | G106: Ende Juni 2023 | L106: T120Y12105 | M106: Task Robot | N106: Ende Juni 2023
A107: 105 | B107: 262874264 | C107: 164865796 | D107: 471235735 | E107: 598552361 | F107: 1 € | G107: Ende Juni 2023 | L107: T120Y12106 | M107: Log Bot | N107: Ende Juni 2023
A108: 106 | B108: 572246513 | C108: 399489348 | D108: 892286116 | E108: 848252214 | F108: 1 € | G108: Ende Juni 2023 | L108: T120Y12107 | M108: Date Management | N108: Ende Juni 2023
A109: 107 | B109: 614296695 | C109: 265127479 | D109: 856929657 | E109: 839151325 | F109: 1 € | G109: Ende Juni 2023 | L109: T120Y12108 | M109: Productmanager | N109: Ende Juni 2023
A110: 108 | B110: 468794388 | C110: 759221267 | D110: 893727258 | E110: 215941923 | F110: 1 € | G110: Ende Juni 2023 | L110: T120Y12109 | M110: Seller | N110: Ende Juni 2023
A111: 109 | B111: 293455395 | C111: 639225564 | D111: 933427385 | E111: 994451493 | F111: 1 € | G111: Ende August 2023 | L111: T120Y12110 | M111: DB-Generator | N111: Ende August 2023
A112: 110 | B112: 282353811 | C112: 411791136 | D112: 943582535 | E112: 993582849 | F112: 1 € | G112: Ende August 2023 | L112: T120Y12111 | M112: Publisher | N112: Ende August 2023
A113: 111 | B113: 235151581 | C113: 994461736 | D113: 454936143 | E113: 586637398 | F113: 1 € | G113: Ende August 2023 | L113: T120Y12112 | M113: Worktable Bot | N113: Ende August 2023
A114: 112 | B114: 191868466 | C114: 235724284 | D114: 444271463 | E114: 966167986 | F114: 1 € | G114: Ende August 2023 | L114: T120Y12113 | M114: Dashboarding | N114: Ende August 2023
A115: 113 | B115: 624363746 | C115: 967131655 | D115: 974565612 | E115: 283616836 | F115: 1 € | G115: Ende August 2023 | L115: T120Y12114 | M115: Data Processing | N115: Ende August 2023
A116: 114 | B116: 823326285 | C116: 379347551 | D116: 268171884 | E116: 616282894 | F116: 1 € | G116: Ende Oktober 2023 | L116: T120Y12115 | M116: Paper | N116: Ende Oktober 2023
A117: 115 | B117: 866824867 | C117: 288711524 | D117: 618741251 | E117: 588937396 | F117: 1 € | G117: Ende Oktober 2023 | L117: T120Y12116 | M117: Knowledge Paper | N117: Ende Oktober 2023
A118: 116 | B118: 175975817 | C118: 691294763 | D118: 213522862 | E118: 475161325 | F118: 1 € | G118: Ende Oktober 2023 | L118: T120Y12117 | M118: Visual Knowledge Logs | N118: Ende Oktober 2023
A119: 117 | B119: 343588335 | C119: 273828935 | D119: 588414227 | E119: 127999156 | F119: 1 € | G119: Ende Oktober 2023 | L119: T120Y12118 | M119: E-Mail Reader Bank | N119: Ende Oktober 2023
A120: 118 | B120: 967167926 | C120: 363222391 | D120: 855955814 | E120: 961464434 | F120: 1 € | G120: Ende Oktober 2023 | L120: T120Y12119 | M120: E-Mail Lead Reader | N120: Ende Oktober 2023
A121: 119 | B121: 598441234 | C121: 948578793 | D121: 683389382 | E121: 667435153 | F121: 1 € | G121: Ende Dezember 2023 | L121: T120Y12120 | M121: E-Mail Analyse | N121: Ende Dezember 2023
A122: 120 | B122: 331883585 | C122: 714464382 | D122: 718949214 | E122: 371393961 | F122: 1 € | G122: Ende Dezember 2023 | L122: T120Y12121 | M122: E-Mail Faktura | N122: Ende Dezember 2023
A123: 121 | B123: 752111157 | C123: 771969449 | D123: 226685271 | E123: 421943724 | F123: 1 € | G123: Ende Dezember 2023 | L123: T120Y12122 | M123: E-Mail Trigger | N123: Ende Dezember 2023
A124: 122 | B124: 282575547 | C124: 222912588 | D124: 671695148 | E124: 255659763 | F124: 1 € | G124: Ende Dezember 2023 | L124: T120Y12123 | M124: E-Mail Sender Marketing 1 | N124: Ende Dezember 2023
A125: 123 | B125: 462447786 | C125: 422143726 | D125: 497698372 | E125: 317876753 | F125: 1 € | G125: Ende Dezember 2023 | L125: T120Y12124 | M125: E-Mail Sender Marketing 2 | N125: Ende Dezember 2023
A126: 124 | B126: 415245247 | C126: 255294731 | D126: 931295166 | E126: 515848871 | F126: 1 € | G126: Ende Februar 2024 | L126: T120Y12125 | M126: E-Mail Sender Marketing 3 | N126: Ende Februar 2024
A127: 125 | B127: 949532932 | C127: 565788335 | D127: 412512445 | E127: 863999178 | F127: 1 € | G127: Ende Februar 2024 | L127: T120Y12126 | M127: E-Mail Sender Marketing 4 | N127: Ende Februar 2024
A128: 126 | B128: 472815491 | C128: 698147281 | D128: 118845736 | E128: 584497658 | F128: 1 € | G128: Ende Februar 2024 | L128: T120Y12127 | M128: Autostart Sender | N128: Ende Februar 2024
A129: 127 | B129: 947526616 | C129: 566248254 | D129: 384727437 | E129: 556323928 | F129: 1 € | G129: Ende Februar 2024 | L129: T120Y12128 | M129: E-Mail Timepoint Reminder | N129: Ende Februar 2024
A130: 128 | B130: 559926382 | C130: 937734626 | D130: 213399749 | E130: 667412511 | F130: 1 € | G130: Ende Februar 2024 | L130: T120Y12129 | M130: E-Mail Adress Generator Indien | N130: Ende Februar 2024
A131: 129 | B131: 892481861 | C131: 549888965 | D131: 983453911 | E131: 868711594 | F131: 1 € | G131: Ende April 2024 | L131: T120Y12130 | M131: E-Mail Adress Generator Indonesien | N131: Ende April 2024
A132: 130 | B132: 412565199 | C132: 697838648 | D132: 256659396 | E132: 619552378 | F132: 1 € | G132: Ende April 2024 | L132: T120Y12131 | M132: E-Mail Adress Generator Brasilien | N132: Ende April 2024
A133: 131 | B133: 835847238 | C133: 914982119 | D133: 943995712 | E133: 296111287 | F133: 1 € | G133: Ende April 2024 | L133: T120Y12132 | M133: E-Mail Adress Generator Japan | N133: Ende April 2024
A134: 132 | B134: 991567466 | C134: 114561736 | D134: 862449946 | E134: 846543726 | F134: 1 € | G134: Ende April 2024 | L134: T120Y12133 | M134: E-Mail Adress Generator Philippinen | N134: Ende April 2024
A135: 133 | B135: 319822613 | C135: 849521486 | D135: 737142193 | E135: 152149156 | F135: 1 € | G135: Ende April 2024 | L135: T120Y12134 | M135: E-Mail Adress Generator Äthiopien | N135: Ende April 2024
A136: 134 | B136: 691194763 | C136: 937561966 | D136: 283923243 | E136: 142844385 | F136: 1 € | G136: Ende Juni 2024 | L136: T120Y12135 | M136: E-Mail Adress Generator Ägypten | N136: Ende Juni 2024
A137: 135 | B137: 121369113 | C137: 593654922 | D137: 572915411 | E137: 669857383 | F137: 1 € | G137: Ende Juni 2024 | L137: T120Y12136 | M137: E-Mail Adress Generator Vietnam | N137: Ende Juni 2024
A138: 136 | B138: 329429352 | C138: 357363715 | D138: 982543811 | E138: 588414122 | F138: 1 € | G138: Ende Juni 2024 | L138: T120Y12137 | M138: E-Mail Adress Generator Pakistan | N138: Ende Juni 2024
A139: 137 | B139: 967164663 | C139: 991767386 | D139: 124693973 | E139: 481939446 | F139: 1 € | G139: Ende Juni 2024 | L139: T120Y12138 | M139: E-Mail Adress Generator Nigeria | N139: Ende Juni 2024
A140: 138 | B140: 941685692 | C140: 499822595 | D140: 333891644 | E140: 467861285 | F140: 1 € | G140: Ende Juni 2024 | L140: T120Y12139 | M140: E-Mail Adress Generator Bangladesch | N140: Ende Juni 2024
A141: 139 | B141: 686361952 | C141: 253429521 | D141: 398147891 | E141: 815613514 | F141: 1 € | G141: Ende August 2024 | L141: T120Y12140 | M141: E-Mail Adress Generator Russland | N141: Ende August 2024
A142: 140 | B142: 428777834 | C142: 284734763 | D142: 986187574 | E142: 195777724 | F142: 1 € | G142: Ende August 2024 | L142: T120Y12141 | M142: E-Mail Adress Generator Mexico | N142: Ende August 2024
A143: 141 | B143: 829953214 | C143: 329429356 | D143: 229956994 | E143: 212974153 | F143: 1 € | G143: Ende August 2024 | L143: T120Y12142 | M143: E-Mail Adress Generator Australien | N143: Ende August 2024
A144: 142 | B144: 238114554 | C144: 598441789 | D144: 749225564 | E144: 697171783 | F144: 1 € | G144: Ende August 2024 | L144: T120Y12143 | M144: E-Mail Adress Generator Ozeanien | N144: Ende August 2024
A145: 143 | B145: 872819814 | C145: 553389272 | D145: 293521862 | E145: 974565647 | F145: 1 € | G145: Ende August 2024 | L145: T120Y12144 | M145: E-Mail Adress Generator Europa | N145: Ende August 2024
A146: 144 | B146: 482973462 | C146: 515848194 | D146: 637121688 | E146: 997494696 | F146: 1 € | G146: Ende Oktober 2024 | L146: T120Y12145 | M146: E-Mail Adress Generator Antarktika | N146: Ende Oktober 2024
A147: 145 | B147: 445672277 | C147: 548373358 | D147: 167231762 | E147: 483686658 | F147: 1 € | G147: Ende Oktober 2024 | L147: T120Y12146 | M147: E-Mail Adress Generator America | N147: Ende Oktober 2024
A148: 146 | B148: 331431374 | C148: 951663143 | D148: 778568166 | E148: 157169348 | F148: 1 € | G148: Ende Oktober 2024 | L148: T120Y12147 | M148: E-Mail Adress Generator Asien | N148: Ende Oktober 2024
A149: 147 | B149: 632774781 | C149: 926689857 | D149: 886483685 | E149: 781612695 | F149: 1 € | G149: Ende Oktober 2024 | L149: T120Y12148 | M149: E-Mail Adress Generator Afrika | N149: Ende Oktober 2024
A150: 148 | B150: 777724625 | C150: 492174727 | D150: 787369476 | E150: 475648588 | F150: 1 € | G150: Ende Oktober 2024 | L150: T120Y12149 | M150: E-Mail Adress Generator Deutschland | N150: Ende Oktober 2024
A151: 149 | B151: 327998975 | C151: 314532973 | D151: 249956847 | E151: 565781113 | F151: 1 € | G151: Ende Dezember 2024 | L151: T120Y12150 | M151: E-Mail Adress Generator China | N151: Ende Dezember 2024
A152: 150 | B152: 172595782 | C152: 235141581 | D152: 947285595 | E152: 212879577 | F152: 1 € | G152: Ende Dezember 2024 | L152: T120Y12151 | M152: Individual Bot Requester | N152: Ende Dezember 2024
A153: 151 | B153: 895181221 | C153: 934437842 | D153: 257966448 | E153: 823326274 | F153: 1 € | G153: Ende Dezember 2024 | L153: T120Y12152 | M153: GG | N153: Ende Dezember 2024
A154: 152 | B154: 761598793 | C154: 286187928 | D154: 217434153 | E154: 375976817 | F154: 1 € | G154: Ende Dezember 2024 | L154: T120Y12153 | M154: BGB | N154: Ende Dezember 2024
A155: 153 | B155: 384996475 | C155: 339737928 | D155: 787981557 | E155: 979888865 | F155: 1 € | G155: Ende Dezember 2024 | L155: T120Y12154 | M155: STGB | N155: Ende Dezember 2024
A156: 154 | B156: 137791968 | C156: 317888378 | D156: 839574581 | E156: 926455491 | F156: 1 € | G156: Ende Februar 2025 | L156: T120Y12155 | M156: UnivG | N156: Ende Februar 2025
A157: 155 | B157: 681137624 | C157: 285245571 | D157: 487339456 | E157: 524949473 | F157: 1 € | G157: Ende Februar 2025 | L157: T120Y12156 | M157: EU-Recht | N157: Ende Februar 2025
A158: 156 | B158: 879288638 | C158: 595187542 | D158: 937924382 | E158: 454692441 | F158: 1 € | G158: Ende Februar 2025 | L158: T120Y12157 | M158: UN Recht | N158: Ende Februar 2025
A159: 157 | B159: 959129678 | C159: 671268648 | D159: 845932766 | E159: 229329246 | F159: 1 € | G159: Ende Februar 2025 | L159: T120Y12158 | M159: Soldatengesetz | N159: Ende Februar 2025
A160: 158 | B160: 813827368 | C160: 634891655 | D160: 392717257 | E160: 997734624 | F160: 1 € | G160: Ende Februar 2025 | L160: T120Y12159 | M160: SGB | N160: Ende Februar 2025
A161: 159 | B161: 623263746 | C161: 445912799 | D161: 933427388 | E161: 862448976 | F161: 1 € | G161: Ende April 2025 | L161: T120Y12160 | M161: German Bot | N161: Ende April 2025
A162: 160 | B162: 791294963 | C162: 245548217 | D162: 426623515 | E162: 596729982 | F162: 1 € | G162: Ende April 2025 | L162: T120Y12161 | M162: Functions | N162: Ende April 2025
A163: 161 | B163: 299247291 | C163: 232471234 | D163: 775382574 | E163: 917993347 | F163: 1 € | G163: Ende April 2025 | L163: T120Y12162 | M163: Processes | N163: Ende April 2025
A164: 162 | B164: 232477224 | C164: 466956985 | D164: 185622378 | E164: 548578818 | F164: 1 € | G164: Ende April 2025 | L164: T120Y12163 | M164: Datas | N164: Ende April 2025
A165: 163 | B165: 399623672 | C165: 617352366 | D165: 383696658 | E165: 999787155 | F165: 1 € | G165: Ende April 2025 | L165: T120Y12164 | M165: Information | N165: Ende April 2025
A166: 164 | B166: 387339145 | C166: 929626617 | D166: 961791136 | E166: 643255944 | F166: 1 € | G166: Ende Juni 2025 | L166: T120Y12165 | M166: Deep Learning | N166: Ende Juni 2025
A167: 165 | B167: 775226827 | C167: 127193445 | D167: 657522884 | E167: 973555512 | F167: 1 € | G167: Ende Juni 2025 | N167: Ende Juni 2025
A168: 166 | B168: 184666723 | C168: 269752251 | D168: 916724295 | E168: 658446554 | F168: 1 € | G168: Ende Juni 2025 | N168: Ende Juni 2025
A169: 167 | B169: 518242214 | C169: 812348744 | D169: 644365978 | E169: 236151584 | F169: 1 € | G169: Ende Juni 2025 | N169: Ende Juni 2025
A170: 168 | B170: 895771225 | C170: 611636342 | D170: 255872541 | E170: 712326277 | F170: 1 € | G170: Ende Juni 2025 | N170: Ende Juni 2025
A171: 169 | B171: 415245469 | C171: 367716874 | D171: 788582335 | E171: 454675992 | F171: 1 € | G171: Ende August 2025 | N171: Ende August 2025
A172: 170 | B172: 151643153 | C172: 276976817 | D172: 986119241 | E172: 373885375 | F172: 1 € | G172: Ende August 2025 | N172: Ende August 2025
A173: 171 | B173: 937561956 | C173: 461168847 | D173: 165117124 | E173: 892281116 | F173: 1 € | G173: Ende August 2025 | N173: Ende August 2025
A174: 172 | B174: 624396716 | C174: 538777819 | D174: 996656848 | E174: 575149581 | F174: 1 € | G174: Ende August 2025 | N174: Ende August 2025
A175: 173 | B175: 661359524 | C175: 829959214 | D175: 441695712 | E175: 145548492 | F175: 1 € | G175: Ende August 2025 | N175: Ende August 2025
A176: 174 | B176: 892481851 | C176: 347335443 | D176: 929772274 | E176: 161475436 | F176: 1 € | G176: Ende Oktober 2025 | N176: Ende Oktober 2025
A177: 175 | B177: 282575211 | C177: 159489812 | D177: 585624436 | E177: 349371221 | F177: 1 € | G177: Ende Oktober 2025 | N177: Ende Oktober 2025
A178: 176 | B178: 157169783 | C178: 258683277 | D178: 589126512 | E178: 835858562 | F178: 1 € | G178: Ende Oktober 2025 | N178: Ende Oktober 2025
A179: 177 | B179: 191578466 | C179: 293411884 | D179: 313522527 | E179: 454697891 | F179: 1 € | G179: Ende Oktober 2025 | N179: Ende Oktober 2025
A180: 178 | B180: 477862439 | C180: 667434153 | D180: 457681662 | E180: 943885992 | F180: 1 € | G180: Ende Oktober 2025 | N180: Ende Oktober 2025
A181: 179 | B181: 121368113 | C181: 475627388 | D181: 722736495 | E181: 775592271 | F181: 1 € | G181: Ende Dezember 2025 | N181: Ende Dezember 2025
A182: 180 | B182: 775187928 | C182: 375875796 | D182: 572257958 | E182: 362275437 | F182: 1 € | G182: Ende Dezember 2025 | N182: Ende Dezember 2025
A183: 181 | B183: 919271446 | C183: 943885912 | D183: 649884521 | E183: 562557887 | F183: 1 € | G183: Ende Dezember 2025 | N183: Ende Dezember 2025
A184: 182 | B184: 491491439 | C184: 339957958 | D184: 825981789 | E184: 758976427 | F184: 1 € | G184: Ende Dezember 2025 | N184: Ende Dezember 2025
A185: 183 | B185: 922948841 | C185: 161494659 | D185: 991763842 | E185: 892727255 | F185: 1 € | G185: Ende Dezember 2025 | N185: Ende Dezember 2025
A186: 184 | B186: 685444423 | C186: 462747887 | D186: 724376159 | E186: 991789611 | F186: 1 € | G186: Ende Februar 2026 | N186: Ende Februar 2026
A187: 185 | B187: 364497658 | C187: 583346514 | D187: 344669881 | E187: 475515761 | F187: 1 € | G187: Ende Februar 2026 | N187: Ende Februar 2026
A188: 186 | B188: 341336675 | C188: 813349167 | D188: 485143479 | E188: 846918549 | F188: 1 € | G188: Ende Februar 2026 | N188: Ende Februar 2026
A189: 187 | B189: 659789925 | C189: 424633183 | D189: 464271163 | E189: 168719448 | F189: 1 € | G189: Ende Februar 2026 | N189: Ende Februar 2026
A190: 188 | B190: 725417727 | C190: 346262692 | D190: 553335736 | E190: 395945874 | F190: 1 € | G190: Ende Februar 2026 | N190: Ende Februar 2026
A191: 189 | B191: 256737733 | C191: 767212711 | D191: 427554531 | E191: 353167739 | F191: 1 € | G191: Ende April 2026 | N191: Ende April 2026
A192: 190 | B192: 218754685 | C192: 144538474 | D192: 994376571 | E192: 473332312 | F192: 1 € | G192: Ende April 2026 | N192: Ende April 2026
A193: 191 | B193: 487441679 | C193: 432479424 | D193: 679585935 | E193: 812892599 | F193: 1 € | G193: Ende April 2026 | N193: Ende April 2026
A194: 192 | B194: 775512494 | C194: 629421352 | D194: 279824857 | E194: 168617281 | F194: 1 € | G194: Ende April 2026 | N194: Ende April 2026
A195: 193 | B195: 296787864 | C195: 522622571 | D195: 578972741 | E195: 422479478 | F195: 1 € | G195: Ende April 2026 | N195: Ende April 2026
A196: 194 | B196: 272516761 | C196: 943895589 | D196: 543582635 | E196: 121793719 | F196: 1 € | G196: Ende Juni 2026 | N196: Ende Juni 2026
A197: 195 | B197: 739424564 | C197: 118515796 | D197: 286186941 | E197: 327662398 | F197: 1 € | G197: Ende Juni 2026 | N197: Ende Juni 2026
A198: 196 | B198: 548376571 | C198: 863454591 | D198: 185666756 | E198: 361464436 | F198: 1 € | G198: Ende Juni 2026 | N198: Ende Juni 2026
A199: 197 | B199: 949554254 | C199: 838521876 | D199: 394356681 | E199: 784665564 | F199: 1 € | G199: Ende Juni 2026 | N199: Ende Juni 2026
A200: 198 | B200: 461135493 | C200: 794248733 | D200: 482543811 | E200: 297966449 | F200: 1 € | G200: Ende Juni 2026 | N200: Ende Juni 2026
... 2398 more rows

Sheet Abb.2 (hidden)
A1: lvl0 | B1: lvl1 | C1: lvl2 | D1: lvl3
B2: 2
A5: PBC | D5: PBC
E6: Group 744 | F6: Group 343 | G6: Group 346 | H6: Group 349 | I6: Group 352 | J6: Group 355 | K6: Group 358 | L6: Group 361 | M6: Group 364 | N6: Group 367 | O6: Group 370 | P6: Picture 171
A7: Free | D7: Beschreibung/ Description
A8: 1_1_1_2 | D8: 1_1_1_3 | E8: Group 742 | F8: Group 376 | G8: Group 379 | H8: Group 382 | I8: Group 385 | J8: Group 388 | K8: Group 391 | L8: Group 394 | M8: Group 397 | N8: Group 400 | O8: Group 403 | P8: Picture 183
A9: Cybernetics | D9: Bestellen/ Ordern
A10: 1_1_1_4 | D10: 1_1_1_5 | E10: Group 406 | F10: Group 409 | G10: Group 412 | H10: Group 415 | I10: Group 418 | J10: Group 421 | K10: Group 424 | L10: Group 427 | M10: Group 430 | N10: Group 433 | O10: Group 436 | P10: Picture 195
A11: Warenkorb/ Cart | D11: Eigenen Account/ Own Account
A12: 1_1_1_6 | D12: 1_1_1_7 | E12: Group 439 | F12: Group 442 | G12: Group 445 | H12: Group 448 | I12: Group 451 | J12: Group 454 | K12: Group 457 | L12: Group 460 | M12: Group 463 | N12: Group 466 | O12: Group 469 | P12: Picture 207
A13: Neuigkeiten/ News
A14: 1_1_1_8 | E14: Group 472 | F14: Group 475 | G14: Group 478 | H14: Group 481 | I14: Group 484 | J14: Group 487 | K14: Group 490 | L14: Group 493 | M14: Group 496 | N14: Group 499 | O14: Group 502 | P14: Picture 219
A15: Geschenke/ Gifts
A16: 1_1_1_10 | E16: Group 505 | F16: Group 508 | G16: Group 511 | H16: Group 514 | I16: Group 517 | J16: Group 520 | K16: Group 523 | L16: Group 526 | M16: Group 529 | N16: Group 532 | O16: Group 535 | P16: Picture 231
A17: Aktualisieren/ Actualize
A18: 1_1_1_12 | E18: Group 538 | F18: Group 541 | G18: Group 544 | H18: Group 547 | I18: Group 550 | J18: Group 553 | K18: Group 556 | L18: Group 559 | M18: Group 562 | N18: Group 565 | O18: Group 568 | P18: Picture 243
A19: Entriegeln/ Unlock
A20: 1_1_1_14 | E20: Group 571 | F20: Group 574 | G20: Group 577 | H20: Group 580 | I20: Group 583 | J20: Group 586 | K20: Group 589 | L20: Group 592 | M20: Group 595 | N20: Group 598 | O20: Group 601 | P20: Picture 255
A21: Reaktivierung/ Reactivation
A22: 1_1_1_16 | E22: Group 604 | F22: Group 607 | G22: Group 610 | H22: Group 613 | I22: Group 616 | J22: Group 619 | K22: Group 622 | L22: Group 625 | M22: Group 628 | N22: Group 631 | O22: Group 634 | P22: Picture 267
A23: Neuerung/ Update
A24: 1_1_1_18 | E24: Group 637 | F24: Group 640 | G24: Group 643 | H24: Group 646 | I24: Group 649 | J24: Group 652 | K24: Group 655 | L24: Group 658 | M24: Group 661 | N24: Group 664 | O24: Group 667 | P24: Picture 279
A25: Kontostand/ Balance
E26: Group 670 | F26: Group 673 | G26: Group 676 | H26: Group 679 | I26: Group 682 | J26: Group 685 | K26: Group 688 | L26: Group 691 | M26: Group 694 | N26: Group 697 | O26: Group 700 | P26: Picture 291
E28: Group 703 | F28: Group 706 | G28: Group 709 | H28: Group 712 | I28: Group 715 | J28: Group 718 | K28: Group 721 | L28: Group 724 | M28: Group 727 | N28: Group 730 | O28: Group 733 | P28: Picture 303

Sheet Index (hidden)
B1: lvl1 | C1: lvl2 | D1: lvl3 | E1: lvl4 | F1: lvl5
B2: 1 | C2: 1 | D2: 1
B3: 1 | C3: 1 | D3: 2
B4: 1 | C4: 1 | D4: 3
B5: 1 | C5: 1 | D5: 4
B6: 1 | C6: 2 | D6: 1
B7: 1 | C7: 2 | D7: 2
B8: 1 | C8: 2 | D8: 3
B9: 1 | C9: 3 | D9: 1
B10: 1 | C10: 3 | D10: 2
B11: 1 | C11: 3 | D11: 3
B12: 1 | C12: 3 | D12: 4
B13: 1 | C13: 3 | D13: 5
B14: 1 | C14: 3 | D14: 6
B15: 2 | C15: 1 | D15: 1 | E15: 1 | F15: 1
B16: 2 | C16: 1 | D16: 1 | E16: 1 | F16: 2
B17: 2 | C17: 1 | D17: 1 | E17: 2 | F17: 1
B18: 2 | C18: 1 | D18: 1 | E18: 2 | F18: 2
B19: 2 | C19: 1 | D19: 1 | E19: 2 | F19: 3
B20: 2 | C20: 1 | D20: 1 | E20: 3 | F20: 1
B21: 2 | C21: 1 | D21: 1 | E21: 3 | F21: 2
B22: 2 | C22: 1 | D22: 1 | E22: 3 | F22: 3
B23: 2 | C23: 1 | D23: 1 | E23: 3 | F23: 4
B24: 2 | C24: 1 | D24: 1 | E24: 3 | F24: 5
B25: 2 | C25: 1 | D25: 1 | E25: 4 | F25: 1
B26: 2 | C26: 1 | D26: 1 | E26: 4 | F26: 2
B27: 2 | C27: 1 | D27: 2 | E27: 1 | F27: 2
B28: 2 | C28: 1 | D28: 2 | E28: 2 | F28: 2
B29: 2 | C29: 1 | D29: 2 | E29: 3 | F29: 1
B30: 2 | C30: 1 | D30: 2 | E30: 3 | F30: 2
B31: 2 | C31: 1 | D31: 2 | E31: 4 | F31: 1
B32: 2 | C32: 1 | D32: 2 | E32: 4 | F32: 2
B33: 2 | C33: 1 | D33: 2 | E33: 4 | F33: 3
B34: 2 | C34: 1 | D34: 2 | E34: 5 | F34: 1
B35: 2 | C35: 1 | D35: 2 | E35: 5 | F35: 2
B36: 2 | C36: 1 | D36: 2 | E36: 5 | F36: 3
B37: 2 | C37: 1 | D37: 2 | E37: 5 | F37: 4
B38: 2 | C38: 1 | D38: 2 | E38: 5 | F38: 5
B39: 2 | C39: 1 | D39: 2 | E39: 6 | F39: 1
B40: 2 | C40: 1 | D40: 2 | E40: 6 | F40: 2
B41: 2 | C41: 1 | D41: 2 | E41: 6 | F41: 3
B42: 2 | C42: 1 | D42: 2 | E42: 6 | F42: 4
B43: 2 | C43: 1 | D43: 2 | E43: 6 | F43: 5
B44: 2 | C44: 1 | D44: 3 | E44: 1 | F44: 1
B45: 2 | C45: 1 | D45: 3 | E45: 1 | F45: 2
B46: 2 | C46: 1 | D46: 3 | E46: 1 | F46: 3
B47: 2 | C47: 1 | D47: 3 | E47: 1 | F47: 4
B48: 2 | C48: 1 | D48: 3 | E48: 1 | F48: 5
B49: 2 | C49: 1 | D49: 3 | E49: 2 | F49: 1
B50: 2 | C50: 1 | D50: 3 | E50: 2 | F50: 2
B51: 2 | C51: 1 | D51: 3 | E51: 2 | F51: 3
B52: 2 | C52: 1 | D52: 3 | E52: 2 | F52: 4
B53: 2 | C53: 1 | D53: 3 | E53: 3 | F53: 1
B54: 2 | C54: 1 | D54: 3 | E54: 3 | F54: 2
B55: 2 | C55: 1 | D55: 3 | E55: 3 | F55: 3
B56: 2 | C56: 1 | D56: 3 | E56: 3 | F56: 4
B57: 2 | C57: 1 | D57: 3 | E57: 4 | F57: 1
B58: 2 | C58: 1 | D58: 3 | E58: 4 | F58: 2
B59: 2 | C59: 1 | D59: 3 | E59: 4 | F59: 3
B60: 2 | C60: 1 | D60: 3 | E60: 4 | F60: 4
B61: 2 | C61: 1 | D61: 3 | E61: 5 | F61: 1
B62: 2 | C62: 1 | D62: 3 | E62: 5 | F62: 2
B63: 2 | C63: 1 | D63: 3 | E63: 5 | F63: 3
B64: 2 | C64: 1 | D64: 3 | E64: 5 | F64: 4
B65: 2 | C65: 1 | D65: 3 | E65: 6 | F65: 4
B66: 2 | C66: 1 | D66: 3 | E66: 7 | F66: 1
B67: 2 | C67: 1 | D67: 3 | E67: 7 | F67: 2
B68: 2 | C68: 1 | D68: 3 | E68: 7 | F68: 3
B69: 2 | C69: 1 | D69: 3 | E69: 7 | F69: 4
B70: 2 | C70: 1 | D70: 3 | E70: 7 | F70: 5
B71: 2 | C71: 1 | D71: 3 | E71: 8 | F71: 1
B72: 2 | C72: 1 | D72: 3 | E72: 8 | F72: 2
B73: 2 | C73: 1 | D73: 3 | E73: 9 | F73: 1
B74: 2 | C74: 1 | D74: 3 | E74: 9 | F74: 2
B75: 2 | C75: 1 | D75: 3 | E75: 9 | F75: 3
B76: 2 | C76: 1 | D76: 3 | E76: 9 | F76: 4
B77: 2 | C77: 1 | D77: 3 | E77: 10 | F77: 1
B78: 2 | C78: 1 | D78: 3 | E78: 10 | F78: 2
B79: 2 | C79: 1 | D79: 3 | E79: 10 | F79: 3
B80: 2 | C80: 1 | D80: 3 | E80: 11 | F80: 1
B81: 2 | C81: 1 | D81: 3 | E81: 11 | F81: 2
B82: 2 | C82: 1 | D82: 3 | E82: 12 | F82: 1
B83: 2 | C83: 1 | D83: 3 | E83: 12 | F83: 2
B84: 2 | C84: 1 | D84: 3 | E84: 12 | F84: 3
B85: 2 | C85: 1 | D85: 3 | E85: 12 | F85: 4
B86: 2 | C86: 1 | D86: 3 | E86: 12 | F86: 5
B87: 2 | C87: 1 | D87: 3 | E87: 13 | F87: 5
B88: 2 | C88: 1 | D88: 3 | E88: 14 | F88: 1
B89: 2 | C89: 1 | D89: 3 | E89: 14 | F89: 2
B90: 2 | C90: 1 | D90: 3 | E90: 15 | F90: 1
B91: 2 | C91: 1 | D91: 3 | E91: 16 | F91: 1
B92: 2 | C92: 1 | D92: 3 | E92: 16 | F92: 2
B93: 2 | C93: 1 | D93: 3 | E93: 16 | F93: 3
B94: 2 | C94: 1 | D94: 3 | E94: 16 | F94: 4
B95: 2 | C95: 1 | D95: 3 | E95: 16 | F95: 5
B96: 2 | C96: 1 | D96: 3 | E96: 16 | F96: 6
B97: 2 | C97: 1 | D97: 3 | E97: 17 | F97: 6
B98: 2 | C98: 1 | D98: 3 | E98: 18 | F98: 6
B99: 2 | C99: 1 | D99: 3 | E99: 19 | F99: 6
B100: 2 | C100: 1 | D100: 3 | E100: 20 | F100: 1
B101: 2 | C101: 1 | D101: 3 | E101: 21 | F101: 1
B102: 2 | C102: 1 | D102: 3 | E102: 22 | F102: 1
B103: 2 | C103: 1 | D103: 3 | E103: 23 | F103: 1
B104: 2 | C104: 1 | D104: 3 | E104: 24 | F104: 1
B105: 2 | C105: 1 | D105: 4 | E105: 1 | F105: 1
B106: 2 | C106: 1 | D106: 4 | E106: 2 | F106: 1
B107: 2 | C107: 1 | D107: 5 | E107: 1 | F107: 1
B108: 2 | C108: 2 | D108: 1 | E108: 1 | F108: 1
B109: 2 | C109: 2 | D109: 1 | E109: 1 | F109: 1
B110: 2 | C110: 2 | D110: 1 | E110: 2 | F110: 1
B111: 2 | C111: 2 | D111: 1 | E111: 3 | F111: 1
B112: 2 | C112: 2 | D112: 1 | E112: 4 | F112: 1
B113: 2 | C113: 2 | D113: 1 | E113: 5 | F113: 1
B114: 2 | C114: 2 | D114: 2 | E114: 1 | F114: 1
B115: 2 | C115: 2 | D115: 3 | E115: 1 | F115: 1
B116: 2 | C116: 2 | D116: 4 | E116: 1 | F116: 1
B117: 2 | C117: 2 | D117: 4 | E117: 2 | F117: 1
B118: 2 | C118: 2 | D118: 4 | E118: 3 | F118: 1
B119: 2 | C119: 2 | D119: 5 | E119: 1 | F119: 1
B120: 2 | C120: 2 | D120: 5 | E120: 1 | F120: 2
B121: 2 | C121: 2 | D121: 5 | E121: 2 | F121: 2
B122: 2 | C122: 2 | D122: 5 | E122: 3 | F122: 2
B123: 2 | C123: 2 | D123: 5 | E123: 4 | F123: 2
B124: 2 | C124: 2 | D124: 5 | E124: 5 | F124: 1
B125: 2 | C125: 2 | D125: 5 | E125: 5 | F125: 1
B126: 2 | C126: 2 | D126: 5 | E126: 5 | F126: 1
B127: 2 | C127: 2 | D127: 5 | E127: 5 | F127: 1
B128: 2 | C128: 2 | D128: 5 | E128: 5 | F128: 2
B129: 2 | C129: 2 | D129: 5 | E129: 6 | F129: 2
B130: 2 | C130: 2 | D130: 5 | E130: 7 | F130: 1
B131: 2 | C131: 2 | D131: 5 | E131: 7 | F131: 2
B132: 2 | C132: 2 | D132: 5 | E132: 7 | F132: 3
B133: 2 | C133: 2 | D133: 5 | E133: 7 | F133: 4
B134: 2 | C134: 2 | D134: 5 | E134: 7 | F134: 5
B135: 2 | C135: 2 | D135: 5 | E135: 7 | F135: 6
B136: 2 | C136: 2 | D136: 5 | E136: 7 | F136: 7
B137: 2 | C137: 2 | D137: 5 | E137: 7 | F137: 8
B138: 2 | C138: 2 | D138: 5 | E138: 7 | F138: 9
B139: 2 | C139: 2 | D139: 5 | E139: 7 | F139: 10
B140: 2 | C140: 2 | D140: 5 | E140: 7 | F140: 11
B141: 2 | C141: 2 | D141: 5 | E141: 7 | F141: 12
B142: 2 | C142: 2 | D142: 5 | E142: 7 | F142: 13
B143: 2 | C143: 2 | D143: 5 | E143: 7 | F143: 14
B144: 2 | C144: 2 | D144: 5 | E144: 7 | F144: 15
B145: 2 | C145: 2 | D145: 5 | E145: 7 | F145: 16
B146: 2 | C146: 2 | D146: 5 | E146: 7 | F146: 17
B147: 2 | C147: 2 | D147: 5 | E147: 7 | F147: 18
B148: 2 | C148: 2 | D148: 5 | E148: 7 | F148: 19
B149: 2 | C149: 2 | D149: 5 | E149: 7 | F149: 20
B150: 2 | C150: 2 | D150: 5 | E150: 7 | F150: 21
B151: 2 | C151: 2 | D151: 5 | E151: 7 | F151: 22
B152: 2 | C152: 2 | D152: 5 | E152: 8 | F152: 22
B153: 2 | C153: 3 | D153: 1 | E153: 1 | F153: 22
B154: 2 | C154: 3 | D154: 1 | E154: 2 | F154: 22
B155: 2 | C155: 3 | D155: 1 | E155: 3 | F155: 22
B156: 2 | C156: 3 | D156: 1 | E156: 4 | F156: 22
B157: 2 | C157: 3 | D157: 1 | E157: 5 | F157: 22
B158: 2 | C158: 3 | D158: 1 | E158: 6 | F158: 22
B159: 2 | C159: 3 | D159: 1 | E159: 7 | F159: 22
B160: 2 | C160: 3 | D160: 1 | E160: 8 | F160: 22
B161: 2 | C161: 3 | D161: 1 | E161: 9 | F161: 22
B162: 2 | C162: 3 | D162: 2 | E162: 1 | F162: 22
B163: 2 | C163: 3 | D163: 2 | E163: 2 | F163: 22
B164: 2 | C164: 3 | D164: 2 | E164: 3 | F164: 22
B165: 2 | C165: 3 | D165: 2 | E165: 4 | F165: 22
B166: 2 | C166: 3 | D166: 2 | E166: 5 | F166: 22

Sheet Support (hidden)

Sheet Log (hidden)
B2: Bestellungen/ Log | E2: Öffne/ Open Ordern/ Folder | G2: Counter
B4: ID.B | C4: ID. | D4: ID.W | E4: Was/ What | F4: Preis/Price | G4: User_ID | H4: Amount | I4: Preis*Menge/ Price*Amount | J4: Benefit | K4: Sum | L4: Final Sum/month. | M4: 19% MwST./VAT | N4: Benefit | O4: Affiliation | P4: Final Sum | Q4: 19% MwST./VAT | R4: Benefit | S4: Affiliation | T4: Datum/ Date | U4: Affiliation Key | V4: Gutschein Key

Sheet i2 (2) (hidden)
A1: a
H2: List available updates
H3: 4 Compability | J3: Werbung
B4: Update Monitor | F4: Auswahl | G4: Update | H4: delay
A5: Id. | B5: Neues/ News | C5: Datum/Date | D5: Features
A6: 1

Sheet 22 (hidden)
A2: 1 | B2: CUG | C2: Synch | D2: Downloads | E2: Check4Entities | F2: Update
A3: 2 | B3: TB | C3: EMS | D3: Blacklist | E3: EMSlists | F3: Generatorliste | G3: Friendlistread
A4: 2 | C4: Sales of Entities | D4: VIP Points | E4: Cash | F4: ect.
A5: 2 | C5: Start | D5: Cybs | E5: Businessesabfragen | F5: Produktviews | G5: Toolfunctions (Synch)
A6: 3 | C6: Autocash | D6: Generatorcash
A7: 4 | C7: Depot | D7: Verwendung für Building | E7: Upgrades | F7: Lvls | G7: Cybs | H7: Businesses | I7: ect.
A8: 5 | C8: CashviaCode | D8: Licencekey | E8: E-Mail | F8: Cash4Installation | G8: DownloadCash | H8: RecommendationCode
A9: 6 | C9: ReceivingCashbyEMS->CodeEntry
A10: 7 | C10: Productview | D10: Description | E10: Details | F10: Buychance
A11: 8 | C11: Cybs | D11: TB | E11: Synch | F11: Downloads
A12: 9 | C12: Cash | D12: Cybslevel | E12: Installationslevel | F12: Buildingpath | G12: ProductionPaperCash
A13: 10 | C13: CUG | D13: TB | E13: WUSBT | F13: 20-40 Businesses | G13: 100-200 Robots
A14: 11 | C14: Mapping Islands of Technology
C20: 6xek34rj | F20: 1. | G20: Oberfläche | J20: 1. Activationprocess
F21: 2. | G21: Elemente sammeln | J21: 1.1.Freischaltung weiterer Prozesse
F22: 3. | G22: Komponenten kombinieren | J22: 2. Updates
F23: 4. | G23: Funktionsfähig machen | H23: TB-Sales! | J23: 2.1. Update Monitor-List
H24: Technology downloads! | J24: 2.2. Marketing
H25: Transactions! | J25: 3. Vorgehen
J26: 3.1. Erstelle Liste auf Webseite mit downloadlinks
J27: 3.2. Testfile (Makro1,2, Tabelle, Add Content or replace Content
J28: 3.3. Dependables (Sheet Passwort Protection, Makro PW Protection)
J29: 3.4. Abgleich mit Version
J30: 3.5. Abgleich mit Cybernetic
J31: 3.6. Option Update all
J32: 3.7. Download Path
J34: activate products to base
J35: control if product start if correctyl logged in

Sheet Tabelle5 (2) (hidden)
A1: ID | B1: Kontinent | C1: Land | D1: Bundesland | E1: Stadt | F1: Hauptstadt
A2: Europa | B2: Belgien | C2: Brüssel
A3: Europa | B3: Bulgarien | C3: Sofia
A4: Europa | B4: Dänemark | C4: Kopenhagen
A5: Europa | B5: Deutschland | C5: Berlin
A6: Europa | B6: Deutschland | C6: Stuttgart
A7: Europa | B7: Deutschland | C7: München | D7: Bayern
A8: Europa | B8: Deutschland | C8: Potsdam | D8: Brandenburg
A9: Europa | B9: Deutschland | C9: Bremen | D9: Bremen
A10: Europa | B10: Deutschland | C10: Hamburg | D10: Hamburg
A11: Europa | B11: Deutschland | C11: Wiesbaden | D11: Hessen
A12: Europa | B12: Deutschland | C12: Schwerin | D12: Mecklenburg-Vorpommern
A13: Europa | B13: Deutschland | C13: Hannover | D13: Niedersachsen | I13: Berechnungen
A14: Europa | B14: Deutschland | C14: Düsseldorf | D14: Nordrhein-Westfalen | I14: Cash kaufen
A15: Europa | B15: Deutschland | C15: Mainz | D15: Rheinland-Pfalz | H15: Messages | I15: Preise und Kontigente
A16: Europa | B16: Deutschland | C16: Saarbrücken | D16: Saarland | H16: Send
A17: Europa | B17: Deutschland | C17: Dresden | D17: Sachsen | H17: log adresses
A18: Europa | B18: Deutschland | C18: Magdeburg | D18: Sachsen-Anhalt | H18: kürze die offline erneuere die online
A19: Europa | B19: Deutschland | C19: Kiel | D19: Schleswig-Holstein
A20: Europa | B20: Deutschland | C20: Köln | H20: Betriebsmodus 1-3 check
A21: Europa | B21: Deutschland | C21: Frankfurt am Main
A22: Europa | B22: Deutschland | C22: Dortmund | H22: transfer lists
A23: Europa | B23: Deutschland | C23: Essen | H23: transfer suchparameter
A24: Europa | B24: Deutschland | C24: Leipzig
A25: Europa | B25: Deutschland | C25: Nürnberg | H25: non outlook service
A26: Europa | B26: Deutschland | C26: Duisburg
A27: Europa | B27: Deutschland | C27: Bochum
A28: Europa | B28: Deutschland | C28: Wuppertal
A29: Europa | B29: Deutschland | C29: Bielefeld
A30: Europa | B30: Deutschland | C30: Bonn
A31: Europa | B31: Deutschland | C31: Münster
A32: Europa | B32: Deutschland | C32: Karlsruhe
A33: Europa | B33: Deutschland | C33: Mannheim
A34: Europa | B34: Deutschland | C34: Augsburg
A35: Europa | B35: Deutschland | C35: Gelsenkirchen
A36: Europa | B36: Deutschland | C36: Mönchengladbach
A37: Europa | B37: Deutschland | C37: Braunschweig
A38: Europa | B38: Deutschland | C38: Chemnitz
A39: Europa | B39: Deutschland | C39: Aachen
A40: Europa | B40: Deutschland | C40: Halle
A41: Europa | B41: Deutschland | C41: Freiburg im Breisgau
A42: Europa | B42: Deutschland | C42: Krefeld
A43: Europa | B43: Deutschland | C43: Lübeck
A44: Europa | B44: Deutschland | C44: Oberhausen
A45: Europa | B45: Deutschland | C45: Erfurt
A46: Europa | B46: Deutschland | C46: Rostock
A47: Europa | B47: Deutschland | C47: Kassel
A48: Europa | B48: Deutschland | C48: Hagen
A49: Europa | B49: Deutschland | C49: Hamm
A50: Europa | B50: Deutschland | C50: Mülheim an der Ruhr
A51: Europa | B51: Deutschland | C51: Ludwigshafen am Rhein
A52: Europa | B52: Deutschland | C52: Oldenburg
A53: Europa | B53: Deutschland | C53: Osnabrück
A54: Europa | B54: Deutschland | C54: Leverkusen
A55: Europa | B55: Deutschland | C55: Heidelberg
A56: Europa | B56: Deutschland | C56: Solingen
A57: Europa | B57: Deutschland | C57: Darmstadt
A58: Europa | B58: Deutschland | C58: Herne
A59: Europa | B59: Deutschland | C59: Neuss
A60: Europa | B60: Deutschland | C60: Paderborn
A61: Europa | B61: Deutschland | C61: Regensburg
A62: Europa | B62: Deutschland | C62: Ingolstadt
A63: Europa | B63: Deutschland | C63: Würzburg
A64: Europa | B64: Deutschland | C64: Fürth
A65: Europa | B65: Deutschland | C65: Offenbach am Main
A66: Europa | B66: Deutschland | C66: Ulm
A67: Europa | B67: Deutschland | C67: Wolfsburg
A68: Europa | B68: Deutschland | C68: Heilbronn
A69: Europa | B69: Deutschland | C69: Pforzheim
A70: Europa | B70: Deutschland | C70: Göttingen
A71: Europa | B71: Deutschland | C71: Bottrop
A72: Europa | B72: Deutschland | C72: Reutlingen
A73: Europa | B73: Deutschland | C73: Recklinghausen
A74: Europa | B74: Deutschland | C74: Koblenz
A75: Europa | B75: Deutschland | C75: Bremerhaven
A76: Europa | B76: Deutschland | C76: Bergisch Gladbach
A77: Europa | B77: Deutschland | C77: Remscheid
A78: Europa | B78: Deutschland | C78: Jena
A79: Europa | B79: Deutschland | C79: Erlangen
A80: Europa | B80: Deutschland | C80: Trier
A81: Europa | B81: Deutschland | C81: Moers
A82: Europa | B82: Deutschland | C82: Salzgitter
A83: Europa | B83: Deutschland | C83: Siegen
A84: Europa | B84: Deutschland | C84: Hildesheim
A85: Europa | B85: Deutschland | C85: Cottbus
A86: Europa | B86: Deutschland | C86: Kaiserslautern
A87: Europa | B87: Deutschland | C87: Gütersloh
A88: Europa | B88: Deutschland | C88: Witten
A89: Europa | B89: Deutschland | C89: Hanau
A90: Europa | B90: Deutschland | C90: Gera
A91: Europa | B91: Deutschland | C91: Iserlohn
A92: Europa | B92: Deutschland | C92: Ludwigsburg
A93: Europa | B93: Deutschland | C93: Esslingen am Neckar
A94: Europa | B94: Deutschland | C94: Zwickau
A95: Europa | B95: Deutschland | C95: Düren
A96: Europa | B96: Deutschland | C96: Tübingen
A97: Europa | B97: Deutschland | C97: Flensburg
A98: Europa | B98: Deutschland | C98: Ratingen
A99: Europa | B99: Deutschland | C99: Gießen
A100: Europa | B100: Deutschland | C100: Lünen
A101: Europa | B101: Deutschland | C101: Villingen-Schwenningen
A102: Europa | B102: Deutschland | C102: Konstanz
A103: Europa | B103: Deutschland | C103: Marl
A104: Europa | B104: Deutschland | C104: Worms
A105: Europa | B105: Deutschland | C105: Dessau-Roßlau
A106: Europa | B106: Deutschland | C106: Velbert
A107: Europa | B107: Deutschland | C107: Minden
A108: Europa | B108: Deutschland | C108: Neumünster
A109: Europa | B109: Deutschland | C109: Norderstedt
A110: Europa | B110: Deutschland | C110: Delmenhorst
A111: Europa | B111: Deutschland | C111: Viersen
A112: Europa | B112: Deutschland | C112: Wilhelmshaven
A113: Europa | B113: Deutschland | C113: Bamberg
A114: Europa | B114: Deutschland | C114: Gladbeck
A115: Europa | B115: Deutschland | C115: Rheine
A116: Europa | B116: Deutschland | C116: Dorsten
A117: Europa | B117: Deutschland | C117: Marburg
A118: Europa | B118: Deutschland | C118: Troisdorf
A119: Europa | B119: Deutschland | C119: Lüneburg
A120: Europa | B120: Deutschland | C120: Castrop-Rauxel
A121: Europa | B121: Deutschland | C121: Arnsberg
A122: Europa | B122: Deutschland | C122: Detmold
A123: Europa | B123: Deutschland | C123: Lüdenscheid
A124: Europa | B124: Deutschland | C124: Bayreuth
A125: Europa | B125: Deutschland | C125: Brandenburg an der Havel
A126: Europa | B126: Deutschland | C126: Bocholt
A127: Europa | B127: Deutschland | C127: Landshut
A128: Europa | B128: Deutschland | C128: Celle
A129: Europa | B129: Deutschland | C129: Aschaffenburg
A130: Europa | B130: Deutschland | C130: Lippstadt
A131: Europa | B131: Deutschland | C131: Dinslaken
A132: Europa | B132: Deutschland | C132: Aalen
A133: Europa | B133: Deutschland | C133: Kempten
A134: Europa | B134: Deutschland | C134: Fulda
A135: Europa | B135: Deutschland | C135: Herford
A136: Europa | B136: Deutschland | C136: Kerpen
A137: Europa | B137: Deutschland | C137: Plauen
A138: Europa | B138: Deutschland | C138: Neuwied
A139: Europa | B139: Deutschland | C139: Weimar
A140: Europa | B140: Deutschland | C140: Sindelfingen
A141: Europa | B141: Deutschland | C141: Rüsselsheim am Main
A142: Europa | B142: Deutschland | C142: Dormagen
A143: Europa | B143: Deutschland | C143: Neubrandenburg
A144: Europa | B144: Deutschland | C144: Grevenbroich
A145: Europa | B145: Deutschland | C145: Rosenheim
A146: Europa | B146: Deutschland | C146: Herten
A147: Europa | B147: Deutschland | C147: Garbsen
A148: Europa | B148: Deutschland | C148: Wesel
A149: Europa | B149: Deutschland | C149: Schwäbisch Gmünd
A150: Europa | B150: Deutschland | C150: Bergheim
A151: Europa | B151: Deutschland | C151: Friedrichshafen
A152: Europa | B152: Deutschland | C152: Hürth
A153: Europa | B153: Deutschland | C153: Stralsund
A154: Europa | B154: Deutschland | C154: Offenburg
A155: Europa | B155: Deutschland | C155: Langenfeld
A156: Europa | B156: Deutschland | C156: Frankfurt
A157: Europa | B157: Deutschland | C157: Greifswald
A158: Europa | B158: Deutschland | C158: Unna
A159: Europa | B159: Deutschland | C159: Euskirchen
A160: Europa | B160: Deutschland | C160: Neu-Ulm
A161: Europa | B161: Deutschland | C161: Göppingen
A162: Europa | B162: Deutschland | C162: Hameln
A163: Europa | B163: Deutschland | C163: Stolberg
A164: Europa | B164: Deutschland | C164: Sankt Augustin
A165: Europa | B165: Deutschland | C165: Eschweiler
A166: Europa | B166: Deutschland | C166: Görlitz
A167: Europa | B167: Deutschland | C167: Hilden
A168: Europa | B168: Deutschland | C168: Meerbusch
A169: Europa | B169: Deutschland | C169: Waiblingen
A170: Europa | B170: Deutschland | C170: Hattingen
A171: Europa | B171: Deutschland | C171: Baden-Baden
A172: Europa | B172: Deutschland | C172: Lingen
A173: Europa | B173: Deutschland | C173: Pulheim
A174: Europa | B174: Deutschland | C174: Bad Salzuflen
A175: Europa | B175: Deutschland | C175: Bad Homburg vor der Höhe
A176: Europa | B176: Deutschland | C176: Langenhagen
A177: Europa | B177: Deutschland | C177: Menden
A178: Europa | B178: Deutschland | C178: Nordhorn
A179: Europa | B179: Deutschland | C179: Neustadt an der Weinstraße
A180: Europa | B180: Deutschland | C180: Ahlen
A181: Europa | B181: Deutschland | C181: Schweinfurt
A182: Europa | B182: Deutschland | C182: Wolfenbüttel
A183: Europa | B183: Deutschland | C183: Wetzlar
A184: Europa | B184: Deutschland | C184: Frechen
A185: Europa | B185: Deutschland | C185: Goslar
A186: Europa | B186: Deutschland | C186: Ibbenbüren
A187: Europa | B187: Deutschland | C187: Passau
A188: Europa | B188: Deutschland | C188: Kleve
A189: Europa | B189: Deutschland | C189: Willich
A190: Europa | B190: Deutschland | C190: Speyer
A191: Europa | B191: Deutschland | C191: Emden
A192: Europa | B192: Deutschland | C192: Gummersbach
A193: Europa | B193: Deutschland | C193: Ravensburg
A194: Europa | B194: Deutschland | C194: Bad Kreuznach
A195: Europa | B195: Deutschland | C195: Peine
A196: Europa | B196: Deutschland | C196: Böblingen
A197: Europa | B197: Deutschland | C197: Erftstadt
A198: Europa | B198: Deutschland | C198: Elmshorn
A199: Europa | B199: Deutschland | C199: Lörrach
A200: Europa | B200: Deutschland | C200: Bad Oeynhausen
... 553 more rows

Sheet Tabelle8 (hidden)
F1: markusschmid3@gmx.de
F2: markus.schmid@wusbt.net

Sheet Master (hidden)

Sheet L-DB (hidden)
A1: id | B1: email | C1: pw | D1: time | E1: outlook | F1: key | H1: 16 | I1: TBC | J1: TBCTS | K1: Delta | L1: bp | M1: upcheck | N1: delta | O1: s1 | P1: s2 | Q1: s3 | R1: s4 | S1: Status
A2: 1 | B2: a | C2: b | D2: 2020-07-07 | E2: synchron | G2: CPU0 | H2: Intel(R) Core(TM) i5-6200U CPU @ 2.30GHz | I2: 2400 | J2: BFEBFBFF000406E3 | K2: LAPTOP-0FUFE62J | M2: 2020-07-13 | S2: logged in
A3: 2 | B3: a | C3: b | D3: 2020-07-07 | E3: synchron | G3: CPU0 | H3: Intel(R) Core(TM) i5-6200U CPU @ 2.30GHz | I3: 2400 | J3: BFEBFBFF000406E3 | K3: LAPTOP-0FUFE62J

Sheet s2 (hidden)
A1: id | B1: Aktivierung | C1: G1 | D1: Wert | E1: Delta | F1: G2 | G1: Wert | H1: Delta | I1: G3 | J1: Wert | K1: Delta | L1: G4 | M1: Wert | N1: Delta | O1: G5 | P1: Wert | Q1: Delta | R1: G6 | S1: Wert | T1: Delta | U1: G7 | V1: Wert | W1: Delta | X1: G7 | Y1: Wert | Z1: Delta
A2: 1 | B2: 1 | C2: Online/OFFline | D2: 1 | E2: 0 | F2: Counter | I2: Off5Datum | J2: 2020-06-15 | K2: 1 | L2: Datum_Atomic | M2: 17.03.2021 | O2: Uhrzeit_Atomic | P2: 20:18:21 | R2: Datum jetzt | S2: 2021-03-17 | U2: Uhrzeit jetzt | V2: 20:18:21
A3: 2 | B3: 1 | C3: TimeOK | D3: 1 | E3: 3/17/2021 8:18:21 PM | F3: DatumVergleich | G3: 0 | I3: UhrzeitVergleich | J3: -0.00 | K3: 1 | L3: Counter | R3: TimestampD_OK | S3: 2021-03-17 | U3: TimestampU_OK | V3: 20:18:21
A4: 3 | B4: 1 | C4: TimeOut | F4: TimeShort | I4: Datum | L4: Uhrzeit | O4: TimeLong | R4: Datum | U4: Uhrzeit
A5: 4 | B5: 1 | C5: TradeBaseInstalled | D5: 1 | F5: Licensed | I5: LoginLicensed | L5: Resttime2Download | O5: Datum jetzt | R5: Uhrzeit jetzt
A6: 5 | B6: 1 | C6: LoginSperre | F6: Datum | G6: 2021-09-03 | I6: Uhrzeit | J6: 16:25:08 | L6: Sperre | O6: Restzeit | P6: 0.00000000000000011102 | R6: Differenz

Sheet PBPLANS (hidden)
A1: ID.Nr | B1: ID.Sum | C1: ID.DB | D1: ID.L1 | E1: ID.L2 | F1: ID.L3 | G1: ID.L4 | H1: ID.L5 | I1: ID.L6 | J1: ID.L7 | K1: ID.P | L1: ID.L | M1: ID.F | N1: Users | O1: PCs | P1: Plan | Q1: License | R1: Features | S1: Beschreibung | T1: Monthly | U1: Annually | V1: Price | W1: Yearprice | X1: Pauseprice | Y1: Picture | Z1: Prio | AA1: Kategorie
A2: 1 | B2: 1_1_1_1 | C2: 1 | D2: 1_1 | E2: 1_1 | F2: 1_1_1 | G2: 1_1 | H2: 1_1_1 | I2: 1_1_1_1 | K2: 1 | L2: 1 | M2: 1 | N2: 1 | O2: 1 | P2: Basic | Q2: Free | R2: Beschreibung/ Description | S2: ="Program Base Cybernetic's presents: "&N1&" : "&N2&", "&O1&" : "&O2&", "&P2&" "&$P$1&" "&Q2&" : "&T2&" - / -"&U2&" - / -"&" "&$X$1&" "&X2&" €" -> Program Base Cybernetic's presents: Users : 1, PCs : 1, Basic Plan Free : 0 €/mo - / -0 €/per year - / - Pauseprice 0 € | T2: 0 €/mo | U2: 0 €/per year | V2: 0 | W2: =V2*12 -> 0 | X2: 0 | Z2: 1 | AA2: Business Plans
A3: 2 | B3: 1_1_1_2 | C3: 1 | F3: 1_1_2 | G3: 1_1 | H3: 1_1_1 | I3: 1_1_1_2 | M3: 2 | R3: Cybernetics | S3: Hier finden Sie die Teile zur Cybernetics Program Base, die Sie so wertvoll machen. Die Funktionen (Cybernetics), auch bekannt unter Bots oder Maschinen (Machineparks) beschreibt das Gesamtkonstrukt der PBC am Besten. Sie können sich einen rießigen Maschinenpark mit kybernetischen Objekten dabei vorstellen, die super leicht zum anpassen, implementieren und instanzieren sind. Cybernetics bieten im Gesamten einfache Bedienbarkeit, stetigen Service, Upgradebarkeit, individuelle Konfigurierbarkeit und Einzigartigkeit. Alle verfügbaren Funktionen können über die Plattform (PB Cybernetics) abgefragt werden. Viel Spaß, wünschen wir beim erstellen Ihrer eigenen und einzigartigen Cybernetic Program Base mit Funktionen (Cybernetics, Bots, Generatoren, Maschienen, Terminals uvm.). | T3: 0 €/mo | U3: 0 €/per year | V3: 0 | W3: 0 | X3: 0 | Z3: 2 | AA3: Business Plans
A4: 3 | B4: 1_1_1_3 | C4: 1 | F4: 1_1_3 | G4: 1_1 | H4: 1_1_1 | I4: 1_1_1_3 | M4: 3 | R4: Bestellen/ Ordern | S4: Eine der wichtigsten Basisfunktionen ist das Bestellen/ Ordern bei Program Base Cybernetics. Über die PBC Plattform oder dem Overview wählen Sie Ihr gewünschtes Produkt durch anklicken aus. Diese eine Auswahl wird Ihnen im Anschluss über "Auswahl/Selection" im etwas größeren Kästchen auf der PBC Plattform mit zugehörigen Features angezeigt. Durch anklicken der einzelnen Features, erhalten Sie nähere Informationen über Ihre Auswahl. Durch klicken/drücken des Bestell/ Order Buttons, öffnet sich ein Fenster mit den entsprechenden Bestellinformationen, die Sie an PBC schicken. Durch Bestätigung des Sende-Vorgangs, also durch das Abschicken Ihrer Bestellung/ Order, setzen Sie den Kauf in Gang. In den Incoterms können Sie nachlesen, welche weiteren Optionen Sie haben und welchen Abrechnungszeiträume (ab Erhalt der Aktivierungsschlüssel zu den Bestellungen) gelten. Bei den Lizensverträgen, können Sie eine Vorauswahl machen, ob Sie beispielsweise eine monatliche Abbuchung oder eine einmalige jährliche Abbuchung (ermäßigt) möchten. | T4: 0 €/mo | U4: 0 €/per year | V4: 0 | W4: 0 | X4: 0 | Z4: 3 | AA4: Business Plans
A5: 4 | B5: 1_1_1_4 | C5: 1 | F5: 1_1_4 | G5: 1_1 | H5: 1_1_1 | I5: 1_1_1_4 | M5: 4 | R5: Warenkorb/ Cart | S5: Sammelbestellungen können Sie über die Warenkorb/ Cart Möglichkeit machen. Wir empfehlen diesen Weg bei einer Bestellmenge über eins, also bei einer gewünschten Bestellauswahl von mehr als einem konkreten Produkt von der Plattform. Im Log können Sie Ihre gemachten Bestellungen (Outlook Synchronisierung) einsehen und behalten somit immer Überblick über Ihre aktuellen Vorgänge. | T5: 0 €/mo | U5: 0 €/per year | V5: 0 | W5: 0 | X5: 0 | Z5: 4 | AA5: Business Plans
A6: 5 | B6: 1_1_1_5 | C6: 1 | F6: 1_1_5 | G6: 1_1 | H6: 1_1_1 | I6: 1_1_1_5 | M6: 5 | R6: Eigenen Account/ Own Account | S6: PBC oder auch Program Base Cybernetics genannt, stellt hier den Basis Plan mit kostenloser Lizens (Free)vor, welche über eine Vielzahl an nützlichen Grund-Funktionen verfügt . Schon mit der Free License, können Sie beispielsweise Freunde affilieren (Geld verdienen), verschiedenste Produkte auswählen, neue Funktionen zur "Program Base" hinzufügen oder einfach und präzise, Ihr eigenes Profil erstellen und verwalten. | T6: 0 €/mo | U6: 0 €/per year | V6: 0 | W6: 0 | X6: 0 | Z6: 5 | AA6: Business Plans
A7: 6 | B7: 1_1_1_6 | C7: 1 | F7: 1_1_6 | G7: 1_1 | H7: 1_1_1 | I7: 1_1_1_6 | M7: 6 | R7: Neuigkeiten/ News | S7: Über den Neuigkeiten/ News Button, bekommen Sie im Overview alle Informationen, über Updates, neue Entwicklungen und Geschenke, angezeigt. Hieraus können Sie eine direkte Auswahl treffen. Mit vielfältigen und unterschiedlichen Specials möchten wir von Program Base Cybernetics unsere Kundinnen und Kunden auf dem aktuellen Stand der Entwicklungen und des Fortschritts halten, sodass Sie größtmöglichen Nutzen und Gewinn aus Ihrer Cybernetic Base haben, schaffen und generieren können. | T7: 0 €/mo | U7: 0 €/per year | V7: 0 | W7: 0 | X7: 0 | Z7: 6 | AA7: Business Plans
A8: 7 | B8: 1_1_1_7 | C8: 1 | F8: 1_1_7 | G8: 1_1 | H8: 1_1_1 | I8: 1_1_1_7 | M8: 7 | R8: Einladung/ Invitation | S8: Die Einladung/ Invitation Funktion der Cybernetic Program Base ermöglicht Ihnen über Social Media (Facebook, Twitter ect.) all Ihren Freunden auf einmal eine Einladung zu Program Base Cybernetics zu schicken. Mit Ihren persönlichen Affiliation Key, wird Ihnen jede erfolgreiche Transaktion Ihrem Konto gutgeschrieben. Die Werben/ Affiliierungskurse können bis zu 5 € pro erfolgreich geworbene/n Kunden/ Kundin betragen. Laut Hochrechnung ist dadurch schnell eine jährliche Balance (Kontostandsausgleich) für qualitativ hochwertigste und einzigartige Cybernetic Basen möglich. Der Unterschied zu der Werben/Affiliate Funktion ist der, dass Sie dort per E-Mail Werben/ Affilieren und über Einladung/Invitation auf bekannten Social Media Seiten zu PBC einladen. Ein sehr entgegenkommendes Angebot seitens PBC und zu empfehlen täglich zu werben. | T8: 0 €/mo | U8: 0 €/per year | V8: 0 | W8: 0 | X8: 0 | Z8: 7 | AA8: Business Plans
A9: 8 | B9: 1_1_1_8 | C9: 1 | F9: 1_1_8 | G9: 1_1 | H9: 1_1_1 | I9: 1_1_1_8 | M9: 8 | R9: Geschenke/ Gifts | S9: Program Base Cybernetics möchte die Kunden und Kundinnen, belohnen und danken. Durch tägliche Ausschüttung von Rabatten, Gutscheinen, Spezialangeboten und kostenlosen Extrafunktionen, werden alle Kundinnen und Kunden beschenkt. Die erhaltenen Güter können gesammelt werden und bei Neukäufen gutgeschrieben werden. Manche Angebote laufen zeitlich ab, daher empfehlen wir, die Ermäßigungen sobald Sie diese erhalten haben, zu verwenden. | T9: 0 €/mo | U9: 0 €/per year | V9: 0 | W9: 0 | X9: 0 | Z9: 8 | AA9: Business Plans
A10: 9 | B10: 1_1_1_9 | C10: 1 | F10: 1_1_9 | G10: 1_1 | H10: 1_1_1 | I10: 1_1_1_9 | M10: 9 | R10: Werben/ Affiliate | S10: Geld verdienen bei PBC? Das ist mehr als nur möglich. Mit deinem persönlichen Affiliation Key, kannst du über den Werbe und Affiliate Button, Freunde und Bekannte dazu bewegen, Kunde bei Program Base Cybernetics zu werden. Dafür gibt dir PBC pro erfolgreich geworbenen Kunden bis zu 5€. Das Guthaben wird dir auf deinem Konto gut geschrieben. Den aktuellen Werbekurswert erfährst du über den News Button und wird dir direkt im Overview angezeigt. Dein Guthaben kannst du direkt für neue Bestellungen verwenden oder beispielsweise von deinen monatlichen Plankosten abziehen. Die Einstellungen zu den Transaktionsprozessen findest du über den Button "Balance". Im Laufe der Zeit werden kontinuierlich Werbe/ Affiliation Quests erneuert und entwickelt. Wir empfehlen daher stets die Augen nach neuen Angeboten offen zu halten Viel Spaß beim Werben/ Affilieren/ Geldverdienen. | T10: 0 €/mo | U10: 0 €/per year | V10: 0 | W10: 0 | X10: 0 | Z10: 9 | AA10: Business Plans
A11: 10 | B11: 1_1_1_10 | C11: 1 | F11: 1_1_10 | G11: 1_1 | H11: 1_1_1 | I11: 1_1_1_10 | M11: 10 | R11: Aktualisieren/ Actualize | S11: Mittels Aktualisieren/ Actualize erhalten Sie automatisch die neuesten Angebote und Vorschläge zu Ihrer persönlichen Cybernetic's Program Base. Somit erneuern Sie Ihren aktuellen Stand der PBC und erfahren dadurch von täglichen Belohnungen, bekommen gelegentlich Gutscheine und sonstige Benefits, als zusätzlicher Vorteil fürs dabeibleiben und nutzen. | T11: 0 €/mo | U11: 0 €/per year | V11: 0 | W11: 0 | X11: 0 | Z11: 10 | AA11: Business Plans
A12: 11 | B12: 1_1_1_11 | C12: 1 | F12: 1_1_11 | G12: 1_1 | H12: 1_1_1 | I12: 1_1_1_11 | M12: 11 | R12: Aktivierungsfunktion/ Activationfunction | S12: Einfach und schnell können Sie auch schon, ab dem Download, Ihre Program Base aktivieren. In der 14 Tage Phase, stehen Ihnen viele Features bereit. Es ist beispielsweise möglich neue Programme zu durchstöbern, verschiedenste Produkte zu bestellen (ordern), Pläne wechseln, vergleichen und vieles mehr. Zur Aktivierung erhalten Sie einen einzigartigen Lizenzschlüssel, den Sie Ihren Support Bot mitteilen müssen, damit Er/ Sie Ihre Basis freischalten kann. Program Base Cybernetic's KIs (Künstliche Intelligenzen) kümmern sich im System und im Service, um unverzügliche Bearbeitung der Aktivierung und sonstige Aufgaben. Dadurch können Wartezeiten reduziert werden und unnötige Aufwände beseitigt werden, die wir unseren Kunden nicht zumuten möchten. Die PBC soll ja das Leben erleichtern und nicht erschweren. Wir wünschen viel Spaß, und freuen uns auf Ihre erste Aktivierung. | T12: 0 €/mo | U12: 0 €/per year | V12: 0 | W12: 0 | X12: 0 | Z12: 11 | AA12: Business Plans
A13: 12 | B13: 1_1_1_12 | C13: 1 | F13: 1_1_12 | G13: 1_1 | H13: 1_1_1 | I13: 1_1_1_12 | M13: 12 | R13: Entriegeln/ Unlock | S13: Die Unlock Funktion entsperrt weitere Marktplätze für die Kunden von Program Base Cybernetics oder Partner. Zur sicheren Bedienung der Funktionen und Programme sind die Locks kinderleicht zu entschlüsseln und auf das wesentliche reduziert. | T13: 0 €/mo | U13: 0 €/per year | V13: 0 | W13: 0 | X13: 0 | Z13: 12 | AA13: Business Plans
A14: 13 | B14: 1_1_1_13 | C14: 1 | F14: 1_1_13 | G14: 1_1 | H14: 1_1_1 | I14: 1_1_1_13 | M14: 13 | R14: Pausierfunktion/ Pausefunction | S14: Pausieren leicht gemacht. Program Base Cybernetics bietet jederzeit auch eine Pause, seis für eine etwas längere Dauer oder aber auch nur kurze Zeit. Ein Reaktivierungsschlüssel schaltet Ihre Program Base wieder aktiv, sodass Sie entweder dort weitermachen können, wo Sie stoppten oder mit neuen, in der Pause gesammelten Ideen und Elan, starten. Bei der Pausierung werden die Plankosten um 90% auf 10% reduziert und ein Reaktivierungsschlüssel übermittelt. Diesen Schlüssel können Sie aber auch jederzeit erneut abfragen, sollte Ihnen dieser während Ihrer Pausierung abhanden gekommen sein, was durchaus jedem passieren kann. Kein Problem. | T14: 0 €/mo | U14: 0 €/per year | V14: 0 | W14: 0 | X14: 0 | Z14: 13 | AA14: Business Plans
A15: 14 | B15: 1_1_1_14 | C15: 1 | F15: 1_1_14 | G15: 1_1 | H15: 1_1_1 | I15: 1_1_1_14 | M15: 14 | R15: Reaktivierung/ Reactivation | S15: Eine Reaktivierung der Program Base, nach Pausierung, ist jederzeit selbst bestimmbar möglich. Eine Reaktivierung ist bis zu zehn mal möglich, bis Sie Kontakt mit unseren Accountadministratoren aufnehmen müssen, da unser System bei zu häufiger Beanspruchung dieser Funktion empfindlich wird, aber keine Sorge, pausieren und reaktivieren ist jederzeit möglich. | T15: 0 €/mo | U15: 0 €/per year | V15: 0 | W15: 0 | X15: 0 | Z15: 14 | AA15: Business Plans
A16: 15 | B16: 1_1_1_15 | C16: 1 | F16: 1_1_15 | G16: 1_1 | H16: 1_1_1 | I16: 1_1_1_15 | M16: 15 | R16: Deaktivierung/ Deactivation | S16: Über die Deaktivierung können Sie Ihre gekauften Produkte, vollständig deaktivieren und kündigen. Sollten Sie beispielsweise für eine unabsehbare Zeit absolut keinen Bedarf in der Program Base finden oder sehen können, so empfehlen wir eine Deaktivierung zur nächstmöglichen Zahlungsanweisung. Wir verbessern unsere Basen kontinuierlich weiter, vielleicht finden Sie etwas später Ihre richtigen Instrumente, Tools und Funktionen, Ihre Basis auszubauen und individuell und einzigartig zu konfigurieren. Bestimmte Funktionen (s. PB Functions (PBPLANS)) generieren ganz besondere Sachen für unsere Kunden, vielleicht haben Sie diese noch garnicht gefunden oder besuchen Sie unsere treuen Partnerwebseiten. Bei Verbesserungswünschen, Ideen oder besonderen Fällen können Sie auch unsere Kontakte nutzen. Wir wünschen Ihnen Bestes. Ihre PBCs. | T16: 0 €/mo | U16: 0 €/per year | V16: 0 | W16: 0 | X16: 0 | Z16: 15 | AA16: Business Plans
A17: 16 | B17: 1_1_1_16 | C17: 1 | F17: 1_1_16 | G17: 1_1 | H17: 1_1_1 | I17: 1_1_1_16 | M17: 16 | R17: Neuerung/ Update | S17: Updates ohne Programme und Programme ohne Updates, wären einfach nur langweilig. Daher ergehen im Namen der Program Base Cybernetics super coole und neue Updates zu Ihrer individuellen Program Base, zu Funktionen, zu neuen Featuren und vielem mehr. Durch auslösen des Update Buttons, erhalten Sie Zugang zu beispielsweise einer neuen Program Base, verbesserten Logiken oder einfach besseren Funktionen. Die Update Funktion ist so konzipiert, dass Sie so wenig Aufwand haben wie möglich, die Neuerungen kostenlos sind, Preise reduziert und selbstverständlich kompatibel zu Ihren bisherigen Entwicklungsstatus sind. Bei Problemen, die eigentlich nicht aufkommen, können Sie sich jederzeit an den KI- Service der PBC wenden. Künstlich intelligente Systeme warten nur darauf, Probleme zu beseitigen und die Zufriedenheit und Sicherheit der PBC-Kundinnen und Kunden zu gewährleisten und zu erfüllen. | T17: 0 €/mo | U17: 0 €/per year | V17: 0 | W17: 0 | X17: 0 | Z17: 16 | AA17: Business Plans
A18: 17 | B18: 1_1_1_17 | C18: 1 | F18: 1_1_17 | G18: 1_1 | H18: 1_1_1 | I18: 1_1_1_17 | M18: 17 | R18: Upgrade/ Downgrade | S18: PBC bietet neben Updates auch Upgrades an. Der Unterschied zwischen Updates und Upgrades liegt in der Segmentierung der Produkte und Services. Ein Upgrade beispielsweise kann als konkrete Erweiterung in Form eines seperaten Produktes gesehen werden. Ein Upgrade reduziert in der Regel Aufwände und erleichtert einem seine Cybernetic Program Base. Möchten Sie beispielsweise einen Plan Upgraden oder Downgraden, so wären Sie mit diesem Button an richtiger Stelle. Wenn Sie eine gebuchte Funktion doch nicht mehr haben möchten, können Sie durch Downgraden Ihrer Program Base die Funktion entfernen und somit die monatlichen Kosten reduzieren. Die Buchungen erfolgen immer zum nächstmöglichen Abrechnungszeitraum. Wir empfehlen diese Funktion zur nachhaltigen Steigerung der Funktionalitäten Ihrer Cybernetic Base zu nutzen und bedanken uns selbstverständlich für jegliches Upgrade, aber auch Anpassung Ihrer Cybernetic Base an Ihre Bedürfnisse. Dadurch können wir sicher gehen, dass wir unsere Kundinnen und Kunden glücklicher machen können. Das ist unser Ziel und dadurch haben wir gewonnen und dadurch gewinnen wir immer weiter. | T18: 0 €/mo | U18: 0 €/per year | V18: 0 | W18: 0 | X18: 0 | Z18: 17 | AA18: Business Plans
A19: 18 | B19: 1_1_1_18 | C19: 1 | F19: 1_1_18 | G19: 1_1 | H19: 1_1_1 | I19: 1_1_1_18 | M19: 18 | R19: Kontostand/ Balance | S19: Der Kontostand/ Balance Ihrer Program Base gibt Ihnen Auskunft über Ihr zusätzlich gesammeltes Vermögen durch Werben/ Affilieren, Rabattkampagnien, Einladungen und vielen weiteren Möglichkeiten. Diese Gutschriften, die auch durch Gutscheine erhältlich sind, können von Ihren monatlichen oder jährlichen Plankosten (Plan+Cybernetics) abgezogen werden oder zu Neueinkäufen verwendet werden. Je nach Engagement können Sie es schaffen, eine komplette hochwertige Program Base mit Null Kostenaufwänden zu erstellen. Wir wünschen Ihnen viel Erfolg dabei und fröhliches erschaffen. | T19: 0 €/mo | U19: 0 €/per year | V19: 0 | W19: 0 | X19: 0 | Z19: 18 | AA19: Business Plans
A20: 19 | B20: 1_1_1_19 | C20: 1 | F20: 1_1_19 | G20: 1_1 | H20: 1_1_1 | I20: 1_1_1_19 | M20: 19 | R20: Kontakt/ Contact | S20: Fragen gibt es immer und antworten tuen wir gern. Daher können Kunden über die Kontakt/ Contact Möglichkeit im Overview, eine Verbindung mit dem KI Service der PBC aufnehmen. Sie können beispielsweise größere Bestellanfragen machen, Fragen zu den Produkten stellen oder Kritik, Ideen und Empfehlungen schicken. Der PBC Service steht Ihnen jederzeit bereit. | T20: 0 €/mo | U20: 0 €/per year | V20: 0 | W20: 0 | X20: 0 | AA20: Business Plans
A21: 20 | B21: 1_1_1_20 | C21: 1 | E21: 1_1 | F21: 1_1_20 | G21: 1_2 | H21: 1_1_2 | I21: 1_1_2_20 | L21: 2 | M21: 20 | N21: 2 | O21: 5 | Q21: Discover | R21: Beschreibung/ Description | S21: ="Program Base Cybernetic's presents: "&P21&" "&$P$1&" "&Q21&" : "&T21&" - / -"&U21&" - / -"&" "&$X$1&" "&X21&" €" -> Program Base Cybernetic's presents: Plan Discover : 29 €/mo - / -348 € per year - / - Pauseprice 2,9 € | T21: =V21&" €/mo" -> 29 €/mo | U21: =W21&" € per year" -> 348 € per year | V21: 29 | W21: =V21*12 -> 348 | X21: =V21*0.1 -> 2.9 | AA21: Business Plans
A22: 21 | B22: 1_1_1_21 | C22: 1 | F22: 1_1_21 | G22: 1_2 | H22: 1_1_2 | I22: 1_1_2_21 | M22: 21 | R22: Cybernetics | S22: Hier finden Sie die Teile zur Cybernetics Program Base, die Sie so wertvoll machen. Die Funktionen (Cybernetics), auch bekannt unter Bots oder Maschinen (Machineparks) beschreibt das Gesamtkonstrukt der PBC am Besten. Sie können sich einen rießigen Maschinenpark mit kybernetischen Objekten dabei vorstellen, die super leicht zum anpassen, implementieren und instanzieren sind. Cybernetics bieten im Gesamten einfache Bedienbarkeit, stetigen Service, Upgradebarkeit, individuelle Konfigurierbarkeit und Einzigartigkeit. Alle verfügbaren Funktionen können über die Plattform (PB Cybernetics) abgefragt werden. Viel Spaß, wünschen wir beim erstellen Ihrer eigenen und einzigartigen Cybernetic Program Base mit Funktionen (Cybernetics, Bots, Generatoren, Maschienen, Terminals uvm.). | T22: 29 €/mo | U22: 348 € per year | V22: 29 | W22: 348 | X22: 2.9 | AA22: Business Plans
A23: 22 | B23: 1_1_1_22 | C23: 1 | F23: 1_1_22 | G23: 1_2 | H23: 1_1_2 | I23: 1_1_2_22 | M23: 22 | R23: Bestellen/ Ordern | S23: Eine der wichtigsten Basisfunktionen ist das Bestellen/ Ordern bei Program Base Cybernetics. Über die PBC Plattform oder dem Overview wählen Sie Ihr gewünschtes Produkt durch anklicken aus. Diese eine Auswahl wird Ihnen im Anschluss über "Auswahl/Selection" im etwas größeren Kästchen auf der PBC Plattform mit zugehörigen Features angezeigt. Durch anklicken der einzelnen Features, erhalten Sie nähere Informationen über Ihre Auswahl. Durch klicken/drücken des Bestell/ Order Buttons, öffnet sich ein Fenster mit den entsprechenden Bestellinformationen, die Sie an PBC schicken. Durch Bestätigung des Sende-Vorgangs, also durch das Abschicken Ihrer Bestellung/ Order, setzen Sie den Kauf in Gang. In den Incoterms können Sie nachlesen, welche weiteren Optionen Sie haben und welchen Abrechnungszeiträume (ab Erhalt der Aktivierungsschlüssel zu den Bestellungen) gelten. Bei den Lizensverträgen, können Sie eine Vorauswahl machen, ob Sie beispielsweise eine monatliche Abbuchung oder eine einmalige jährliche Abbuchung (ermäßigt) möchten. | T23: 29 €/mo | U23: 348 € per year | V23: 29 | W23: 348 | X23: 2.9 | AA23: Business Plans
A24: 23 | B24: 1_1_1_23 | C24: 1 | F24: 1_1_23 | G24: 1_2 | H24: 1_1_2 | I24: 1_1_2_23 | M24: 23 | R24: Warenkorb/ Cart | S24: Sammelbestellungen können Sie über die Warenkorb/ Cart Möglichkeit machen. Wir empfehlen diesen Weg bei einer Bestellmenge über eins, also bei einer gewünschten Bestellauswahl von mehr als einem konkreten Produkt von der Plattform. Im Log können Sie Ihre gemachten Bestellungen (Outlook Synchronisierung) einsehen und behalten somit immer Überblick über Ihre aktuellen Vorgänge. | T24: 29 €/mo | U24: 348 € per year | V24: 29 | W24: 348 | X24: 2.9 | AA24: Business Plans
A25: 24 | B25: 1_1_1_24 | C25: 1 | F25: 1_1_24 | G25: 1_2 | H25: 1_1_2 | I25: 1_1_2_24 | M25: 24 | R25: Eigenen Account/ Own Account | S25: PBC oder auch Program Base Cybernetics genannt, stellt hier den Basis Plan mit kostenloser Lizens (Free)vor, welche über eine Vielzahl an nützlichen Grund-Funktionen verfügt . Schon mit der Free License, können Sie beispielsweise Freunde affilieren (Geld verdienen), verschiedenste Produkte auswählen, neue Funktionen zur "Program Base" hinzufügen oder einfach und präzise, Ihr eigenes Profil erstellen und verwalten. | T25: 29 €/mo | U25: 348 € per year | V25: 29 | W25: 348 | X25: 2.9 | AA25: Business Plans
A26: 25 | B26: 1_1_1_25 | C26: 1 | F26: 1_1_25 | G26: 1_2 | H26: 1_1_2 | I26: 1_1_2_25 | M26: 25 | R26: Neuigkeiten/ News | S26: Über den Neuigkeiten/ News Button, bekommen Sie im Overview alle Informationen, über Updates, neue Entwicklungen und Geschenke, angezeigt. Hieraus können Sie eine direkte Auswahl treffen. Mit vielfältigen und unterschiedlichen Specials möchten wir von Program Base Cybernetics unsere Kundinnen und Kunden auf dem aktuellen Stand der Entwicklungen und des Fortschritts halten, sodass Sie größtmöglichen Nutzen und Gewinn aus Ihrer Cybernetic Base haben, schaffen und generieren können. | T26: 29 €/mo | U26: 348 € per year | V26: 29 | W26: 348 | X26: 2.9 | AA26: Business Plans
A27: 26 | B27: 1_1_1_26 | C27: 1 | F27: 1_1_26 | G27: 1_2 | H27: 1_1_2 | I27: 1_1_2_26 | M27: 26 | R27: Einladung/ Invitation | S27: Die Einladung/ Invitation Funktion der Cybernetic Program Base ermöglicht Ihnen über Social Media (Facebook, Twitter ect.) all Ihren Freunden auf einmal eine Einladung zu Program Base Cybernetics zu schicken. Mit Ihren persönlichen Affiliation Key, wird Ihnen jede erfolgreiche Transaktion Ihrem Konto gutgeschrieben. Die Werben/ Affiliierungskurse können bis zu 5 € pro erfolgreich geworbene/n Kunden/ Kundin betragen. Laut Hochrechnung ist dadurch schnell eine jährliche Balance (Kontostandsausgleich) für qualitativ hochwertigste und einzigartige Cybernetic Basen möglich. Der Unterschied zu der Werben/Affiliate Funktion ist der, dass Sie dort per E-Mail Werben/ Affilieren und über Einladung/Invitation auf bekannten Social Media Seiten zu PBC einladen. Ein sehr entgegenkommendes Angebot seitens PBC und zu empfehlen täglich zu werben. | T27: 29 €/mo | U27: 348 € per year | V27: 29 | W27: 348 | X27: 2.9 | AA27: Business Plans
A28: 27 | B28: 1_1_1_27 | C28: 1 | F28: 1_1_27 | G28: 1_2 | H28: 1_1_2 | I28: 1_1_2_27 | M28: 27 | R28: Geschenke/ Gifts | S28: Program Base Cybernetics möchte die Kunden und Kundinnen, belohnen und danken. Durch tägliche Ausschüttung von Rabatten, Gutscheinen, Spezialangeboten und kostenlosen Extrafunktionen, werden alle Kundinnen und Kunden beschenkt. Die erhaltenen Güter können gesammelt werden und bei Neukäufen gutgeschrieben werden. Manche Angebote laufen zeitlich ab, daher empfehlen wir, die Ermäßigungen sobald Sie diese erhalten haben, zu verwenden. | T28: 29 €/mo | U28: 348 € per year | V28: 29 | W28: 348 | X28: 2.9 | AA28: Business Plans
A29: 28 | B29: 1_1_1_28 | C29: 1 | F29: 1_1_28 | G29: 1_2 | H29: 1_1_2 | I29: 1_1_2_28 | M29: 28 | R29: Werben/ Affiliate | S29: Geld verdienen bei PBC? Das ist mehr als nur möglich. Mit deinem persönlichen Affiliation Key, kannst du über den Werbe und Affiliate Button, Freunde und Bekannte dazu bewegen, Kunde bei Program Base Cybernetics zu werden. Dafür gibt dir PBC pro erfolgreich geworbenen Kunden bis zu 5€. Das Guthaben wird dir auf deinem Konto gut geschrieben. Den aktuellen Werbekurswert erfährst du über den News Button und wird dir direkt im Overview angezeigt. Dein Guthaben kannst du direkt für neue Bestellungen verwenden oder beispielsweise von deinen monatlichen Plankosten abziehen. Die Einstellungen zu den Transaktionsprozessen findest du über den Button "Balance". Im Laufe der Zeit werden kontinuierlich Werbe/ Affiliation Quests erneuert und entwickelt. Wir empfehlen daher stets die Augen nach neuen Angeboten offen zu halten Viel Spaß beim Werben/ Affilieren/ Geldverdienen. | T29: 29 €/mo | U29: 348 € per year | V29: 29 | W29: 348 | X29: 2.9 | AA29: Business Plans
A30: 29 | B30: 1_1_1_29 | C30: 1 | F30: 1_1_29 | G30: 1_2 | H30: 1_1_2 | I30: 1_1_2_29 | M30: 29 | R30: Aktualisieren/ Actualize | S30: Mittels Aktualisieren/ Actualize erhalten Sie automatisch die neuesten Angebote und Vorschläge zu Ihrer persönlichen Cybernetic's Program Base. Somit erneuern Sie Ihren aktuellen Stand der PBC und erfahren dadurch von täglichen Belohnungen, bekommen gelegentlich Gutscheine und sonstige Benefits, als zusätzlicher Vorteil fürs dabeibleiben und nutzen. | T30: 29 €/mo | U30: 348 € per year | V30: 29 | W30: 348 | X30: 2.9 | AA30: Business Plans
A31: 30 | B31: 1_1_1_30 | C31: 1 | F31: 1_1_30 | G31: 1_2 | H31: 1_1_2 | I31: 1_1_2_30 | M31: 30 | R31: Aktivierungsfunktion/ Activationfunction | S31: Einfach und schnell können Sie auch schon, ab dem Download, Ihre Program Base aktivieren. In der 14 Tage Phase, stehen Ihnen viele Features bereit. Es ist beispielsweise möglich neue Programme zu durchstöbern, verschiedenste Produkte zu bestellen (ordern), Pläne wechseln, vergleichen und vieles mehr. Zur Aktivierung erhalten Sie einen einzigartigen Lizenzschlüssel, den Sie Ihren Support Bot mitteilen müssen, damit Er/ Sie Ihre Basis freischalten kann. Program Base Cybernetic's KIs (Künstliche Intelligenzen) kümmern sich im System und im Service, um unverzügliche Bearbeitung der Aktivierung und sonstige Aufgaben. Dadurch können Wartezeiten reduziert werden und unnötige Aufwände beseitigt werden, die wir unseren Kunden nicht zumuten möchten. Die PBC soll ja das Leben erleichtern und nicht erschweren. Wir wünschen viel Spaß, und freuen uns auf Ihre erste Aktivierung. | T31: 29 €/mo | U31: 348 € per year | V31: 29 | W31: 348 | X31: 2.9 | AA31: Business Plans
A32: 31 | B32: 1_1_1_31 | C32: 1 | F32: 1_1_31 | G32: 1_2 | H32: 1_1_2 | I32: 1_1_2_31 | M32: 31 | R32: Entriegeln/ Unlock | S32: Die Unlock Funktion entsperrt weitere Marktplätze für die Kunden von Program Base Cybernetics oder Partner. Zur sicheren Bedienung der Funktionen und Programme sind die Locks kinderleicht zu entschlüsseln und auf das wesentliche reduziert. | T32: 29 €/mo | U32: 348 € per year | V32: 29 | W32: 348 | X32: 2.9 | AA32: Business Plans
A33: 32 | B33: 1_1_1_32 | C33: 1 | F33: 1_1_32 | G33: 1_2 | H33: 1_1_2 | I33: 1_1_2_32 | M33: 32 | R33: Pausierfunktion/ Pausefunction | S33: Pausieren leicht gemacht. Program Base Cybernetics bietet jederzeit auch eine Pause, seis für eine etwas längere Dauer oder aber auch nur kurze Zeit. Ein Reaktivierungsschlüssel schaltet Ihre Program Base wieder aktiv, sodass Sie entweder dort weitermachen können, wo Sie stoppten oder mit neuen, in der Pause gesammelten Ideen und Elan, starten. Bei der Pausierung werden die Plankosten um 90% auf 10% reduziert und ein Reaktivierungsschlüssel übermittelt. Diesen Schlüssel können Sie aber auch jederzeit erneut abfragen, sollte Ihnen dieser während Ihrer Pausierung abhanden gekommen sein, was durchaus jedem passieren kann. Kein Problem. | T33: 29 €/mo | U33: 348 € per year | V33: 29 | W33: 348 | X33: 2.9 | AA33: Business Plans
A34: 33 | B34: 1_1_1_33 | C34: 1 | F34: 1_1_33 | G34: 1_2 | H34: 1_1_2 | I34: 1_1_2_33 | M34: 33 | R34: Reaktivierung/ Reactivation | S34: Eine Reaktivierung der Program Base, nach Pausierung, ist jederzeit selbst bestimmbar möglich. Eine Reaktivierung ist bis zu zehn mal möglich, bis Sie Kontakt mit unseren Accountadministratoren aufnehmen müssen, da unser System bei zu häufiger Beanspruchung dieser Funktion empfindlich wird, aber keine Sorge, pausieren und reaktivieren ist jederzeit möglich. | T34: 29 €/mo | U34: 348 € per year | V34: 29 | W34: 348 | X34: 2.9 | AA34: Business Plans
A35: 34 | B35: 1_1_1_34 | C35: 1 | F35: 1_1_34 | G35: 1_2 | H35: 1_1_2 | I35: 1_1_2_34 | M35: 34 | R35: Deaktivierung/ Deactivation | S35: Über die Deaktivierung können Sie Ihre gekauften Produkte, vollständig deaktivieren und kündigen. Sollten Sie beispielsweise für eine unabsehbare Zeit absolut keinen Bedarf in der Program Base finden oder sehen können, so empfehlen wir eine Deaktivierung zur nächstmöglichen Zahlungsanweisung. Wir verbessern unsere Basen kontinuierlich weiter, vielleicht finden Sie etwas später Ihre richtigen Instrumente, Tools und Funktionen, Ihre Basis auszubauen und individuell und einzigartig zu konfigurieren. Bestimmte Funktionen (s. PB Functions (PBPLANS)) generieren ganz besondere Sachen für unsere Kunden, vielleicht haben Sie diese noch garnicht gefunden oder besuchen Sie unsere treuen Partnerwebseiten. Bei Verbesserungswünschen, Ideen oder besonderen Fällen können Sie auch unsere Kontakte nutzen. Wir wünschen Ihnen Bestes. Ihre PBCs. | T35: 29 €/mo | U35: 348 € per year | V35: 29 | W35: 348 | X35: 2.9 | AA35: Business Plans
A36: 35 | B36: 1_1_1_35 | C36: 1 | F36: 1_1_35 | G36: 1_2 | H36: 1_1_2 | I36: 1_1_2_35 | M36: 35 | R36: Neuerung/ Update | S36: Updates ohne Programme und Programme ohne Updates, wären einfach nur langweilig. Daher ergehen im Namen der Program Base Cybernetics super coole und neue Updates zu Ihrer individuellen Program Base, zu Funktionen, zu neuen Featuren und vielem mehr. Durch auslösen des Update Buttons, erhalten Sie Zugang zu beispielsweise einer neuen Program Base, verbesserten Logiken oder einfach besseren Funktionen. Die Update Funktion ist so konzipiert, dass Sie so wenig Aufwand haben wie möglich, die Neuerungen kostenlos sind, Preise reduziert und selbstverständlich kompatibel zu Ihren bisherigen Entwicklungsstatus sind. Bei Problemen, die eigentlich nicht aufkommen, können Sie sich jederzeit an den KI- Service der PBC wenden. Künstlich intelligente Systeme warten nur darauf, Probleme zu beseitigen und die Zufriedenheit und Sicherheit der PBC-Kundinnen und Kunden zu gewährleisten und zu erfüllen. | T36: 29 €/mo | U36: 348 € per year | V36: 29 | W36: 348 | X36: 2.9 | AA36: Business Plans
A37: 36 | B37: 1_1_1_36 | C37: 1 | F37: 1_1_36 | G37: 1_2 | H37: 1_1_2 | I37: 1_1_2_36 | M37: 36 | R37: Upgrade/ Downgrade | S37: PBC bietet neben Updates auch Upgrades an. Der Unterschied zwischen Updates und Upgrades liegt in der Segmentierung der Produkte und Services. Ein Upgrade beispielsweise kann als konkrete Erweiterung in Form eines seperaten Produktes gesehen werden. Ein Upgrade reduziert in der Regel Aufwände und erleichtert einem seine Cybernetic Program Base. Möchten Sie beispielsweise einen Plan Upgraden oder Downgraden, so wären Sie mit diesem Button an richtiger Stelle. Wenn Sie eine gebuchte Funktion doch nicht mehr haben möchten, können Sie durch Downgraden Ihrer Program Base die Funktion entfernen und somit die monatlichen Kosten reduzieren. Die Buchungen erfolgen immer zum nächstmöglichen Abrechnungszeitraum. Wir empfehlen diese Funktion zur nachhaltigen Steigerung der Funktionalitäten Ihrer Cybernetic Base zu nutzen und bedanken uns selbstverständlich für jegliches Upgrade, aber auch Anpassung Ihrer Cybernetic Base an Ihre Bedürfnisse. Dadurch können wir sicher gehen, dass wir unsere Kundinnen und Kunden glücklicher machen können. Das ist unser Ziel und dadurch haben wir gewonnen und dadurch gewinnen wir immer weiter. | T37: 29 €/mo | U37: 348 € per year | V37: 29 | W37: 348 | X37: 2.9 | AA37: Business Plans
A38: 37 | B38: 1_1_1_37 | C38: 1 | F38: 1_1_37 | G38: 1_2 | H38: 1_1_2 | I38: 1_1_2_37 | M38: 37 | R38: Kontostand/ Balance | S38: Der Kontostand/ Balance Ihrer Program Base gibt Ihnen Auskunft über Ihr zusätzlich gesammeltes Vermögen durch Werben/ Affilieren, Rabattkampagnien, Einladungen und vielen weiteren Möglichkeiten. Diese Gutschriften, die auch durch Gutscheine erhältlich sind, können von Ihren monatlichen oder jährlichen Plankosten (Plan+Cybernetics) abgezogen werden oder zu Neueinkäufen verwendet werden. Je nach Engagement können Sie es schaffen, eine komplette hochwertige Program Base mit Null Kostenaufwänden zu erstellen. Wir wünschen Ihnen viel Erfolg dabei und fröhliches erschaffen. | T38: 29 €/mo | U38: 348 € per year | V38: 29 | W38: 348 | X38: 2.9 | AA38: Business Plans
A39: 38 | B39: 1_1_1_38 | C39: 1 | F39: 1_1_38 | G39: 1_2 | H39: 1_1_2 | I39: 1_1_2_38 | M39: 38 | R39: Kontakt/ Contact | S39: Fragen gibt es immer und antworten tuen wir gern. Daher können Kunden über die Kontakt/ Contact Möglichkeit im Overview, eine Verbindung mit dem KI Service der PBC aufnehmen. Sie können beispielsweise größere Bestellanfragen machen, Fragen zu den Produkten stellen oder Kritik, Ideen und Empfehlungen schicken. Der PBC Service steht Ihnen jederzeit bereit. | T39: 29 €/mo | U39: 348 € per year | V39: 29 | W39: 348 | X39: 2.9 | AA39: Business Plans
A40: 39 | B40: 1_1_1_39 | C40: 1 | E40: 1_1 | F40: 1_1_39 | G40: 1_3 | H40: 1_1_3 | I40: 1_1_3_39 | L40: 3 | M40: 39 | N40: 3 | O40: 10 | Q40: Build | R40: Beschreibung/ Description | S40: ="Program Base Cybernetic's presents: "&P40&" "&$P$1&" "&Q40&" : "&T40&" - / -"&U40&" - / -"&" "&$X$1&" "&X40&" €" -> Program Base Cybernetic's presents: Plan Build : 159 €/mo - / -1908 € per year - / - Pauseprice 15,9 € | T40: =V40&" €/mo" -> 159 €/mo | U40: =W40&" € per year" -> 1908 € per year | V40: 159 | W40: =V40*12 -> 1908 | X40: =V40*0.1 -> 15.9 | AA40: Business Plans
A41: 40 | B41: 1_1_1_40 | C41: 1 | F41: 1_1_40 | G41: 1_3 | H41: 1_1_3 | I41: 1_1_3_40 | M41: 40 | R41: Cybernetics | S41: Hier finden Sie die Teile zur Cybernetics Program Base, die Sie so wertvoll machen. Die Funktionen (Cybernetics), auch bekannt unter Bots oder Maschinen (Machineparks) beschreibt das Gesamtkonstrukt der PBC am Besten. Sie können sich einen rießigen Maschinenpark mit kybernetischen Objekten dabei vorstellen, die super leicht zum anpassen, implementieren und instanzieren sind. Cybernetics bieten im Gesamten einfache Bedienbarkeit, stetigen Service, Upgradebarkeit, individuelle Konfigurierbarkeit und Einzigartigkeit. Alle verfügbaren Funktionen können über die Plattform (PB Cybernetics) abgefragt werden. Viel Spaß, wünschen wir beim erstellen Ihrer eigenen und einzigartigen Cybernetic Program Base mit Funktionen (Cybernetics, Bots, Generatoren, Maschienen, Terminals uvm.). | T41: 159 €/mo | U41: 1908 € per year | V41: 159 | W41: 1908 | X41: 15.9 | AA41: Business Plans
A42: 41 | B42: 1_1_1_41 | C42: 1 | F42: 1_1_41 | G42: 1_3 | H42: 1_1_3 | I42: 1_1_3_41 | M42: 41 | R42: Bestellen/ Ordern | S42: Eine der wichtigsten Basisfunktionen ist das Bestellen/ Ordern bei Program Base Cybernetics. Über die PBC Plattform oder dem Overview wählen Sie Ihr gewünschtes Produkt durch anklicken aus. Diese eine Auswahl wird Ihnen im Anschluss über "Auswahl/Selection" im etwas größeren Kästchen auf der PBC Plattform mit zugehörigen Features angezeigt. Durch anklicken der einzelnen Features, erhalten Sie nähere Informationen über Ihre Auswahl. Durch klicken/drücken des Bestell/ Order Buttons, öffnet sich ein Fenster mit den entsprechenden Bestellinformationen, die Sie an PBC schicken. Durch Bestätigung des Sende-Vorgangs, also durch das Abschicken Ihrer Bestellung/ Order, setzen Sie den Kauf in Gang. In den Incoterms können Sie nachlesen, welche weiteren Optionen Sie haben und welchen Abrechnungszeiträume (ab Erhalt der Aktivierungsschlüssel zu den Bestellungen) gelten. Bei den Lizensverträgen, können Sie eine Vorauswahl machen, ob Sie beispielsweise eine monatliche Abbuchung oder eine einmalige jährliche Abbuchung (ermäßigt) möchten. | T42: 159 €/mo | U42: 1908 € per year | V42: 159 | W42: 1908 | X42: 15.9 | AA42: Business Plans
A43: 42 | B43: 1_1_1_42 | C43: 1 | F43: 1_1_42 | G43: 1_3 | H43: 1_1_3 | I43: 1_1_3_42 | M43: 42 | R43: Warenkorb/ Cart | S43: Sammelbestellungen können Sie über die Warenkorb/ Cart Möglichkeit machen. Wir empfehlen diesen Weg bei einer Bestellmenge über eins, also bei einer gewünschten Bestellauswahl von mehr als einem konkreten Produkt von der Plattform. Im Log können Sie Ihre gemachten Bestellungen (Outlook Synchronisierung) einsehen und behalten somit immer Überblick über Ihre aktuellen Vorgänge. | T43: 159 €/mo | U43: 1908 € per year | V43: 159 | W43: 1908 | X43: 15.9 | AA43: Business Plans
A44: 43 | B44: 1_1_1_43 | C44: 1 | F44: 1_1_43 | G44: 1_3 | H44: 1_1_3 | I44: 1_1_3_43 | M44: 43 | R44: Eigenen Account/ Own Account | S44: PBC oder auch Program Base Cybernetics genannt, stellt hier den Basis Plan mit kostenloser Lizens (Free)vor, welche über eine Vielzahl an nützlichen Grund-Funktionen verfügt . Schon mit der Free License, können Sie beispielsweise Freunde affilieren (Geld verdienen), verschiedenste Produkte auswählen, neue Funktionen zur "Program Base" hinzufügen oder einfach und präzise, Ihr eigenes Profil erstellen und verwalten. | T44: 159 €/mo | U44: 1908 € per year | V44: 159 | W44: 1908 | X44: 15.9 | AA44: Business Plans
A45: 44 | B45: 1_1_1_44 | C45: 1 | F45: 1_1_44 | G45: 1_3 | H45: 1_1_3 | I45: 1_1_3_44 | M45: 44 | R45: Neuigkeiten/ News | S45: Über den Neuigkeiten/ News Button, bekommen Sie im Overview alle Informationen, über Updates, neue Entwicklungen und Geschenke, angezeigt. Hieraus können Sie eine direkte Auswahl treffen. Mit vielfältigen und unterschiedlichen Specials möchten wir von Program Base Cybernetics unsere Kundinnen und Kunden auf dem aktuellen Stand der Entwicklungen und des Fortschritts halten, sodass Sie größtmöglichen Nutzen und Gewinn aus Ihrer Cybernetic Base haben, schaffen und generieren können. | T45: 159 €/mo | U45: 1908 € per year | V45: 159 | W45: 1908 | X45: 15.9 | AA45: Business Plans
A46: 45 | B46: 1_1_1_45 | C46: 1 | F46: 1_1_45 | G46: 1_3 | H46: 1_1_3 | I46: 1_1_3_45 | M46: 45 | R46: Einladung/ Invitation | S46: Die Einladung/ Invitation Funktion der Cybernetic Program Base ermöglicht Ihnen über Social Media (Facebook, Twitter ect.) all Ihren Freunden auf einmal eine Einladung zu Program Base Cybernetics zu schicken. Mit Ihren persönlichen Affiliation Key, wird Ihnen jede erfolgreiche Transaktion Ihrem Konto gutgeschrieben. Die Werben/ Affiliierungskurse können bis zu 5 € pro erfolgreich geworbene/n Kunden/ Kundin betragen. Laut Hochrechnung ist dadurch schnell eine jährliche Balance (Kontostandsausgleich) für qualitativ hochwertigste und einzigartige Cybernetic Basen möglich. Der Unterschied zu der Werben/Affiliate Funktion ist der, dass Sie dort per E-Mail Werben/ Affilieren und über Einladung/Invitation auf bekannten Social Media Seiten zu PBC einladen. Ein sehr entgegenkommendes Angebot seitens PBC und zu empfehlen täglich zu werben. | T46: 159 €/mo | U46: 1908 € per year | V46: 159 | W46: 1908 | X46: 15.9 | AA46: Business Plans
A47: 46 | B47: 1_1_1_46 | C47: 1 | F47: 1_1_46 | G47: 1_3 | H47: 1_1_3 | I47: 1_1_3_46 | M47: 46 | R47: Geschenke/ Gifts | S47: Program Base Cybernetics möchte die Kunden und Kundinnen, belohnen und danken. Durch tägliche Ausschüttung von Rabatten, Gutscheinen, Spezialangeboten und kostenlosen Extrafunktionen, werden alle Kundinnen und Kunden beschenkt. Die erhaltenen Güter können gesammelt werden und bei Neukäufen gutgeschrieben werden. Manche Angebote laufen zeitlich ab, daher empfehlen wir, die Ermäßigungen sobald Sie diese erhalten haben, zu verwenden. | T47: 159 €/mo | U47: 1908 € per year | V47: 159 | W47: 1908 | X47: 15.9 | AA47: Business Plans
A48: 47 | B48: 1_1_1_47 | C48: 1 | F48: 1_1_47 | G48: 1_3 | H48: 1_1_3 | I48: 1_1_3_47 | M48: 47 | R48: Werben/ Affiliate | S48: Geld verdienen bei PBC? Das ist mehr als nur möglich. Mit deinem persönlichen Affiliation Key, kannst du über den Werbe und Affiliate Button, Freunde und Bekannte dazu bewegen, Kunde bei Program Base Cybernetics zu werden. Dafür gibt dir PBC pro erfolgreich geworbenen Kunden bis zu 5€. Das Guthaben wird dir auf deinem Konto gut geschrieben. Den aktuellen Werbekurswert erfährst du über den News Button und wird dir direkt im Overview angezeigt. Dein Guthaben kannst du direkt für neue Bestellungen verwenden oder beispielsweise von deinen monatlichen Plankosten abziehen. Die Einstellungen zu den Transaktionsprozessen findest du über den Button "Balance". Im Laufe der Zeit werden kontinuierlich Werbe/ Affiliation Quests erneuert und entwickelt. Wir empfehlen daher stets die Augen nach neuen Angeboten offen zu halten Viel Spaß beim Werben/ Affilieren/ Geldverdienen. | T48: 159 €/mo | U48: 1908 € per year | V48: 159 | W48: 1908 | X48: 15.9 | AA48: Business Plans
A49: 48 | B49: 1_1_1_48 | C49: 1 | F49: 1_1_48 | G49: 1_3 | H49: 1_1_3 | I49: 1_1_3_48 | M49: 48 | R49: Aktualisieren/ Actualize | S49: Mittels Aktualisieren/ Actualize erhalten Sie automatisch die neuesten Angebote und Vorschläge zu Ihrer persönlichen Cybernetic's Program Base. Somit erneuern Sie Ihren aktuellen Stand der PBC und erfahren dadurch von täglichen Belohnungen, bekommen gelegentlich Gutscheine und sonstige Benefits, als zusätzlicher Vorteil fürs dabeibleiben und nutzen. | T49: 159 €/mo | U49: 1908 € per year | V49: 159 | W49: 1908 | X49: 15.9 | AA49: Business Plans
A50: 49 | B50: 1_1_1_49 | C50: 1 | F50: 1_1_49 | G50: 1_3 | H50: 1_1_3 | I50: 1_1_3_49 | M50: 49 | R50: Aktivierungsfunktion/ Activationfunction | S50: Einfach und schnell können Sie auch schon, ab dem Download, Ihre Program Base aktivieren. In der 14 Tage Phase, stehen Ihnen viele Features bereit. Es ist beispielsweise möglich neue Programme zu durchstöbern, verschiedenste Produkte zu bestellen (ordern), Pläne wechseln, vergleichen und vieles mehr. Zur Aktivierung erhalten Sie einen einzigartigen Lizenzschlüssel, den Sie Ihren Support Bot mitteilen müssen, damit Er/ Sie Ihre Basis freischalten kann. Program Base Cybernetic's KIs (Künstliche Intelligenzen) kümmern sich im System und im Service, um unverzügliche Bearbeitung der Aktivierung und sonstige Aufgaben. Dadurch können Wartezeiten reduziert werden und unnötige Aufwände beseitigt werden, die wir unseren Kunden nicht zumuten möchten. Die PBC soll ja das Leben erleichtern und nicht erschweren. Wir wünschen viel Spaß, und freuen uns auf Ihre erste Aktivierung. | T50: 159 €/mo | U50: 1908 € per year | V50: 159 | W50: 1908 | X50: 15.9 | AA50: Business Plans
A51: 50 | B51: 1_1_1_50 | C51: 1 | F51: 1_1_50 | G51: 1_3 | H51: 1_1_3 | I51: 1_1_3_50 | M51: 50 | R51: Entriegeln/ Unlock | S51: Die Unlock Funktion entsperrt weitere Marktplätze für die Kunden von Program Base Cybernetics oder Partner. Zur sicheren Bedienung der Funktionen und Programme sind die Locks kinderleicht zu entschlüsseln und auf das wesentliche reduziert. | T51: 159 €/mo | U51: 1908 € per year | V51: 159 | W51: 1908 | X51: 15.9 | AA51: Business Plans
A52: 51 | B52: 1_1_1_51 | C52: 1 | F52: 1_1_51 | G52: 1_3 | H52: 1_1_3 | I52: 1_1_3_51 | M52: 51 | R52: Pausierfunktion/ Pausefunction | S52: Pausieren leicht gemacht. Program Base Cybernetics bietet jederzeit auch eine Pause, seis für eine etwas längere Dauer oder aber auch nur kurze Zeit. Ein Reaktivierungsschlüssel schaltet Ihre Program Base wieder aktiv, sodass Sie entweder dort weitermachen können, wo Sie stoppten oder mit neuen, in der Pause gesammelten Ideen und Elan, starten. Bei der Pausierung werden die Plankosten um 90% auf 10% reduziert und ein Reaktivierungsschlüssel übermittelt. Diesen Schlüssel können Sie aber auch jederzeit erneut abfragen, sollte Ihnen dieser während Ihrer Pausierung abhanden gekommen sein, was durchaus jedem passieren kann. Kein Problem. | T52: 159 €/mo | U52: 1908 € per year | V52: 159 | W52: 1908 | X52: 15.9 | AA52: Business Plans
A53: 52 | B53: 1_1_1_52 | C53: 1 | F53: 1_1_52 | G53: 1_3 | H53: 1_1_3 | I53: 1_1_3_52 | M53: 52 | R53: Reaktivierung/ Reactivation | S53: Eine Reaktivierung der Program Base, nach Pausierung, ist jederzeit selbst bestimmbar möglich. Eine Reaktivierung ist bis zu zehn mal möglich, bis Sie Kontakt mit unseren Accountadministratoren aufnehmen müssen, da unser System bei zu häufiger Beanspruchung dieser Funktion empfindlich wird, aber keine Sorge, pausieren und reaktivieren ist jederzeit möglich. | T53: 159 €/mo | U53: 1908 € per year | V53: 159 | W53: 1908 | X53: 15.9 | AA53: Business Plans
A54: 53 | B54: 1_1_1_53 | C54: 1 | F54: 1_1_53 | G54: 1_3 | H54: 1_1_3 | I54: 1_1_3_53 | M54: 53 | R54: Deaktivierung/ Deactivation | S54: Über die Deaktivierung können Sie Ihre gekauften Produkte, vollständig deaktivieren und kündigen. Sollten Sie beispielsweise für eine unabsehbare Zeit absolut keinen Bedarf in der Program Base finden oder sehen können, so empfehlen wir eine Deaktivierung zur nächstmöglichen Zahlungsanweisung. Wir verbessern unsere Basen kontinuierlich weiter, vielleicht finden Sie etwas später Ihre richtigen Instrumente, Tools und Funktionen, Ihre Basis auszubauen und individuell und einzigartig zu konfigurieren. Bestimmte Funktionen (s. PB Functions (PBPLANS)) generieren ganz besondere Sachen für unsere Kunden, vielleicht haben Sie diese noch garnicht gefunden oder besuchen Sie unsere treuen Partnerwebseiten. Bei Verbesserungswünschen, Ideen oder besonderen Fällen können Sie auch unsere Kontakte nutzen. Wir wünschen Ihnen Bestes. Ihre PBCs. | T54: 159 €/mo | U54: 1908 € per year | V54: 159 | W54: 1908 | X54: 15.9 | AA54: Business Plans
A55: 54 | B55: 1_1_1_54 | C55: 1 | F55: 1_1_54 | G55: 1_3 | H55: 1_1_3 | I55: 1_1_3_54 | M55: 54 | R55: Neuerung/ Update | S55: Updates ohne Programme und Programme ohne Updates, wären einfach nur langweilig. Daher ergehen im Namen der Program Base Cybernetics super coole und neue Updates zu Ihrer individuellen Program Base, zu Funktionen, zu neuen Featuren und vielem mehr. Durch auslösen des Update Buttons, erhalten Sie Zugang zu beispielsweise einer neuen Program Base, verbesserten Logiken oder einfach besseren Funktionen. Die Update Funktion ist so konzipiert, dass Sie so wenig Aufwand haben wie möglich, die Neuerungen kostenlos sind, Preise reduziert und selbstverständlich kompatibel zu Ihren bisherigen Entwicklungsstatus sind. Bei Problemen, die eigentlich nicht aufkommen, können Sie sich jederzeit an den KI- Service der PBC wenden. Künstlich intelligente Systeme warten nur darauf, Probleme zu beseitigen und die Zufriedenheit und Sicherheit der PBC-Kundinnen und Kunden zu gewährleisten und zu erfüllen. | T55: 159 €/mo | U55: 1908 € per year | V55: 159 | W55: 1908 | X55: 15.9 | AA55: Business Plans
A56: 55 | B56: 1_1_1_55 | C56: 1 | F56: 1_1_55 | G56: 1_3 | H56: 1_1_3 | I56: 1_1_3_55 | M56: 55 | R56: Upgrade/ Downgrade | S56: PBC bietet neben Updates auch Upgrades an. Der Unterschied zwischen Updates und Upgrades liegt in der Segmentierung der Produkte und Services. Ein Upgrade beispielsweise kann als konkrete Erweiterung in Form eines seperaten Produktes gesehen werden. Ein Upgrade reduziert in der Regel Aufwände und erleichtert einem seine Cybernetic Program Base. Möchten Sie beispielsweise einen Plan Upgraden oder Downgraden, so wären Sie mit diesem Button an richtiger Stelle. Wenn Sie eine gebuchte Funktion doch nicht mehr haben möchten, können Sie durch Downgraden Ihrer Program Base die Funktion entfernen und somit die monatlichen Kosten reduzieren. Die Buchungen erfolgen immer zum nächstmöglichen Abrechnungszeitraum. Wir empfehlen diese Funktion zur nachhaltigen Steigerung der Funktionalitäten Ihrer Cybernetic Base zu nutzen und bedanken uns selbstverständlich für jegliches Upgrade, aber auch Anpassung Ihrer Cybernetic Base an Ihre Bedürfnisse. Dadurch können wir sicher gehen, dass wir unsere Kundinnen und Kunden glücklicher machen können. Das ist unser Ziel und dadurch haben wir gewonnen und dadurch gewinnen wir immer weiter. | T56: 159 €/mo | U56: 1908 € per year | V56: 159 | W56: 1908 | X56: 15.9 | AA56: Business Plans
A57: 56 | B57: 1_1_1_56 | C57: 1 | F57: 1_1_56 | G57: 1_3 | H57: 1_1_3 | I57: 1_1_3_56 | M57: 56 | R57: Kontostand/ Balance | S57: Der Kontostand/ Balance Ihrer Program Base gibt Ihnen Auskunft über Ihr zusätzlich gesammeltes Vermögen durch Werben/ Affilieren, Rabattkampagnien, Einladungen und vielen weiteren Möglichkeiten. Diese Gutschriften, die auch durch Gutscheine erhältlich sind, können von Ihren monatlichen oder jährlichen Plankosten (Plan+Cybernetics) abgezogen werden oder zu Neueinkäufen verwendet werden. Je nach Engagement können Sie es schaffen, eine komplette hochwertige Program Base mit Null Kostenaufwänden zu erstellen. Wir wünschen Ihnen viel Erfolg dabei und fröhliches erschaffen. | T57: 159 €/mo | U57: 1908 € per year | V57: 159 | W57: 1908 | X57: 15.9 | AA57: Business Plans
A58: 57 | B58: 1_1_1_57 | C58: 1 | F58: 1_1_57 | G58: 1_3 | H58: 1_1_3 | I58: 1_1_3_57 | M58: 57 | R58: Kontakt/ Contact | S58: Fragen gibt es immer und antworten tuen wir gern. Daher können Kunden über die Kontakt/ Contact Möglichkeit im Overview, eine Verbindung mit dem KI Service der PBC aufnehmen. Sie können beispielsweise größere Bestellanfragen machen, Fragen zu den Produkten stellen oder Kritik, Ideen und Empfehlungen schicken. Der PBC Service steht Ihnen jederzeit bereit. | T58: 159 €/mo | U58: 1908 € per year | V58: 159 | W58: 1908 | X58: 15.9 | AA58: Business Plans
A59: 58 | B59: 1_1_1_58 | C59: 1 | E59: 1_1 | F59: 1_1_58 | G59: 1_4 | H59: 1_1_4 | I59: 1_1_4_58 | L59: 4 | M59: 58 | N59: 4 | O59: 20 | Q59: Rise | R59: Beschreibung/ Description | S59: ="Program Base Cybernetic's presents: "&P59&" "&$P$1&" "&Q59&" : "&T59&" - / -"&U59&" - / -"&" "&$X$1&" "&X59&" €" -> Program Base Cybernetic's presents: Plan Rise : 399 €/mo - / -4788 € per year - / - Pauseprice 39,9 € | T59: =V59&" €/mo" -> 399 €/mo | U59: =W59&" € per year" -> 4788 € per year | V59: 399 | W59: =V59*12 -> 4788 | X59: =V59*0.1 -> 39.9 | AA59: Business Plans
A60: 59 | B60: 1_1_1_59 | C60: 1 | F60: 1_1_59 | G60: 1_4 | H60: 1_1_4 | I60: 1_1_4_59 | M60: 59 | R60: Cybernetics | S60: Hier finden Sie die Teile zur Cybernetics Program Base, die Sie so wertvoll machen. Die Funktionen (Cybernetics), auch bekannt unter Bots oder Maschinen (Machineparks) beschreibt das Gesamtkonstrukt der PBC am Besten. Sie können sich einen rießigen Maschinenpark mit kybernetischen Objekten dabei vorstellen, die super leicht zum anpassen, implementieren und instanzieren sind. Cybernetics bieten im Gesamten einfache Bedienbarkeit, stetigen Service, Upgradebarkeit, individuelle Konfigurierbarkeit und Einzigartigkeit. Alle verfügbaren Funktionen können über die Plattform (PB Cybernetics) abgefragt werden. Viel Spaß, wünschen wir beim erstellen Ihrer eigenen und einzigartigen Cybernetic Program Base mit Funktionen (Cybernetics, Bots, Generatoren, Maschienen, Terminals uvm.). | T60: 399 €/mo | U60: 4788 € per year | V60: 399 | W60: 4788 | X60: 39.9 | AA60: Business Plans
A61: 60 | B61: 1_1_1_60 | C61: 1 | F61: 1_1_60 | G61: 1_4 | H61: 1_1_4 | I61: 1_1_4_60 | M61: 60 | R61: Bestellen/ Ordern | S61: Eine der wichtigsten Basisfunktionen ist das Bestellen/ Ordern bei Program Base Cybernetics. Über die PBC Plattform oder dem Overview wählen Sie Ihr gewünschtes Produkt durch anklicken aus. Diese eine Auswahl wird Ihnen im Anschluss über "Auswahl/Selection" im etwas größeren Kästchen auf der PBC Plattform mit zugehörigen Features angezeigt. Durch anklicken der einzelnen Features, erhalten Sie nähere Informationen über Ihre Auswahl. Durch klicken/drücken des Bestell/ Order Buttons, öffnet sich ein Fenster mit den entsprechenden Bestellinformationen, die Sie an PBC schicken. Durch Bestätigung des Sende-Vorgangs, also durch das Abschicken Ihrer Bestellung/ Order, setzen Sie den Kauf in Gang. In den Incoterms können Sie nachlesen, welche weiteren Optionen Sie haben und welchen Abrechnungszeiträume (ab Erhalt der Aktivierungsschlüssel zu den Bestellungen) gelten. Bei den Lizensverträgen, können Sie eine Vorauswahl machen, ob Sie beispielsweise eine monatliche Abbuchung oder eine einmalige jährliche Abbuchung (ermäßigt) möchten. | T61: 399 €/mo | U61: 4788 € per year | V61: 399 | W61: 4788 | X61: 39.9 | AA61: Business Plans
A62: 61 | B62: 1_1_1_61 | C62: 1 | F62: 1_1_61 | G62: 1_4 | H62: 1_1_4 | I62: 1_1_4_61 | M62: 61 | R62: Warenkorb/ Cart | S62: Sammelbestellungen können Sie über die Warenkorb/ Cart Möglichkeit machen. Wir empfehlen diesen Weg bei einer Bestellmenge über eins, also bei einer gewünschten Bestellauswahl von mehr als einem konkreten Produkt von der Plattform. Im Log können Sie Ihre gemachten Bestellungen (Outlook Synchronisierung) einsehen und behalten somit immer Überblick über Ihre aktuellen Vorgänge. | T62: 399 €/mo | U62: 4788 € per year | V62: 399 | W62: 4788 | X62: 39.9 | AA62: Business Plans
A63: 62 | B63: 1_1_1_62 | C63: 1 | F63: 1_1_62 | G63: 1_4 | H63: 1_1_4 | I63: 1_1_4_62 | M63: 62 | R63: Eigenen Account/ Own Account | S63: PBC oder auch Program Base Cybernetics genannt, stellt hier den Basis Plan mit kostenloser Lizens (Free)vor, welche über eine Vielzahl an nützlichen Grund-Funktionen verfügt . Schon mit der Free License, können Sie beispielsweise Freunde affilieren (Geld verdienen), verschiedenste Produkte auswählen, neue Funktionen zur "Program Base" hinzufügen oder einfach und präzise, Ihr eigenes Profil erstellen und verwalten. | T63: 399 €/mo | U63: 4788 € per year | V63: 399 | W63: 4788 | X63: 39.9 | AA63: Business Plans
A64: 63 | B64: 1_1_1_63 | C64: 1 | F64: 1_1_63 | G64: 1_4 | H64: 1_1_4 | I64: 1_1_4_63 | M64: 63 | R64: Neuigkeiten/ News | S64: Über den Neuigkeiten/ News Button, bekommen Sie im Overview alle Informationen, über Updates, neue Entwicklungen und Geschenke, angezeigt. Hieraus können Sie eine direkte Auswahl treffen. Mit vielfältigen und unterschiedlichen Specials möchten wir von Program Base Cybernetics unsere Kundinnen und Kunden auf dem aktuellen Stand der Entwicklungen und des Fortschritts halten, sodass Sie größtmöglichen Nutzen und Gewinn aus Ihrer Cybernetic Base haben, schaffen und generieren können. | T64: 399 €/mo | U64: 4788 € per year | V64: 399 | W64: 4788 | X64: 39.9 | AA64: Business Plans
A65: 64 | B65: 1_1_1_64 | C65: 1 | F65: 1_1_64 | G65: 1_4 | H65: 1_1_4 | I65: 1_1_4_64 | M65: 64 | R65: Einladung/ Invitation | S65: Die Einladung/ Invitation Funktion der Cybernetic Program Base ermöglicht Ihnen über Social Media (Facebook, Twitter ect.) all Ihren Freunden auf einmal eine Einladung zu Program Base Cybernetics zu schicken. Mit Ihren persönlichen Affiliation Key, wird Ihnen jede erfolgreiche Transaktion Ihrem Konto gutgeschrieben. Die Werben/ Affiliierungskurse können bis zu 5 € pro erfolgreich geworbene/n Kunden/ Kundin betragen. Laut Hochrechnung ist dadurch schnell eine jährliche Balance (Kontostandsausgleich) für qualitativ hochwertigste und einzigartige Cybernetic Basen möglich. Der Unterschied zu der Werben/Affiliate Funktion ist der, dass Sie dort per E-Mail Werben/ Affilieren und über Einladung/Invitation auf bekannten Social Media Seiten zu PBC einladen. Ein sehr entgegenkommendes Angebot seitens PBC und zu empfehlen täglich zu werben. | T65: 399 €/mo | U65: 4788 € per year | V65: 399 | W65: 4788 | X65: 39.9 | AA65: Business Plans
A66: 65 | B66: 1_1_1_65 | C66: 1 | F66: 1_1_65 | G66: 1_4 | H66: 1_1_4 | I66: 1_1_4_65 | M66: 65 | R66: Geschenke/ Gifts | S66: Program Base Cybernetics möchte die Kunden und Kundinnen, belohnen und danken. Durch tägliche Ausschüttung von Rabatten, Gutscheinen, Spezialangeboten und kostenlosen Extrafunktionen, werden alle Kundinnen und Kunden beschenkt. Die erhaltenen Güter können gesammelt werden und bei Neukäufen gutgeschrieben werden. Manche Angebote laufen zeitlich ab, daher empfehlen wir, die Ermäßigungen sobald Sie diese erhalten haben, zu verwenden. | T66: 399 €/mo | U66: 4788 € per year | V66: 399 | W66: 4788 | X66: 39.9 | AA66: Business Plans
A67: 66 | B67: 1_1_1_66 | C67: 1 | F67: 1_1_66 | G67: 1_4 | H67: 1_1_4 | I67: 1_1_4_66 | M67: 66 | R67: Werben/ Affiliate | S67: Geld verdienen bei PBC? Das ist mehr als nur möglich. Mit deinem persönlichen Affiliation Key, kannst du über den Werbe und Affiliate Button, Freunde und Bekannte dazu bewegen, Kunde bei Program Base Cybernetics zu werden. Dafür gibt dir PBC pro erfolgreich geworbenen Kunden bis zu 5€. Das Guthaben wird dir auf deinem Konto gut geschrieben. Den aktuellen Werbekurswert erfährst du über den News Button und wird dir direkt im Overview angezeigt. Dein Guthaben kannst du direkt für neue Bestellungen verwenden oder beispielsweise von deinen monatlichen Plankosten abziehen. Die Einstellungen zu den Transaktionsprozessen findest du über den Button "Balance". Im Laufe der Zeit werden kontinuierlich Werbe/ Affiliation Quests erneuert und entwickelt. Wir empfehlen daher stets die Augen nach neuen Angeboten offen zu halten Viel Spaß beim Werben/ Affilieren/ Geldverdienen. | T67: 399 €/mo | U67: 4788 € per year | V67: 399 | W67: 4788 | X67: 39.9 | AA67: Business Plans
A68: 67 | B68: 1_1_1_67 | C68: 1 | F68: 1_1_67 | G68: 1_4 | H68: 1_1_4 | I68: 1_1_4_67 | M68: 67 | R68: Aktualisieren/ Actualize | S68: Mittels Aktualisieren/ Actualize erhalten Sie automatisch die neuesten Angebote und Vorschläge zu Ihrer persönlichen Cybernetic's Program Base. Somit erneuern Sie Ihren aktuellen Stand der PBC und erfahren dadurch von täglichen Belohnungen, bekommen gelegentlich Gutscheine und sonstige Benefits, als zusätzlicher Vorteil fürs dabeibleiben und nutzen. | T68: 399 €/mo | U68: 4788 € per year | V68: 399 | W68: 4788 | X68: 39.9 | AA68: Business Plans
A69: 68 | B69: 1_1_1_68 | C69: 1 | F69: 1_1_68 | G69: 1_4 | H69: 1_1_4 | I69: 1_1_4_68 | M69: 68 | R69: Aktivierungsfunktion/ Activationfunction | S69: Einfach und schnell können Sie auch schon, ab dem Download, Ihre Program Base aktivieren. In der 14 Tage Phase, stehen Ihnen viele Features bereit. Es ist beispielsweise möglich neue Programme zu durchstöbern, verschiedenste Produkte zu bestellen (ordern), Pläne wechseln, vergleichen und vieles mehr. Zur Aktivierung erhalten Sie einen einzigartigen Lizenzschlüssel, den Sie Ihren Support Bot mitteilen müssen, damit Er/ Sie Ihre Basis freischalten kann. Program Base Cybernetic's KIs (Künstliche Intelligenzen) kümmern sich im System und im Service, um unverzügliche Bearbeitung der Aktivierung und sonstige Aufgaben. Dadurch können Wartezeiten reduziert werden und unnötige Aufwände beseitigt werden, die wir unseren Kunden nicht zumuten möchten. Die PBC soll ja das Leben erleichtern und nicht erschweren. Wir wünschen viel Spaß, und freuen uns auf Ihre erste Aktivierung. | T69: 399 €/mo | U69: 4788 € per year | V69: 399 | W69: 4788 | X69: 39.9 | AA69: Business Plans
A70: 69 | B70: 1_1_1_69 | C70: 1 | F70: 1_1_69 | G70: 1_4 | H70: 1_1_4 | I70: 1_1_4_69 | M70: 69 | R70: Entriegeln/ Unlock | S70: Die Unlock Funktion entsperrt weitere Marktplätze für die Kunden von Program Base Cybernetics oder Partner. Zur sicheren Bedienung der Funktionen und Programme sind die Locks kinderleicht zu entschlüsseln und auf das wesentliche reduziert. | T70: 399 €/mo | U70: 4788 € per year | V70: 399 | W70: 4788 | X70: 39.9 | AA70: Business Plans
A71: 70 | B71: 1_1_1_70 | C71: 1 | F71: 1_1_70 | G71: 1_4 | H71: 1_1_4 | I71: 1_1_4_70 | M71: 70 | R71: Pausierfunktion/ Pausefunction | S71: Pausieren leicht gemacht. Program Base Cybernetics bietet jederzeit auch eine Pause, seis für eine etwas längere Dauer oder aber auch nur kurze Zeit. Ein Reaktivierungsschlüssel schaltet Ihre Program Base wieder aktiv, sodass Sie entweder dort weitermachen können, wo Sie stoppten oder mit neuen, in der Pause gesammelten Ideen und Elan, starten. Bei der Pausierung werden die Plankosten um 90% auf 10% reduziert und ein Reaktivierungsschlüssel übermittelt. Diesen Schlüssel können Sie aber auch jederzeit erneut abfragen, sollte Ihnen dieser während Ihrer Pausierung abhanden gekommen sein, was durchaus jedem passieren kann. Kein Problem. | T71: 399 €/mo | U71: 4788 € per year | V71: 399 | W71: 4788 | X71: 39.9 | AA71: Business Plans
A72: 71 | B72: 1_1_1_71 | C72: 1 | F72: 1_1_71 | G72: 1_4 | H72: 1_1_4 | I72: 1_1_4_71 | M72: 71 | R72: Reaktivierung/ Reactivation | S72: Eine Reaktivierung der Program Base, nach Pausierung, ist jederzeit selbst bestimmbar möglich. Eine Reaktivierung ist bis zu zehn mal möglich, bis Sie Kontakt mit unseren Accountadministratoren aufnehmen müssen, da unser System bei zu häufiger Beanspruchung dieser Funktion empfindlich wird, aber keine Sorge, pausieren und reaktivieren ist jederzeit möglich. | T72: 399 €/mo | U72: 4788 € per year | V72: 399 | W72: 4788 | X72: 39.9 | AA72: Business Plans
A73: 72 | B73: 1_1_1_72 | C73: 1 | F73: 1_1_72 | G73: 1_4 | H73: 1_1_4 | I73: 1_1_4_72 | M73: 72 | R73: Deaktivierung/ Deactivation | S73: Über die Deaktivierung können Sie Ihre gekauften Produkte, vollständig deaktivieren und kündigen. Sollten Sie beispielsweise für eine unabsehbare Zeit absolut keinen Bedarf in der Program Base finden oder sehen können, so empfehlen wir eine Deaktivierung zur nächstmöglichen Zahlungsanweisung. Wir verbessern unsere Basen kontinuierlich weiter, vielleicht finden Sie etwas später Ihre richtigen Instrumente, Tools und Funktionen, Ihre Basis auszubauen und individuell und einzigartig zu konfigurieren. Bestimmte Funktionen (s. PB Functions (PBPLANS)) generieren ganz besondere Sachen für unsere Kunden, vielleicht haben Sie diese noch garnicht gefunden oder besuchen Sie unsere treuen Partnerwebseiten. Bei Verbesserungswünschen, Ideen oder besonderen Fällen können Sie auch unsere Kontakte nutzen. Wir wünschen Ihnen Bestes. Ihre PBCs. | T73: 399 €/mo | U73: 4788 € per year | V73: 399 | W73: 4788 | X73: 39.9 | AA73: Business Plans
A74: 73 | B74: 1_1_1_73 | C74: 1 | F74: 1_1_73 | G74: 1_4 | H74: 1_1_4 | I74: 1_1_4_73 | M74: 73 | R74: Neuerung/ Update | S74: Updates ohne Programme und Programme ohne Updates, wären einfach nur langweilig. Daher ergehen im Namen der Program Base Cybernetics super coole und neue Updates zu Ihrer individuellen Program Base, zu Funktionen, zu neuen Featuren und vielem mehr. Durch auslösen des Update Buttons, erhalten Sie Zugang zu beispielsweise einer neuen Program Base, verbesserten Logiken oder einfach besseren Funktionen. Die Update Funktion ist so konzipiert, dass Sie so wenig Aufwand haben wie möglich, die Neuerungen kostenlos sind, Preise reduziert und selbstverständlich kompatibel zu Ihren bisherigen Entwicklungsstatus sind. Bei Problemen, die eigentlich nicht aufkommen, können Sie sich jederzeit an den KI- Service der PBC wenden. Künstlich intelligente Systeme warten nur darauf, Probleme zu beseitigen und die Zufriedenheit und Sicherheit der PBC-Kundinnen und Kunden zu gewährleisten und zu erfüllen. | T74: 399 €/mo | U74: 4788 € per year | V74: 399 | W74: 4788 | X74: 39.9 | AA74: Business Plans
A75: 74 | B75: 1_1_1_74 | C75: 1 | F75: 1_1_74 | G75: 1_4 | H75: 1_1_4 | I75: 1_1_4_74 | M75: 74 | R75: Upgrade/ Downgrade | S75: PBC bietet neben Updates auch Upgrades an. Der Unterschied zwischen Updates und Upgrades liegt in der Segmentierung der Produkte und Services. Ein Upgrade beispielsweise kann als konkrete Erweiterung in Form eines seperaten Produktes gesehen werden. Ein Upgrade reduziert in der Regel Aufwände und erleichtert einem seine Cybernetic Program Base. Möchten Sie beispielsweise einen Plan Upgraden oder Downgraden, so wären Sie mit diesem Button an richtiger Stelle. Wenn Sie eine gebuchte Funktion doch nicht mehr haben möchten, können Sie durch Downgraden Ihrer Program Base die Funktion entfernen und somit die monatlichen Kosten reduzieren. Die Buchungen erfolgen immer zum nächstmöglichen Abrechnungszeitraum. Wir empfehlen diese Funktion zur nachhaltigen Steigerung der Funktionalitäten Ihrer Cybernetic Base zu nutzen und bedanken uns selbstverständlich für jegliches Upgrade, aber auch Anpassung Ihrer Cybernetic Base an Ihre Bedürfnisse. Dadurch können wir sicher gehen, dass wir unsere Kundinnen und Kunden glücklicher machen können. Das ist unser Ziel und dadurch haben wir gewonnen und dadurch gewinnen wir immer weiter. | T75: 399 €/mo | U75: 4788 € per year | V75: 399 | W75: 4788 | X75: 39.9 | AA75: Business Plans
A76: 75 | B76: 1_1_1_75 | C76: 1 | F76: 1_1_75 | G76: 1_4 | H76: 1_1_4 | I76: 1_1_4_75 | M76: 75 | R76: Kontostand/ Balance | S76: Der Kontostand/ Balance Ihrer Program Base gibt Ihnen Auskunft über Ihr zusätzlich gesammeltes Vermögen durch Werben/ Affilieren, Rabattkampagnien, Einladungen und vielen weiteren Möglichkeiten. Diese Gutschriften, die auch durch Gutscheine erhältlich sind, können von Ihren monatlichen oder jährlichen Plankosten (Plan+Cybernetics) abgezogen werden oder zu Neueinkäufen verwendet werden. Je nach Engagement können Sie es schaffen, eine komplette hochwertige Program Base mit Null Kostenaufwänden zu erstellen. Wir wünschen Ihnen viel Erfolg dabei und fröhliches erschaffen. | T76: 399 €/mo | U76: 4788 € per year | V76: 399 | W76: 4788 | X76: 39.9 | AA76: Business Plans
A77: 76 | B77: 1_1_1_76 | C77: 1 | F77: 1_1_76 | G77: 1_4 | H77: 1_1_4 | I77: 1_1_4_76 | M77: 76 | R77: Kontakt/ Contact | S77: Fragen gibt es immer und antworten tuen wir gern. Daher können Kunden über die Kontakt/ Contact Möglichkeit im Overview, eine Verbindung mit dem KI Service der PBC aufnehmen. Sie können beispielsweise größere Bestellanfragen machen, Fragen zu den Produkten stellen oder Kritik, Ideen und Empfehlungen schicken. Der PBC Service steht Ihnen jederzeit bereit. | T77: 399 €/mo | U77: 4788 € per year | V77: 399 | W77: 4788 | X77: 39.9 | AA77: Business Plans
A78: 77 | B78: 1_1_2_77 | C78: 1 | D78: 1_2 | E78: 1_2 | F78: 1_2_77 | G78: 2_1 | H78: 1_2_1 | I78: 1_2_1_77 | K78: 2 | L78: 1 | M78: 77 | N78: 1 | O78: 1 | P78: Advanced | Q78: General | R78: Beschreibung/ Description | S78: ="Program Base Cybernetic's presents: "&P78&" "&$P$1&" "&Q78&" : "&T78&" - / -"&U78&" - / -"&" "&$X$1&" "&X78&" €" -> Program Base Cybernetic's presents: Advanced Plan General : 9,99 €/mo - / -119,88 € per year - / - Pauseprice 0,999 € | T78: =V78&" €/mo" -> 9,99 €/mo | U78: =W78&" € per year" -> 119,88 € per year | V78: 9.99 | W78: =V78*12 -> 119.88 | X78: =V78*0.1 -> 0.999 | AA78: Business Plans
A79: 78 | B79: 1_1_2_78 | C79: 1 | F79: 1_2_78 | G79: 2_1 | H79: 1_2_1 | I79: 1_2_1_78 | M79: 78 | R79: Cybernetics | S79: Hier finden Sie die Teile zur Cybernetics Program Base, die Sie so wertvoll machen. Die Funktionen (Cybernetics), auch bekannt unter Bots oder Maschinen (Machineparks) beschreibt das Gesamtkonstrukt der PBC am Besten. Sie können sich einen rießigen Maschinenpark mit kybernetischen Objekten dabei vorstellen, die super leicht zum anpassen, implementieren und instanzieren sind. Cybernetics bieten im Gesamten einfache Bedienbarkeit, stetigen Service, Upgradebarkeit, individuelle Konfigurierbarkeit und Einzigartigkeit. Alle verfügbaren Funktionen können über die Plattform (PB Cybernetics) abgefragt werden. Viel Spaß, wünschen wir beim erstellen Ihrer eigenen und einzigartigen Cybernetic Program Base mit Funktionen (Cybernetics, Bots, Generatoren, Maschienen, Terminals uvm.). | T79: 9,99 €/mo | U79: 119,88 € per year | V79: 9.99 | W79: 119.88 | X79: 0.999 | AA79: Business Plans
A80: 79 | B80: 1_1_2_79 | C80: 1 | F80: 1_2_79 | G80: 2_1 | H80: 1_2_1 | I80: 1_2_1_79 | M80: 79 | R80: Bestellen/ Ordern | S80: Eine der wichtigsten Basisfunktionen ist das Bestellen/ Ordern bei Program Base Cybernetics. Über die PBC Plattform oder dem Overview wählen Sie Ihr gewünschtes Produkt durch anklicken aus. Diese eine Auswahl wird Ihnen im Anschluss über "Auswahl/Selection" im etwas größeren Kästchen auf der PBC Plattform mit zugehörigen Features angezeigt. Durch anklicken der einzelnen Features, erhalten Sie nähere Informationen über Ihre Auswahl. Durch klicken/drücken des Bestell/ Order Buttons, öffnet sich ein Fenster mit den entsprechenden Bestellinformationen, die Sie an PBC schicken. Durch Bestätigung des Sende-Vorgangs, also durch das Abschicken Ihrer Bestellung/ Order, setzen Sie den Kauf in Gang. In den Incoterms können Sie nachlesen, welche weiteren Optionen Sie haben und welchen Abrechnungszeiträume (ab Erhalt der Aktivierungsschlüssel zu den Bestellungen) gelten. Bei den Lizensverträgen, können Sie eine Vorauswahl machen, ob Sie beispielsweise eine monatliche Abbuchung oder eine einmalige jährliche Abbuchung (ermäßigt) möchten. | T80: 9,99 €/mo | U80: 119,88 € per year | V80: 9.99 | W80: 119.88 | X80: 0.999 | AA80: Business Plans
A81: 80 | B81: 1_1_2_80 | C81: 1 | F81: 1_2_80 | G81: 2_1 | H81: 1_2_1 | I81: 1_2_1_80 | M81: 80 | R81: Warenkorb/ Cart | S81: Sammelbestellungen können Sie über die Warenkorb/ Cart Möglichkeit machen. Wir empfehlen diesen Weg bei einer Bestellmenge über eins, also bei einer gewünschten Bestellauswahl von mehr als einem konkreten Produkt von der Plattform. Im Log können Sie Ihre gemachten Bestellungen (Outlook Synchronisierung) einsehen und behalten somit immer Überblick über Ihre aktuellen Vorgänge. | T81: 9,99 €/mo | U81: 119,88 € per year | V81: 9.99 | W81: 119.88 | X81: 0.999 | AA81: Business Plans
A82: 81 | B82: 1_1_2_81 | C82: 1 | F82: 1_2_81 | G82: 2_1 | H82: 1_2_1 | I82: 1_2_1_81 | M82: 81 | R82: Eigenen Account/ Own Account | S82: PBC oder auch Program Base Cybernetics genannt, stellt hier den Basis Plan mit kostenloser Lizens (Free)vor, welche über eine Vielzahl an nützlichen Grund-Funktionen verfügt . Schon mit der Free License, können Sie beispielsweise Freunde affilieren (Geld verdienen), verschiedenste Produkte auswählen, neue Funktionen zur "Program Base" hinzufügen oder einfach und präzise, Ihr eigenes Profil erstellen und verwalten. | T82: 9,99 €/mo | U82: 119,88 € per year | V82: 9.99 | W82: 119.88 | X82: 0.999 | AA82: Business Plans
A83: 82 | B83: 1_1_2_82 | C83: 1 | F83: 1_2_82 | G83: 2_1 | H83: 1_2_1 | I83: 1_2_1_82 | M83: 82 | R83: Neuigkeiten/ News | S83: Über den Neuigkeiten/ News Button, bekommen Sie im Overview alle Informationen, über Updates, neue Entwicklungen und Geschenke, angezeigt. Hieraus können Sie eine direkte Auswahl treffen. Mit vielfältigen und unterschiedlichen Specials möchten wir von Program Base Cybernetics unsere Kundinnen und Kunden auf dem aktuellen Stand der Entwicklungen und des Fortschritts halten, sodass Sie größtmöglichen Nutzen und Gewinn aus Ihrer Cybernetic Base haben, schaffen und generieren können. | T83: 9,99 €/mo | U83: 119,88 € per year | V83: 9.99 | W83: 119.88 | X83: 0.999 | AA83: Business Plans
A84: 83 | B84: 1_1_2_83 | C84: 1 | F84: 1_2_83 | G84: 2_1 | H84: 1_2_1 | I84: 1_2_1_83 | M84: 83 | R84: Einladung/ Invitation | S84: Die Einladung/ Invitation Funktion der Cybernetic Program Base ermöglicht Ihnen über Social Media (Facebook, Twitter ect.) all Ihren Freunden auf einmal eine Einladung zu Program Base Cybernetics zu schicken. Mit Ihren persönlichen Affiliation Key, wird Ihnen jede erfolgreiche Transaktion Ihrem Konto gutgeschrieben. Die Werben/ Affiliierungskurse können bis zu 5 € pro erfolgreich geworbene/n Kunden/ Kundin betragen. Laut Hochrechnung ist dadurch schnell eine jährliche Balance (Kontostandsausgleich) für qualitativ hochwertigste und einzigartige Cybernetic Basen möglich. Der Unterschied zu der Werben/Affiliate Funktion ist der, dass Sie dort per E-Mail Werben/ Affilieren und über Einladung/Invitation auf bekannten Social Media Seiten zu PBC einladen. Ein sehr entgegenkommendes Angebot seitens PBC und zu empfehlen täglich zu werben. | T84: 9,99 €/mo | U84: 119,88 € per year | V84: 9.99 | W84: 119.88 | X84: 0.999 | AA84: Business Plans
A85: 84 | B85: 1_1_2_84 | C85: 1 | F85: 1_2_84 | G85: 2_1 | H85: 1_2_1 | I85: 1_2_1_84 | M85: 84 | R85: Geschenke/ Gifts | S85: Program Base Cybernetics möchte die Kunden und Kundinnen, belohnen und danken. Durch tägliche Ausschüttung von Rabatten, Gutscheinen, Spezialangeboten und kostenlosen Extrafunktionen, werden alle Kundinnen und Kunden beschenkt. Die erhaltenen Güter können gesammelt werden und bei Neukäufen gutgeschrieben werden. Manche Angebote laufen zeitlich ab, daher empfehlen wir, die Ermäßigungen sobald Sie diese erhalten haben, zu verwenden. | T85: 9,99 €/mo | U85: 119,88 € per year | V85: 9.99 | W85: 119.88 | X85: 0.999 | AA85: Business Plans
A86: 85 | B86: 1_1_2_85 | C86: 1 | F86: 1_2_85 | G86: 2_1 | H86: 1_2_1 | I86: 1_2_1_85 | M86: 85 | R86: Werben/ Affiliate | S86: Geld verdienen bei PBC? Das ist mehr als nur möglich. Mit deinem persönlichen Affiliation Key, kannst du über den Werbe und Affiliate Button, Freunde und Bekannte dazu bewegen, Kunde bei Program Base Cybernetics zu werden. Dafür gibt dir PBC pro erfolgreich geworbenen Kunden bis zu 5€. Das Guthaben wird dir auf deinem Konto gut geschrieben. Den aktuellen Werbekurswert erfährst du über den News Button und wird dir direkt im Overview angezeigt. Dein Guthaben kannst du direkt für neue Bestellungen verwenden oder beispielsweise von deinen monatlichen Plankosten abziehen. Die Einstellungen zu den Transaktionsprozessen findest du über den Button "Balance". Im Laufe der Zeit werden kontinuierlich Werbe/ Affiliation Quests erneuert und entwickelt. Wir empfehlen daher stets die Augen nach neuen Angeboten offen zu halten Viel Spaß beim Werben/ Affilieren/ Geldverdienen. | T86: 9,99 €/mo | U86: 119,88 € per year | V86: 9.99 | W86: 119.88 | X86: 0.999 | AA86: Business Plans
A87: 86 | B87: 1_1_2_86 | C87: 1 | F87: 1_2_86 | G87: 2_1 | H87: 1_2_1 | I87: 1_2_1_86 | M87: 86 | R87: Aktualisieren/ Actualize | S87: Mittels Aktualisieren/ Actualize erhalten Sie automatisch die neuesten Angebote und Vorschläge zu Ihrer persönlichen Cybernetic's Program Base. Somit erneuern Sie Ihren aktuellen Stand der PBC und erfahren dadurch von täglichen Belohnungen, bekommen gelegentlich Gutscheine und sonstige Benefits, als zusätzlicher Vorteil fürs dabeibleiben und nutzen. | T87: 9,99 €/mo | U87: 119,88 € per year | V87: 9.99 | W87: 119.88 | X87: 0.999 | AA87: Business Plans
A88: 87 | B88: 1_1_2_87 | C88: 1 | F88: 1_2_87 | G88: 2_1 | H88: 1_2_1 | I88: 1_2_1_87 | M88: 87 | R88: Aktivierungsfunktion/ Activationfunction | S88: Einfach und schnell können Sie auch schon, ab dem Download, Ihre Program Base aktivieren. In der 14 Tage Phase, stehen Ihnen viele Features bereit. Es ist beispielsweise möglich neue Programme zu durchstöbern, verschiedenste Produkte zu bestellen (ordern), Pläne wechseln, vergleichen und vieles mehr. Zur Aktivierung erhalten Sie einen einzigartigen Lizenzschlüssel, den Sie Ihren Support Bot mitteilen müssen, damit Er/ Sie Ihre Basis freischalten kann. Program Base Cybernetic's KIs (Künstliche Intelligenzen) kümmern sich im System und im Service, um unverzügliche Bearbeitung der Aktivierung und sonstige Aufgaben. Dadurch können Wartezeiten reduziert werden und unnötige Aufwände beseitigt werden, die wir unseren Kunden nicht zumuten möchten. Die PBC soll ja das Leben erleichtern und nicht erschweren. Wir wünschen viel Spaß, und freuen uns auf Ihre erste Aktivierung. | T88: 9,99 €/mo | U88: 119,88 € per year | V88: 9.99 | W88: 119.88 | X88: 0.999 | AA88: Business Plans
A89: 88 | B89: 1_1_2_88 | C89: 1 | F89: 1_2_88 | G89: 2_1 | H89: 1_2_1 | I89: 1_2_1_88 | M89: 88 | R89: Entriegeln/ Unlock | S89: Die Unlock Funktion entsperrt weitere Marktplätze für die Kunden von Program Base Cybernetics oder Partner. Zur sicheren Bedienung der Funktionen und Programme sind die Locks kinderleicht zu entschlüsseln und auf das wesentliche reduziert. | T89: 9,99 €/mo | U89: 119,88 € per year | V89: 9.99 | W89: 119.88 | X89: 0.999 | AA89: Business Plans
A90: 89 | B90: 1_1_2_89 | C90: 1 | F90: 1_2_89 | G90: 2_1 | H90: 1_2_1 | I90: 1_2_1_89 | M90: 89 | R90: Pausierfunktion/ Pausefunction | S90: Pausieren leicht gemacht. Program Base Cybernetics bietet jederzeit auch eine Pause, seis für eine etwas längere Dauer oder aber auch nur kurze Zeit. Ein Reaktivierungsschlüssel schaltet Ihre Program Base wieder aktiv, sodass Sie entweder dort weitermachen können, wo Sie stoppten oder mit neuen, in der Pause gesammelten Ideen und Elan, starten. Bei der Pausierung werden die Plankosten um 90% auf 10% reduziert und ein Reaktivierungsschlüssel übermittelt. Diesen Schlüssel können Sie aber auch jederzeit erneut abfragen, sollte Ihnen dieser während Ihrer Pausierung abhanden gekommen sein, was durchaus jedem passieren kann. Kein Problem. | T90: 9,99 €/mo | U90: 119,88 € per year | V90: 9.99 | W90: 119.88 | X90: 0.999 | AA90: Business Plans
A91: 90 | B91: 1_1_2_90 | C91: 1 | F91: 1_2_90 | G91: 2_1 | H91: 1_2_1 | I91: 1_2_1_90 | M91: 90 | R91: Reaktivierung/ Reactivation | S91: Eine Reaktivierung der Program Base, nach Pausierung, ist jederzeit selbst bestimmbar möglich. Eine Reaktivierung ist bis zu zehn mal möglich, bis Sie Kontakt mit unseren Accountadministratoren aufnehmen müssen, da unser System bei zu häufiger Beanspruchung dieser Funktion empfindlich wird, aber keine Sorge, pausieren und reaktivieren ist jederzeit möglich. | T91: 9,99 €/mo | U91: 119,88 € per year | V91: 9.99 | W91: 119.88 | X91: 0.999 | AA91: Business Plans
A92: 91 | B92: 1_1_2_91 | C92: 1 | F92: 1_2_91 | G92: 2_1 | H92: 1_2_1 | I92: 1_2_1_91 | M92: 91 | R92: Deaktivierung/ Deactivation | S92: Über die Deaktivierung können Sie Ihre gekauften Produkte, vollständig deaktivieren und kündigen. Sollten Sie beispielsweise für eine unabsehbare Zeit absolut keinen Bedarf in der Program Base finden oder sehen können, so empfehlen wir eine Deaktivierung zur nächstmöglichen Zahlungsanweisung. Wir verbessern unsere Basen kontinuierlich weiter, vielleicht finden Sie etwas später Ihre richtigen Instrumente, Tools und Funktionen, Ihre Basis auszubauen und individuell und einzigartig zu konfigurieren. Bestimmte Funktionen (s. PB Functions (PBPLANS)) generieren ganz besondere Sachen für unsere Kunden, vielleicht haben Sie diese noch garnicht gefunden oder besuchen Sie unsere treuen Partnerwebseiten. Bei Verbesserungswünschen, Ideen oder besonderen Fällen können Sie auch unsere Kontakte nutzen. Wir wünschen Ihnen Bestes. Ihre PBCs. | T92: 9,99 €/mo | U92: 119,88 € per year | V92: 9.99 | W92: 119.88 | X92: 0.999 | AA92: Business Plans
A93: 92 | B93: 1_1_2_92 | C93: 1 | F93: 1_2_92 | G93: 2_1 | H93: 1_2_1 | I93: 1_2_1_92 | M93: 92 | R93: Neuerung/ Update | S93: Updates ohne Programme und Programme ohne Updates, wären einfach nur langweilig. Daher ergehen im Namen der Program Base Cybernetics super coole und neue Updates zu Ihrer individuellen Program Base, zu Funktionen, zu neuen Featuren und vielem mehr. Durch auslösen des Update Buttons, erhalten Sie Zugang zu beispielsweise einer neuen Program Base, verbesserten Logiken oder einfach besseren Funktionen. Die Update Funktion ist so konzipiert, dass Sie so wenig Aufwand haben wie möglich, die Neuerungen kostenlos sind, Preise reduziert und selbstverständlich kompatibel zu Ihren bisherigen Entwicklungsstatus sind. Bei Problemen, die eigentlich nicht aufkommen, können Sie sich jederzeit an den KI- Service der PBC wenden. Künstlich intelligente Systeme warten nur darauf, Probleme zu beseitigen und die Zufriedenheit und Sicherheit der PBC-Kundinnen und Kunden zu gewährleisten und zu erfüllen. | T93: 9,99 €/mo | U93: 119,88 € per year | V93: 9.99 | W93: 119.88 | X93: 0.999 | AA93: Business Plans
A94: 93 | B94: 1_1_2_93 | C94: 1 | F94: 1_2_93 | G94: 2_1 | H94: 1_2_1 | I94: 1_2_1_93 | M94: 93 | R94: Upgrade/ Downgrade | S94: PBC bietet neben Updates auch Upgrades an. Der Unterschied zwischen Updates und Upgrades liegt in der Segmentierung der Produkte und Services. Ein Upgrade beispielsweise kann als konkrete Erweiterung in Form eines seperaten Produktes gesehen werden. Ein Upgrade reduziert in der Regel Aufwände und erleichtert einem seine Cybernetic Program Base. Möchten Sie beispielsweise einen Plan Upgraden oder Downgraden, so wären Sie mit diesem Button an richtiger Stelle. Wenn Sie eine gebuchte Funktion doch nicht mehr haben möchten, können Sie durch Downgraden Ihrer Program Base die Funktion entfernen und somit die monatlichen Kosten reduzieren. Die Buchungen erfolgen immer zum nächstmöglichen Abrechnungszeitraum. Wir empfehlen diese Funktion zur nachhaltigen Steigerung der Funktionalitäten Ihrer Cybernetic Base zu nutzen und bedanken uns selbstverständlich für jegliches Upgrade, aber auch Anpassung Ihrer Cybernetic Base an Ihre Bedürfnisse. Dadurch können wir sicher gehen, dass wir unsere Kundinnen und Kunden glücklicher machen können. Das ist unser Ziel und dadurch haben wir gewonnen und dadurch gewinnen wir immer weiter. | T94: 9,99 €/mo | U94: 119,88 € per year | V94: 9.99 | W94: 119.88 | X94: 0.999 | AA94: Business Plans
A95: 94 | B95: 1_1_2_94 | C95: 1 | F95: 1_2_94 | G95: 2_1 | H95: 1_2_1 | I95: 1_2_1_94 | M95: 94 | R95: Kontostand/ Balance | S95: Der Kontostand/ Balance Ihrer Program Base gibt Ihnen Auskunft über Ihr zusätzlich gesammeltes Vermögen durch Werben/ Affilieren, Rabattkampagnien, Einladungen und vielen weiteren Möglichkeiten. Diese Gutschriften, die auch durch Gutscheine erhältlich sind, können von Ihren monatlichen oder jährlichen Plankosten (Plan+Cybernetics) abgezogen werden oder zu Neueinkäufen verwendet werden. Je nach Engagement können Sie es schaffen, eine komplette hochwertige Program Base mit Null Kostenaufwänden zu erstellen. Wir wünschen Ihnen viel Erfolg dabei und fröhliches erschaffen. | T95: 9,99 €/mo | U95: 119,88 € per year | V95: 9.99 | W95: 119.88 | X95: 0.999 | AA95: Business Plans
A96: 95 | B96: 1_1_2_95 | C96: 1 | F96: 1_2_95 | G96: 2_1 | H96: 1_2_1 | I96: 1_2_1_95 | M96: 95 | R96: Kontakt/ Contact | S96: Fragen gibt es immer und antworten tuen wir gern. Daher können Kunden über die Kontakt/ Contact Möglichkeit im Overview, eine Verbindung mit dem KI Service der PBC aufnehmen. Sie können beispielsweise größere Bestellanfragen machen, Fragen zu den Produkten stellen oder Kritik, Ideen und Empfehlungen schicken. Der PBC Service steht Ihnen jederzeit bereit. | T96: 9,99 €/mo | U96: 119,88 € per year | V96: 9.99 | W96: 119.88 | X96: 0.999 | AA96: Business Plans
A97: 96 | B97: 1_1_2_96 | C97: 1 | E97: 1_2 | F97: 1_2_96 | G97: 2_2 | H97: 1_2_2 | I97: 1_2_2_96 | L97: 2 | M97: 96 | N97: 2 | O97: 15 | Q97: Business | R97: Beschreibung/ Description | S97: ="Program Base Cybernetic's presents: "&P97&" "&$P$1&" "&Q97&" : "&T97&" - / -"&U97&" - / -"&" "&$X$1&" "&X97&" €" -> Program Base Cybernetic's presents: Plan Business : 129,99 €/mo - / -1559,88 € per year - / - Pauseprice 12,999 € | T97: =V97&" €/mo" -> 129,99 €/mo | U97: =W97&" € per year" -> 1559,88 € per year | V97: 129.99 | W97: =V97*12 -> 1559.88 | X97: =V97*0.1 -> 12.999 | AA97: Business Plans
A98: 97 | B98: 1_1_2_97 | C98: 1 | F98: 1_2_97 | G98: 2_2 | H98: 1_2_2 | I98: 1_2_2_97 | M98: 97 | R98: Cybernetics | S98: Hier finden Sie die Teile zur Cybernetics Program Base, die Sie so wertvoll machen. Die Funktionen (Cybernetics), auch bekannt unter Bots oder Maschinen (Machineparks) beschreibt das Gesamtkonstrukt der PBC am Besten. Sie können sich einen rießigen Maschinenpark mit kybernetischen Objekten dabei vorstellen, die super leicht zum anpassen, implementieren und instanzieren sind. Cybernetics bieten im Gesamten einfache Bedienbarkeit, stetigen Service, Upgradebarkeit, individuelle Konfigurierbarkeit und Einzigartigkeit. Alle verfügbaren Funktionen können über die Plattform (PB Cybernetics) abgefragt werden. Viel Spaß, wünschen wir beim erstellen Ihrer eigenen und einzigartigen Cybernetic Program Base mit Funktionen (Cybernetics, Bots, Generatoren, Maschienen, Terminals uvm.). | T98: 129,99 €/mo | U98: 1559,88 € per year | V98: 129.99 | W98: 1559.88 | X98: 12.999 | AA98: Business Plans
A99: 98 | B99: 1_1_2_98 | C99: 1 | F99: 1_2_98 | G99: 2_2 | H99: 1_2_2 | I99: 1_2_2_98 | M99: 98 | R99: Bestellen/ Ordern | S99: Eine der wichtigsten Basisfunktionen ist das Bestellen/ Ordern bei Program Base Cybernetics. Über die PBC Plattform oder dem Overview wählen Sie Ihr gewünschtes Produkt durch anklicken aus. Diese eine Auswahl wird Ihnen im Anschluss über "Auswahl/Selection" im etwas größeren Kästchen auf der PBC Plattform mit zugehörigen Features angezeigt. Durch anklicken der einzelnen Features, erhalten Sie nähere Informationen über Ihre Auswahl. Durch klicken/drücken des Bestell/ Order Buttons, öffnet sich ein Fenster mit den entsprechenden Bestellinformationen, die Sie an PBC schicken. Durch Bestätigung des Sende-Vorgangs, also durch das Abschicken Ihrer Bestellung/ Order, setzen Sie den Kauf in Gang. In den Incoterms können Sie nachlesen, welche weiteren Optionen Sie haben und welchen Abrechnungszeiträume (ab Erhalt der Aktivierungsschlüssel zu den Bestellungen) gelten. Bei den Lizensverträgen, können Sie eine Vorauswahl machen, ob Sie beispielsweise eine monatliche Abbuchung oder eine einmalige jährliche Abbuchung (ermäßigt) möchten. | T99: 129,99 €/mo | U99: 1559,88 € per year | V99: 129.99 | W99: 1559.88 | X99: 12.999 | AA99: Business Plans
A100: 99 | B100: 1_1_2_99 | C100: 1 | F100: 1_2_99 | G100: 2_2 | H100: 1_2_2 | I100: 1_2_2_99 | M100: 99 | R100: Warenkorb/ Cart | S100: Sammelbestellungen können Sie über die Warenkorb/ Cart Möglichkeit machen. Wir empfehlen diesen Weg bei einer Bestellmenge über eins, also bei einer gewünschten Bestellauswahl von mehr als einem konkreten Produkt von der Plattform. Im Log können Sie Ihre gemachten Bestellungen (Outlook Synchronisierung) einsehen und behalten somit immer Überblick über Ihre aktuellen Vorgänge. | T100: 129,99 €/mo | U100: 1559,88 € per year | V100: 129.99 | W100: 1559.88 | X100: 12.999 | AA100: Business Plans
A101: 100 | B101: 1_1_2_100 | C101: 1 | F101: 1_2_100 | G101: 2_2 | H101: 1_2_2 | I101: 1_2_2_100 | M101: 100 | R101: Eigenen Account/ Own Account | S101: PBC oder auch Program Base Cybernetics genannt, stellt hier den Basis Plan mit kostenloser Lizens (Free)vor, welche über eine Vielzahl an nützlichen Grund-Funktionen verfügt . Schon mit der Free License, können Sie beispielsweise Freunde affilieren (Geld verdienen), verschiedenste Produkte auswählen, neue Funktionen zur "Program Base" hinzufügen oder einfach und präzise, Ihr eigenes Profil erstellen und verwalten. | T101: 129,99 €/mo | U101: 1559,88 € per year | V101: 129.99 | W101: 1559.88 | X101: 12.999 | AA101: Business Plans
A102: 101 | B102: 1_1_2_101 | C102: 1 | F102: 1_2_101 | G102: 2_2 | H102: 1_2_2 | I102: 1_2_2_101 | M102: 101 | R102: Neuigkeiten/ News | S102: Über den Neuigkeiten/ News Button, bekommen Sie im Overview alle Informationen, über Updates, neue Entwicklungen und Geschenke, angezeigt. Hieraus können Sie eine direkte Auswahl treffen. Mit vielfältigen und unterschiedlichen Specials möchten wir von Program Base Cybernetics unsere Kundinnen und Kunden auf dem aktuellen Stand der Entwicklungen und des Fortschritts halten, sodass Sie größtmöglichen Nutzen und Gewinn aus Ihrer Cybernetic Base haben, schaffen und generieren können. | T102: 129,99 €/mo | U102: 1559,88 € per year | V102: 129.99 | W102: 1559.88 | X102: 12.999 | AA102: Business Plans
A103: 102 | B103: 1_1_2_102 | C103: 1 | F103: 1_2_102 | G103: 2_2 | H103: 1_2_2 | I103: 1_2_2_102 | M103: 102 | R103: Einladung/ Invitation | S103: Die Einladung/ Invitation Funktion der Cybernetic Program Base ermöglicht Ihnen über Social Media (Facebook, Twitter ect.) all Ihren Freunden auf einmal eine Einladung zu Program Base Cybernetics zu schicken. Mit Ihren persönlichen Affiliation Key, wird Ihnen jede erfolgreiche Transaktion Ihrem Konto gutgeschrieben. Die Werben/ Affiliierungskurse können bis zu 5 € pro erfolgreich geworbene/n Kunden/ Kundin betragen. Laut Hochrechnung ist dadurch schnell eine jährliche Balance (Kontostandsausgleich) für qualitativ hochwertigste und einzigartige Cybernetic Basen möglich. Der Unterschied zu der Werben/Affiliate Funktion ist der, dass Sie dort per E-Mail Werben/ Affilieren und über Einladung/Invitation auf bekannten Social Media Seiten zu PBC einladen. Ein sehr entgegenkommendes Angebot seitens PBC und zu empfehlen täglich zu werben. | T103: 129,99 €/mo | U103: 1559,88 € per year | V103: 129.99 | W103: 1559.88 | X103: 12.999 | AA103: Business Plans
A104: 103 | B104: 1_1_2_103 | C104: 1 | F104: 1_2_103 | G104: 2_2 | H104: 1_2_2 | I104: 1_2_2_103 | M104: 103 | R104: Geschenke/ Gifts | S104: Program Base Cybernetics möchte die Kunden und Kundinnen, belohnen und danken. Durch tägliche Ausschüttung von Rabatten, Gutscheinen, Spezialangeboten und kostenlosen Extrafunktionen, werden alle Kundinnen und Kunden beschenkt. Die erhaltenen Güter können gesammelt werden und bei Neukäufen gutgeschrieben werden. Manche Angebote laufen zeitlich ab, daher empfehlen wir, die Ermäßigungen sobald Sie diese erhalten haben, zu verwenden. | T104: 129,99 €/mo | U104: 1559,88 € per year | V104: 129.99 | W104: 1559.88 | X104: 12.999 | AA104: Business Plans
A105: 104 | B105: 1_1_2_104 | C105: 1 | F105: 1_2_104 | G105: 2_2 | H105: 1_2_2 | I105: 1_2_2_104 | M105: 104 | R105: Werben/ Affiliate | S105: Geld verdienen bei PBC? Das ist mehr als nur möglich. Mit deinem persönlichen Affiliation Key, kannst du über den Werbe und Affiliate Button, Freunde und Bekannte dazu bewegen, Kunde bei Program Base Cybernetics zu werden. Dafür gibt dir PBC pro erfolgreich geworbenen Kunden bis zu 5€. Das Guthaben wird dir auf deinem Konto gut geschrieben. Den aktuellen Werbekurswert erfährst du über den News Button und wird dir direkt im Overview angezeigt. Dein Guthaben kannst du direkt für neue Bestellungen verwenden oder beispielsweise von deinen monatlichen Plankosten abziehen. Die Einstellungen zu den Transaktionsprozessen findest du über den Button "Balance". Im Laufe der Zeit werden kontinuierlich Werbe/ Affiliation Quests erneuert und entwickelt. Wir empfehlen daher stets die Augen nach neuen Angeboten offen zu halten Viel Spaß beim Werben/ Affilieren/ Geldverdienen. | T105: 129,99 €/mo | U105: 1559,88 € per year | V105: 129.99 | W105: 1559.88 | X105: 12.999 | AA105: Business Plans
A106: 105 | B106: 1_1_2_105 | C106: 1 | F106: 1_2_105 | G106: 2_2 | H106: 1_2_2 | I106: 1_2_2_105 | M106: 105 | R106: Aktualisieren/ Actualize | S106: Mittels Aktualisieren/ Actualize erhalten Sie automatisch die neuesten Angebote und Vorschläge zu Ihrer persönlichen Cybernetic's Program Base. Somit erneuern Sie Ihren aktuellen Stand der PBC und erfahren dadurch von täglichen Belohnungen, bekommen gelegentlich Gutscheine und sonstige Benefits, als zusätzlicher Vorteil fürs dabeibleiben und nutzen. | T106: 129,99 €/mo | U106: 1559,88 € per year | V106: 129.99 | W106: 1559.88 | X106: 12.999 | AA106: Business Plans
A107: 106 | B107: 1_1_2_106 | C107: 1 | F107: 1_2_106 | G107: 2_2 | H107: 1_2_2 | I107: 1_2_2_106 | M107: 106 | R107: Aktivierungsfunktion/ Activationfunction | S107: Einfach und schnell können Sie auch schon, ab dem Download, Ihre Program Base aktivieren. In der 14 Tage Phase, stehen Ihnen viele Features bereit. Es ist beispielsweise möglich neue Programme zu durchstöbern, verschiedenste Produkte zu bestellen (ordern), Pläne wechseln, vergleichen und vieles mehr. Zur Aktivierung erhalten Sie einen einzigartigen Lizenzschlüssel, den Sie Ihren Support Bot mitteilen müssen, damit Er/ Sie Ihre Basis freischalten kann. Program Base Cybernetic's KIs (Künstliche Intelligenzen) kümmern sich im System und im Service, um unverzügliche Bearbeitung der Aktivierung und sonstige Aufgaben. Dadurch können Wartezeiten reduziert werden und unnötige Aufwände beseitigt werden, die wir unseren Kunden nicht zumuten möchten. Die PBC soll ja das Leben erleichtern und nicht erschweren. Wir wünschen viel Spaß, und freuen uns auf Ihre erste Aktivierung. | T107: 129,99 €/mo | U107: 1559,88 € per year | V107: 129.99 | W107: 1559.88 | X107: 12.999 | AA107: Business Plans
A108: 107 | B108: 1_1_2_107 | C108: 1 | F108: 1_2_107 | G108: 2_2 | H108: 1_2_2 | I108: 1_2_2_107 | M108: 107 | R108: Entriegeln/ Unlock | S108: Die Unlock Funktion entsperrt weitere Marktplätze für die Kunden von Program Base Cybernetics oder Partner. Zur sicheren Bedienung der Funktionen und Programme sind die Locks kinderleicht zu entschlüsseln und auf das wesentliche reduziert. | T108: 129,99 €/mo | U108: 1559,88 € per year | V108: 129.99 | W108: 1559.88 | X108: 12.999 | AA108: Business Plans
A109: 108 | B109: 1_1_2_108 | C109: 1 | F109: 1_2_108 | G109: 2_2 | H109: 1_2_2 | I109: 1_2_2_108 | M109: 108 | R109: Pausierfunktion/ Pausefunction | S109: Pausieren leicht gemacht. Program Base Cybernetics bietet jederzeit auch eine Pause, seis für eine etwas längere Dauer oder aber auch nur kurze Zeit. Ein Reaktivierungsschlüssel schaltet Ihre Program Base wieder aktiv, sodass Sie entweder dort weitermachen können, wo Sie stoppten oder mit neuen, in der Pause gesammelten Ideen und Elan, starten. Bei der Pausierung werden die Plankosten um 90% auf 10% reduziert und ein Reaktivierungsschlüssel übermittelt. Diesen Schlüssel können Sie aber auch jederzeit erneut abfragen, sollte Ihnen dieser während Ihrer Pausierung abhanden gekommen sein, was durchaus jedem passieren kann. Kein Problem. | T109: 129,99 €/mo | U109: 1559,88 € per year | V109: 129.99 | W109: 1559.88 | X109: 12.999 | AA109: Business Plans
A110: 109 | B110: 1_1_2_109 | C110: 1 | F110: 1_2_109 | G110: 2_2 | H110: 1_2_2 | I110: 1_2_2_109 | M110: 109 | R110: Reaktivierung/ Reactivation | S110: Eine Reaktivierung der Program Base, nach Pausierung, ist jederzeit selbst bestimmbar möglich. Eine Reaktivierung ist bis zu zehn mal möglich, bis Sie Kontakt mit unseren Accountadministratoren aufnehmen müssen, da unser System bei zu häufiger Beanspruchung dieser Funktion empfindlich wird, aber keine Sorge, pausieren und reaktivieren ist jederzeit möglich. | T110: 129,99 €/mo | U110: 1559,88 € per year | V110: 129.99 | W110: 1559.88 | X110: 12.999 | AA110: Business Plans
A111: 110 | B111: 1_1_2_110 | C111: 1 | F111: 1_2_110 | G111: 2_2 | H111: 1_2_2 | I111: 1_2_2_110 | M111: 110 | R111: Deaktivierung/ Deactivation | S111: Über die Deaktivierung können Sie Ihre gekauften Produkte, vollständig deaktivieren und kündigen. Sollten Sie beispielsweise für eine unabsehbare Zeit absolut keinen Bedarf in der Program Base finden oder sehen können, so empfehlen wir eine Deaktivierung zur nächstmöglichen Zahlungsanweisung. Wir verbessern unsere Basen kontinuierlich weiter, vielleicht finden Sie etwas später Ihre richtigen Instrumente, Tools und Funktionen, Ihre Basis auszubauen und individuell und einzigartig zu konfigurieren. Bestimmte Funktionen (s. PB Functions (PBPLANS)) generieren ganz besondere Sachen für unsere Kunden, vielleicht haben Sie diese noch garnicht gefunden oder besuchen Sie unsere treuen Partnerwebseiten. Bei Verbesserungswünschen, Ideen oder besonderen Fällen können Sie auch unsere Kontakte nutzen. Wir wünschen Ihnen Bestes. Ihre PBCs. | T111: 129,99 €/mo | U111: 1559,88 € per year | V111: 129.99 | W111: 1559.88 | X111: 12.999 | AA111: Business Plans
A112: 111 | B112: 1_1_2_111 | C112: 1 | F112: 1_2_111 | G112: 2_2 | H112: 1_2_2 | I112: 1_2_2_111 | M112: 111 | R112: Neuerung/ Update | S112: Updates ohne Programme und Programme ohne Updates, wären einfach nur langweilig. Daher ergehen im Namen der Program Base Cybernetics super coole und neue Updates zu Ihrer individuellen Program Base, zu Funktionen, zu neuen Featuren und vielem mehr. Durch auslösen des Update Buttons, erhalten Sie Zugang zu beispielsweise einer neuen Program Base, verbesserten Logiken oder einfach besseren Funktionen. Die Update Funktion ist so konzipiert, dass Sie so wenig Aufwand haben wie möglich, die Neuerungen kostenlos sind, Preise reduziert und selbstverständlich kompatibel zu Ihren bisherigen Entwicklungsstatus sind. Bei Problemen, die eigentlich nicht aufkommen, können Sie sich jederzeit an den KI- Service der PBC wenden. Künstlich intelligente Systeme warten nur darauf, Probleme zu beseitigen und die Zufriedenheit und Sicherheit der PBC-Kundinnen und Kunden zu gewährleisten und zu erfüllen. | T112: 129,99 €/mo | U112: 1559,88 € per year | V112: 129.99 | W112: 1559.88 | X112: 12.999 | AA112: Business Plans
A113: 112 | B113: 1_1_2_112 | C113: 1 | F113: 1_2_112 | G113: 2_2 | H113: 1_2_2 | I113: 1_2_2_112 | M113: 112 | R113: Upgrade/ Downgrade | S113: PBC bietet neben Updates auch Upgrades an. Der Unterschied zwischen Updates und Upgrades liegt in der Segmentierung der Produkte und Services. Ein Upgrade beispielsweise kann als konkrete Erweiterung in Form eines seperaten Produktes gesehen werden. Ein Upgrade reduziert in der Regel Aufwände und erleichtert einem seine Cybernetic Program Base. Möchten Sie beispielsweise einen Plan Upgraden oder Downgraden, so wären Sie mit diesem Button an richtiger Stelle. Wenn Sie eine gebuchte Funktion doch nicht mehr haben möchten, können Sie durch Downgraden Ihrer Program Base die Funktion entfernen und somit die monatlichen Kosten reduzieren. Die Buchungen erfolgen immer zum nächstmöglichen Abrechnungszeitraum. Wir empfehlen diese Funktion zur nachhaltigen Steigerung der Funktionalitäten Ihrer Cybernetic Base zu nutzen und bedanken uns selbstverständlich für jegliches Upgrade, aber auch Anpassung Ihrer Cybernetic Base an Ihre Bedürfnisse. Dadurch können wir sicher gehen, dass wir unsere Kundinnen und Kunden glücklicher machen können. Das ist unser Ziel und dadurch haben wir gewonnen und dadurch gewinnen wir immer weiter. | T113: 129,99 €/mo | U113: 1559,88 € per year | V113: 129.99 | W113: 1559.88 | X113: 12.999 | AA113: Business Plans
A114: 113 | B114: 1_1_2_113 | C114: 1 | F114: 1_2_113 | G114: 2_2 | H114: 1_2_2 | I114: 1_2_2_113 | M114: 113 | R114: Kontostand/ Balance | S114: Der Kontostand/ Balance Ihrer Program Base gibt Ihnen Auskunft über Ihr zusätzlich gesammeltes Vermögen durch Werben/ Affilieren, Rabattkampagnien, Einladungen und vielen weiteren Möglichkeiten. Diese Gutschriften, die auch durch Gutscheine erhältlich sind, können von Ihren monatlichen oder jährlichen Plankosten (Plan+Cybernetics) abgezogen werden oder zu Neueinkäufen verwendet werden. Je nach Engagement können Sie es schaffen, eine komplette hochwertige Program Base mit Null Kostenaufwänden zu erstellen. Wir wünschen Ihnen viel Erfolg dabei und fröhliches erschaffen. | T114: 129,99 €/mo | U114: 1559,88 € per year | V114: 129.99 | W114: 1559.88 | X114: 12.999 | AA114: Business Plans
A115: 114 | B115: 1_1_2_114 | C115: 1 | F115: 1_2_114 | G115: 2_2 | H115: 1_2_2 | I115: 1_2_2_114 | M115: 114 | R115: Kontakt/ Contact | S115: Fragen gibt es immer und antworten tuen wir gern. Daher können Kunden über die Kontakt/ Contact Möglichkeit im Overview, eine Verbindung mit dem KI Service der PBC aufnehmen. Sie können beispielsweise größere Bestellanfragen machen, Fragen zu den Produkten stellen oder Kritik, Ideen und Empfehlungen schicken. Der PBC Service steht Ihnen jederzeit bereit. | T115: 129,99 €/mo | U115: 1559,88 € per year | V115: 129.99 | W115: 1559.88 | X115: 12.999 | AA115: Business Plans
A116: 115 | B116: 1_1_2_115 | C116: 1 | E116: 1_2 | F116: 1_2_115 | G116: 2_3 | H116: 1_2_3 | I116: 1_2_3_115 | L116: 3 | M116: 115 | N116: 5 | O116: 30 | Q116: Vip | R116: Beschreibung/ Description | S116: ="Program Base Cybernetic's presents: "&P116&" "&$P$1&" "&Q116&" : "&T116&" - / -"&U116&" - / -"&" "&$X$1&" "&X116&" €" -> Program Base Cybernetic's presents: Plan Vip : 429,99 €/mo - / -5159,88 € per year - / - Pauseprice 42,999 € | T116: =V116&" €/mo" -> 429,99 €/mo | U116: =W116&" € per year" -> 5159,88 € per year | V116: 429.99 | W116: =V116*12 -> 5159.88 | X116: =V116*0.1 -> 42.999 | AA116: Business Plans
A117: 116 | B117: 1_1_2_116 | C117: 1 | F117: 1_2_116 | G117: 2_3 | H117: 1_2_3 | I117: 1_2_3_116 | M117: 116 | R117: Cybernetics | S117: Hier finden Sie die Teile zur Cybernetics Program Base, die Sie so wertvoll machen. Die Funktionen (Cybernetics), auch bekannt unter Bots oder Maschinen (Machineparks) beschreibt das Gesamtkonstrukt der PBC am Besten. Sie können sich einen rießigen Maschinenpark mit kybernetischen Objekten dabei vorstellen, die super leicht zum anpassen, implementieren und instanzieren sind. Cybernetics bieten im Gesamten einfache Bedienbarkeit, stetigen Service, Upgradebarkeit, individuelle Konfigurierbarkeit und Einzigartigkeit. Alle verfügbaren Funktionen können über die Plattform (PB Cybernetics) abgefragt werden. Viel Spaß, wünschen wir beim erstellen Ihrer eigenen und einzigartigen Cybernetic Program Base mit Funktionen (Cybernetics, Bots, Generatoren, Maschienen, Terminals uvm.). | T117: 429,99 €/mo | U117: 5159,88 € per year | V117: 429.99 | W117: 5159.88 | X117: 42.999 | AA117: Business Plans
A118: 117 | B118: 1_1_2_117 | C118: 1 | F118: 1_2_117 | G118: 2_3 | H118: 1_2_3 | I118: 1_2_3_117 | M118: 117 | R118: Bestellen/ Ordern | S118: Eine der wichtigsten Basisfunktionen ist das Bestellen/ Ordern bei Program Base Cybernetics. Über die PBC Plattform oder dem Overview wählen Sie Ihr gewünschtes Produkt durch anklicken aus. Diese eine Auswahl wird Ihnen im Anschluss über "Auswahl/Selection" im etwas größeren Kästchen auf der PBC Plattform mit zugehörigen Features angezeigt. Durch anklicken der einzelnen Features, erhalten Sie nähere Informationen über Ihre Auswahl. Durch klicken/drücken des Bestell/ Order Buttons, öffnet sich ein Fenster mit den entsprechenden Bestellinformationen, die Sie an PBC schicken. Durch Bestätigung des Sende-Vorgangs, also durch das Abschicken Ihrer Bestellung/ Order, setzen Sie den Kauf in Gang. In den Incoterms können Sie nachlesen, welche weiteren Optionen Sie haben und welchen Abrechnungszeiträume (ab Erhalt der Aktivierungsschlüssel zu den Bestellungen) gelten. Bei den Lizensverträgen, können Sie eine Vorauswahl machen, ob Sie beispielsweise eine monatliche Abbuchung oder eine einmalige jährliche Abbuchung (ermäßigt) möchten. | T118: 429,99 €/mo | U118: 5159,88 € per year | V118: 429.99 | W118: 5159.88 | X118: 42.999 | AA118: Business Plans
A119: 118 | B119: 1_1_2_118 | C119: 1 | F119: 1_2_118 | G119: 2_3 | H119: 1_2_3 | I119: 1_2_3_118 | M119: 118 | R119: Warenkorb/ Cart | S119: Sammelbestellungen können Sie über die Warenkorb/ Cart Möglichkeit machen. Wir empfehlen diesen Weg bei einer Bestellmenge über eins, also bei einer gewünschten Bestellauswahl von mehr als einem konkreten Produkt von der Plattform. Im Log können Sie Ihre gemachten Bestellungen (Outlook Synchronisierung) einsehen und behalten somit immer Überblick über Ihre aktuellen Vorgänge. | T119: 429,99 €/mo | U119: 5159,88 € per year | V119: 429.99 | W119: 5159.88 | X119: 42.999 | AA119: Business Plans
A120: 119 | B120: 1_1_2_119 | C120: 1 | F120: 1_2_119 | G120: 2_3 | H120: 1_2_3 | I120: 1_2_3_119 | M120: 119 | R120: Eigenen Account/ Own Account | S120: PBC oder auch Program Base Cybernetics genannt, stellt hier den Basis Plan mit kostenloser Lizens (Free)vor, welche über eine Vielzahl an nützlichen Grund-Funktionen verfügt . Schon mit der Free License, können Sie beispielsweise Freunde affilieren (Geld verdienen), verschiedenste Produkte auswählen, neue Funktionen zur "Program Base" hinzufügen oder einfach und präzise, Ihr eigenes Profil erstellen und verwalten. | T120: 429,99 €/mo | U120: 5159,88 € per year | V120: 429.99 | W120: 5159.88 | X120: 42.999 | AA120: Business Plans
A121: 120 | B121: 1_1_2_120 | C121: 1 | F121: 1_2_120 | G121: 2_3 | H121: 1_2_3 | I121: 1_2_3_120 | M121: 120 | R121: Neuigkeiten/ News | S121: Über den Neuigkeiten/ News Button, bekommen Sie im Overview alle Informationen, über Updates, neue Entwicklungen und Geschenke, angezeigt. Hieraus können Sie eine direkte Auswahl treffen. Mit vielfältigen und unterschiedlichen Specials möchten wir von Program Base Cybernetics unsere Kundinnen und Kunden auf dem aktuellen Stand der Entwicklungen und des Fortschritts halten, sodass Sie größtmöglichen Nutzen und Gewinn aus Ihrer Cybernetic Base haben, schaffen und generieren können. | T121: 429,99 €/mo | U121: 5159,88 € per year | V121: 429.99 | W121: 5159.88 | X121: 42.999 | AA121: Business Plans
A122: 121 | B122: 1_1_2_121 | C122: 1 | F122: 1_2_121 | G122: 2_3 | H122: 1_2_3 | I122: 1_2_3_121 | M122: 121 | R122: Einladung/ Invitation | S122: Die Einladung/ Invitation Funktion der Cybernetic Program Base ermöglicht Ihnen über Social Media (Facebook, Twitter ect.) all Ihren Freunden auf einmal eine Einladung zu Program Base Cybernetics zu schicken. Mit Ihren persönlichen Affiliation Key, wird Ihnen jede erfolgreiche Transaktion Ihrem Konto gutgeschrieben. Die Werben/ Affiliierungskurse können bis zu 5 € pro erfolgreich geworbene/n Kunden/ Kundin betragen. Laut Hochrechnung ist dadurch schnell eine jährliche Balance (Kontostandsausgleich) für qualitativ hochwertigste und einzigartige Cybernetic Basen möglich. Der Unterschied zu der Werben/Affiliate Funktion ist der, dass Sie dort per E-Mail Werben/ Affilieren und über Einladung/Invitation auf bekannten Social Media Seiten zu PBC einladen. Ein sehr entgegenkommendes Angebot seitens PBC und zu empfehlen täglich zu werben. | T122: 429,99 €/mo | U122: 5159,88 € per year | V122: 429.99 | W122: 5159.88 | X122: 42.999 | AA122: Business Plans
A123: 122 | B123: 1_1_2_122 | C123: 1 | F123: 1_2_122 | G123: 2_3 | H123: 1_2_3 | I123: 1_2_3_122 | M123: 122 | R123: Geschenke/ Gifts | S123: Program Base Cybernetics möchte die Kunden und Kundinnen, belohnen und danken. Durch tägliche Ausschüttung von Rabatten, Gutscheinen, Spezialangeboten und kostenlosen Extrafunktionen, werden alle Kundinnen und Kunden beschenkt. Die erhaltenen Güter können gesammelt werden und bei Neukäufen gutgeschrieben werden. Manche Angebote laufen zeitlich ab, daher empfehlen wir, die Ermäßigungen sobald Sie diese erhalten haben, zu verwenden. | T123: 429,99 €/mo | U123: 5159,88 € per year | V123: 429.99 | W123: 5159.88 | X123: 42.999 | AA123: Business Plans
A124: 123 | B124: 1_1_2_123 | C124: 1 | F124: 1_2_123 | G124: 2_3 | H124: 1_2_3 | I124: 1_2_3_123 | M124: 123 | R124: Werben/ Affiliate | S124: Geld verdienen bei PBC? Das ist mehr als nur möglich. Mit deinem persönlichen Affiliation Key, kannst du über den Werbe und Affiliate Button, Freunde und Bekannte dazu bewegen, Kunde bei Program Base Cybernetics zu werden. Dafür gibt dir PBC pro erfolgreich geworbenen Kunden bis zu 5€. Das Guthaben wird dir auf deinem Konto gut geschrieben. Den aktuellen Werbekurswert erfährst du über den News Button und wird dir direkt im Overview angezeigt. Dein Guthaben kannst du direkt für neue Bestellungen verwenden oder beispielsweise von deinen monatlichen Plankosten abziehen. Die Einstellungen zu den Transaktionsprozessen findest du über den Button "Balance". Im Laufe der Zeit werden kontinuierlich Werbe/ Affiliation Quests erneuert und entwickelt. Wir empfehlen daher stets die Augen nach neuen Angeboten offen zu halten Viel Spaß beim Werben/ Affilieren/ Geldverdienen. | T124: 429,99 €/mo | U124: 5159,88 € per year | V124: 429.99 | W124: 5159.88 | X124: 42.999 | AA124: Business Plans
A125: 124 | B125: 1_1_2_124 | C125: 1 | F125: 1_2_124 | G125: 2_3 | H125: 1_2_3 | I125: 1_2_3_124 | M125: 124 | R125: Aktualisieren/ Actualize | S125: Mittels Aktualisieren/ Actualize erhalten Sie automatisch die neuesten Angebote und Vorschläge zu Ihrer persönlichen Cybernetic's Program Base. Somit erneuern Sie Ihren aktuellen Stand der PBC und erfahren dadurch von täglichen Belohnungen, bekommen gelegentlich Gutscheine und sonstige Benefits, als zusätzlicher Vorteil fürs dabeibleiben und nutzen. | T125: 429,99 €/mo | U125: 5159,88 € per year | V125: 429.99 | W125: 5159.88 | X125: 42.999 | AA125: Business Plans
A126: 125 | B126: 1_1_2_125 | C126: 1 | F126: 1_2_125 | G126: 2_3 | H126: 1_2_3 | I126: 1_2_3_125 | M126: 125 | R126: Aktivierungsfunktion/ Activationfunction | S126: Einfach und schnell können Sie auch schon, ab dem Download, Ihre Program Base aktivieren. In der 14 Tage Phase, stehen Ihnen viele Features bereit. Es ist beispielsweise möglich neue Programme zu durchstöbern, verschiedenste Produkte zu bestellen (ordern), Pläne wechseln, vergleichen und vieles mehr. Zur Aktivierung erhalten Sie einen einzigartigen Lizenzschlüssel, den Sie Ihren Support Bot mitteilen müssen, damit Er/ Sie Ihre Basis freischalten kann. Program Base Cybernetic's KIs (Künstliche Intelligenzen) kümmern sich im System und im Service, um unverzügliche Bearbeitung der Aktivierung und sonstige Aufgaben. Dadurch können Wartezeiten reduziert werden und unnötige Aufwände beseitigt werden, die wir unseren Kunden nicht zumuten möchten. Die PBC soll ja das Leben erleichtern und nicht erschweren. Wir wünschen viel Spaß, und freuen uns auf Ihre erste Aktivierung. | T126: 429,99 €/mo | U126: 5159,88 € per year | V126: 429.99 | W126: 5159.88 | X126: 42.999 | AA126: Business Plans
A127: 126 | B127: 1_1_2_126 | C127: 1 | F127: 1_2_126 | G127: 2_3 | H127: 1_2_3 | I127: 1_2_3_126 | M127: 126 | R127: Entriegeln/ Unlock | S127: Die Unlock Funktion entsperrt weitere Marktplätze für die Kunden von Program Base Cybernetics oder Partner. Zur sicheren Bedienung der Funktionen und Programme sind die Locks kinderleicht zu entschlüsseln und auf das wesentliche reduziert. | T127: 429,99 €/mo | U127: 5159,88 € per year | V127: 429.99 | W127: 5159.88 | X127: 42.999 | AA127: Business Plans
A128: 127 | B128: 1_1_2_127 | C128: 1 | F128: 1_2_127 | G128: 2_3 | H128: 1_2_3 | I128: 1_2_3_127 | M128: 127 | R128: Pausierfunktion/ Pausefunction | S128: Pausieren leicht gemacht. Program Base Cybernetics bietet jederzeit auch eine Pause, seis für eine etwas längere Dauer oder aber auch nur kurze Zeit. Ein Reaktivierungsschlüssel schaltet Ihre Program Base wieder aktiv, sodass Sie entweder dort weitermachen können, wo Sie stoppten oder mit neuen, in der Pause gesammelten Ideen und Elan, starten. Bei der Pausierung werden die Plankosten um 90% auf 10% reduziert und ein Reaktivierungsschlüssel übermittelt. Diesen Schlüssel können Sie aber auch jederzeit erneut abfragen, sollte Ihnen dieser während Ihrer Pausierung abhanden gekommen sein, was durchaus jedem passieren kann. Kein Problem. | T128: 429,99 €/mo | U128: 5159,88 € per year | V128: 429.99 | W128: 5159.88 | X128: 42.999 | AA128: Business Plans
A129: 128 | B129: 1_1_2_128 | C129: 1 | F129: 1_2_128 | G129: 2_3 | H129: 1_2_3 | I129: 1_2_3_128 | M129: 128 | R129: Reaktivierung/ Reactivation | S129: Eine Reaktivierung der Program Base, nach Pausierung, ist jederzeit selbst bestimmbar möglich. Eine Reaktivierung ist bis zu zehn mal möglich, bis Sie Kontakt mit unseren Accountadministratoren aufnehmen müssen, da unser System bei zu häufiger Beanspruchung dieser Funktion empfindlich wird, aber keine Sorge, pausieren und reaktivieren ist jederzeit möglich. | T129: 429,99 €/mo | U129: 5159,88 € per year | V129: 429.99 | W129: 5159.88 | X129: 42.999 | AA129: Business Plans
A130: 129 | B130: 1_1_2_129 | C130: 1 | F130: 1_2_129 | G130: 2_3 | H130: 1_2_3 | I130: 1_2_3_129 | M130: 129 | R130: Deaktivierung/ Deactivation | S130: Über die Deaktivierung können Sie Ihre gekauften Produkte, vollständig deaktivieren und kündigen. Sollten Sie beispielsweise für eine unabsehbare Zeit absolut keinen Bedarf in der Program Base finden oder sehen können, so empfehlen wir eine Deaktivierung zur nächstmöglichen Zahlungsanweisung. Wir verbessern unsere Basen kontinuierlich weiter, vielleicht finden Sie etwas später Ihre richtigen Instrumente, Tools und Funktionen, Ihre Basis auszubauen und individuell und einzigartig zu konfigurieren. Bestimmte Funktionen (s. PB Functions (PBPLANS)) generieren ganz besondere Sachen für unsere Kunden, vielleicht haben Sie diese noch garnicht gefunden oder besuchen Sie unsere treuen Partnerwebseiten. Bei Verbesserungswünschen, Ideen oder besonderen Fällen können Sie auch unsere Kontakte nutzen. Wir wünschen Ihnen Bestes. Ihre PBCs. | T130: 429,99 €/mo | U130: 5159,88 € per year | V130: 429.99 | W130: 5159.88 | X130: 42.999 | AA130: Business Plans
A131: 130 | B131: 1_1_2_130 | C131: 1 | F131: 1_2_130 | G131: 2_3 | H131: 1_2_3 | I131: 1_2_3_130 | M131: 130 | R131: Neuerung/ Update | S131: Updates ohne Programme und Programme ohne Updates, wären einfach nur langweilig. Daher ergehen im Namen der Program Base Cybernetics super coole und neue Updates zu Ihrer individuellen Program Base, zu Funktionen, zu neuen Featuren und vielem mehr. Durch auslösen des Update Buttons, erhalten Sie Zugang zu beispielsweise einer neuen Program Base, verbesserten Logiken oder einfach besseren Funktionen. Die Update Funktion ist so konzipiert, dass Sie so wenig Aufwand haben wie möglich, die Neuerungen kostenlos sind, Preise reduziert und selbstverständlich kompatibel zu Ihren bisherigen Entwicklungsstatus sind. Bei Problemen, die eigentlich nicht aufkommen, können Sie sich jederzeit an den KI- Service der PBC wenden. Künstlich intelligente Systeme warten nur darauf, Probleme zu beseitigen und die Zufriedenheit und Sicherheit der PBC-Kundinnen und Kunden zu gewährleisten und zu erfüllen. | T131: 429,99 €/mo | U131: 5159,88 € per year | V131: 429.99 | W131: 5159.88 | X131: 42.999 | AA131: Business Plans
A132: 131 | B132: 1_1_2_131 | C132: 1 | F132: 1_2_131 | G132: 2_3 | H132: 1_2_3 | I132: 1_2_3_131 | M132: 131 | R132: Upgrade/ Downgrade | S132: PBC bietet neben Updates auch Upgrades an. Der Unterschied zwischen Updates und Upgrades liegt in der Segmentierung der Produkte und Services. Ein Upgrade beispielsweise kann als konkrete Erweiterung in Form eines seperaten Produktes gesehen werden. Ein Upgrade reduziert in der Regel Aufwände und erleichtert einem seine Cybernetic Program Base. Möchten Sie beispielsweise einen Plan Upgraden oder Downgraden, so wären Sie mit diesem Button an richtiger Stelle. Wenn Sie eine gebuchte Funktion doch nicht mehr haben möchten, können Sie durch Downgraden Ihrer Program Base die Funktion entfernen und somit die monatlichen Kosten reduzieren. Die Buchungen erfolgen immer zum nächstmöglichen Abrechnungszeitraum. Wir empfehlen diese Funktion zur nachhaltigen Steigerung der Funktionalitäten Ihrer Cybernetic Base zu nutzen und bedanken uns selbstverständlich für jegliches Upgrade, aber auch Anpassung Ihrer Cybernetic Base an Ihre Bedürfnisse. Dadurch können wir sicher gehen, dass wir unsere Kundinnen und Kunden glücklicher machen können. Das ist unser Ziel und dadurch haben wir gewonnen und dadurch gewinnen wir immer weiter. | T132: 429,99 €/mo | U132: 5159,88 € per year | V132: 429.99 | W132: 5159.88 | X132: 42.999 | AA132: Business Plans
A133: 132 | B133: 1_1_2_132 | C133: 1 | F133: 1_2_132 | G133: 2_3 | H133: 1_2_3 | I133: 1_2_3_132 | M133: 132 | R133: Kontostand/ Balance | S133: Der Kontostand/ Balance Ihrer Program Base gibt Ihnen Auskunft über Ihr zusätzlich gesammeltes Vermögen durch Werben/ Affilieren, Rabattkampagnien, Einladungen und vielen weiteren Möglichkeiten. Diese Gutschriften, die auch durch Gutscheine erhältlich sind, können von Ihren monatlichen oder jährlichen Plankosten (Plan+Cybernetics) abgezogen werden oder zu Neueinkäufen verwendet werden. Je nach Engagement können Sie es schaffen, eine komplette hochwertige Program Base mit Null Kostenaufwänden zu erstellen. Wir wünschen Ihnen viel Erfolg dabei und fröhliches erschaffen. | T133: 429,99 €/mo | U133: 5159,88 € per year | V133: 429.99 | W133: 5159.88 | X133: 42.999 | AA133: Business Plans
A134: 133 | B134: 1_1_2_133 | C134: 1 | F134: 1_2_133 | G134: 2_3 | H134: 1_2_3 | I134: 1_2_3_133 | M134: 133 | R134: Kontakt/ Contact | S134: Fragen gibt es immer und antworten tuen wir gern. Daher können Kunden über die Kontakt/ Contact Möglichkeit im Overview, eine Verbindung mit dem KI Service der PBC aufnehmen. Sie können beispielsweise größere Bestellanfragen machen, Fragen zu den Produkten stellen oder Kritik, Ideen und Empfehlungen schicken. Der PBC Service steht Ihnen jederzeit bereit. | T134: 429,99 €/mo | U134: 5159,88 € per year | V134: 429.99 | W134: 5159.88 | X134: 42.999 | AA134: Business Plans
A135: 134 | B135: 1_1_3_134 | C135: 1 | D135: 1_3 | E135: 1_3 | F135: 1_3_134 | G135: 3_1 | H135: 1_3_1 | I135: 1_3_1_134 | K135: 3 | L135: 1 | M135: 134 | N135: 5 | O135: 160 | P135: Business | Q135: Silver | R135: Beschreibung/ Description | S135: ="Program Base Cybernetic's presents: "&P135&" "&$P$1&" "&Q135&" : "&T135&" - / -"&U135&" - / -"&" "&$X$1&" "&X135&" €" -> Program Base Cybernetic's presents: Business Plan Silver : 1500 €/mo - / -18000 € per year - / - Pauseprice 150 € | T135: =V135&" €/mo" -> 1500 €/mo | U135: =W135&" € per year" -> 18000 € per year | V135: 1500 | W135: =V135*12 -> 18000 | X135: =V135*0.1 -> 150 | AA135: Business Plans
A136: 135 | B136: 1_1_3_135 | C136: 1 | F136: 1_3_135 | G136: 3_1 | H136: 1_3_1 | I136: 1_3_1_135 | M136: 135 | R136: Cybernetics | S136: Hier finden Sie die Teile zur Cybernetics Program Base, die Sie so wertvoll machen. Die Funktionen (Cybernetics), auch bekannt unter Bots oder Maschinen (Machineparks) beschreibt das Gesamtkonstrukt der PBC am Besten. Sie können sich einen rießigen Maschinenpark mit kybernetischen Objekten dabei vorstellen, die super leicht zum anpassen, implementieren und instanzieren sind. Cybernetics bieten im Gesamten einfache Bedienbarkeit, stetigen Service, Upgradebarkeit, individuelle Konfigurierbarkeit und Einzigartigkeit. Alle verfügbaren Funktionen können über die Plattform (PB Cybernetics) abgefragt werden. Viel Spaß, wünschen wir beim erstellen Ihrer eigenen und einzigartigen Cybernetic Program Base mit Funktionen (Cybernetics, Bots, Generatoren, Maschienen, Terminals uvm.). | T136: 1500 €/mo | U136: 18000 € per year | V136: 1500 | W136: 18000 | X136: 150 | AA136: Business Plans
A137: 136 | B137: 1_1_3_136 | C137: 1 | F137: 1_3_136 | G137: 3_1 | H137: 1_3_1 | I137: 1_3_1_136 | M137: 136 | R137: Bestellen/ Ordern | S137: Eine der wichtigsten Basisfunktionen ist das Bestellen/ Ordern bei Program Base Cybernetics. Über die PBC Plattform oder dem Overview wählen Sie Ihr gewünschtes Produkt durch anklicken aus. Diese eine Auswahl wird Ihnen im Anschluss über "Auswahl/Selection" im etwas größeren Kästchen auf der PBC Plattform mit zugehörigen Features angezeigt. Durch anklicken der einzelnen Features, erhalten Sie nähere Informationen über Ihre Auswahl. Durch klicken/drücken des Bestell/ Order Buttons, öffnet sich ein Fenster mit den entsprechenden Bestellinformationen, die Sie an PBC schicken. Durch Bestätigung des Sende-Vorgangs, also durch das Abschicken Ihrer Bestellung/ Order, setzen Sie den Kauf in Gang. In den Incoterms können Sie nachlesen, welche weiteren Optionen Sie haben und welchen Abrechnungszeiträume (ab Erhalt der Aktivierungsschlüssel zu den Bestellungen) gelten. Bei den Lizensverträgen, können Sie eine Vorauswahl machen, ob Sie beispielsweise eine monatliche Abbuchung oder eine einmalige jährliche Abbuchung (ermäßigt) möchten. | T137: 1500 €/mo | U137: 18000 € per year | V137: 1500 | W137: 18000 | X137: 150 | AA137: Business Plans
A138: 137 | B138: 1_1_3_137 | C138: 1 | F138: 1_3_137 | G138: 3_1 | H138: 1_3_1 | I138: 1_3_1_137 | M138: 137 | R138: Warenkorb/ Cart | S138: Sammelbestellungen können Sie über die Warenkorb/ Cart Möglichkeit machen. Wir empfehlen diesen Weg bei einer Bestellmenge über eins, also bei einer gewünschten Bestellauswahl von mehr als einem konkreten Produkt von der Plattform. Im Log können Sie Ihre gemachten Bestellungen (Outlook Synchronisierung) einsehen und behalten somit immer Überblick über Ihre aktuellen Vorgänge. | T138: 1500 €/mo | U138: 18000 € per year | V138: 1500 | W138: 18000 | X138: 150 | AA138: Business Plans
A139: 138 | B139: 1_1_3_138 | C139: 1 | F139: 1_3_138 | G139: 3_1 | H139: 1_3_1 | I139: 1_3_1_138 | M139: 138 | R139: Eigenen Account/ Own Account | S139: PBC oder auch Program Base Cybernetics genannt, stellt hier den Basis Plan mit kostenloser Lizens (Free)vor, welche über eine Vielzahl an nützlichen Grund-Funktionen verfügt . Schon mit der Free License, können Sie beispielsweise Freunde affilieren (Geld verdienen), verschiedenste Produkte auswählen, neue Funktionen zur "Program Base" hinzufügen oder einfach und präzise, Ihr eigenes Profil erstellen und verwalten. | T139: 1500 €/mo | U139: 18000 € per year | V139: 1500 | W139: 18000 | X139: 150 | AA139: Business Plans
A140: 139 | B140: 1_1_3_139 | C140: 1 | F140: 1_3_139 | G140: 3_1 | H140: 1_3_1 | I140: 1_3_1_139 | M140: 139 | R140: Neuigkeiten/ News | S140: Über den Neuigkeiten/ News Button, bekommen Sie im Overview alle Informationen, über Updates, neue Entwicklungen und Geschenke, angezeigt. Hieraus können Sie eine direkte Auswahl treffen. Mit vielfältigen und unterschiedlichen Specials möchten wir von Program Base Cybernetics unsere Kundinnen und Kunden auf dem aktuellen Stand der Entwicklungen und des Fortschritts halten, sodass Sie größtmöglichen Nutzen und Gewinn aus Ihrer Cybernetic Base haben, schaffen und generieren können. | T140: 1500 €/mo | U140: 18000 € per year | V140: 1500 | W140: 18000 | X140: 150 | AA140: Business Plans
A141: 140 | B141: 1_1_3_140 | C141: 1 | F141: 1_3_140 | G141: 3_1 | H141: 1_3_1 | I141: 1_3_1_140 | M141: 140 | R141: Einladung/ Invitation | S141: Die Einladung/ Invitation Funktion der Cybernetic Program Base ermöglicht Ihnen über Social Media (Facebook, Twitter ect.) all Ihren Freunden auf einmal eine Einladung zu Program Base Cybernetics zu schicken. Mit Ihren persönlichen Affiliation Key, wird Ihnen jede erfolgreiche Transaktion Ihrem Konto gutgeschrieben. Die Werben/ Affiliierungskurse können bis zu 5 € pro erfolgreich geworbene/n Kunden/ Kundin betragen. Laut Hochrechnung ist dadurch schnell eine jährliche Balance (Kontostandsausgleich) für qualitativ hochwertigste und einzigartige Cybernetic Basen möglich. Der Unterschied zu der Werben/Affiliate Funktion ist der, dass Sie dort per E-Mail Werben/ Affilieren und über Einladung/Invitation auf bekannten Social Media Seiten zu PBC einladen. Ein sehr entgegenkommendes Angebot seitens PBC und zu empfehlen täglich zu werben. | T141: 1500 €/mo | U141: 18000 € per year | V141: 1500 | W141: 18000 | X141: 150 | AA141: Business Plans
A142: 141 | B142: 1_1_3_141 | C142: 1 | F142: 1_3_141 | G142: 3_1 | H142: 1_3_1 | I142: 1_3_1_141 | M142: 141 | R142: Geschenke/ Gifts | S142: Program Base Cybernetics möchte die Kunden und Kundinnen, belohnen und danken. Durch tägliche Ausschüttung von Rabatten, Gutscheinen, Spezialangeboten und kostenlosen Extrafunktionen, werden alle Kundinnen und Kunden beschenkt. Die erhaltenen Güter können gesammelt werden und bei Neukäufen gutgeschrieben werden. Manche Angebote laufen zeitlich ab, daher empfehlen wir, die Ermäßigungen sobald Sie diese erhalten haben, zu verwenden. | T142: 1500 €/mo | U142: 18000 € per year | V142: 1500 | W142: 18000 | X142: 150 | AA142: Business Plans
A143: 142 | B143: 1_1_3_142 | C143: 1 | F143: 1_3_142 | G143: 3_1 | H143: 1_3_1 | I143: 1_3_1_142 | M143: 142 | R143: Werben/ Affiliate | S143: Geld verdienen bei PBC? Das ist mehr als nur möglich. Mit deinem persönlichen Affiliation Key, kannst du über den Werbe und Affiliate Button, Freunde und Bekannte dazu bewegen, Kunde bei Program Base Cybernetics zu werden. Dafür gibt dir PBC pro erfolgreich geworbenen Kunden bis zu 5€. Das Guthaben wird dir auf deinem Konto gut geschrieben. Den aktuellen Werbekurswert erfährst du über den News Button und wird dir direkt im Overview angezeigt. Dein Guthaben kannst du direkt für neue Bestellungen verwenden oder beispielsweise von deinen monatlichen Plankosten abziehen. Die Einstellungen zu den Transaktionsprozessen findest du über den Button "Balance". Im Laufe der Zeit werden kontinuierlich Werbe/ Affiliation Quests erneuert und entwickelt. Wir empfehlen daher stets die Augen nach neuen Angeboten offen zu halten Viel Spaß beim Werben/ Affilieren/ Geldverdienen. | T143: 1500 €/mo | U143: 18000 € per year | V143: 1500 | W143: 18000 | X143: 150 | AA143: Business Plans
A144: 143 | B144: 1_1_3_143 | C144: 1 | F144: 1_3_143 | G144: 3_1 | H144: 1_3_1 | I144: 1_3_1_143 | M144: 143 | R144: Aktualisieren/ Actualize | S144: Mittels Aktualisieren/ Actualize erhalten Sie automatisch die neuesten Angebote und Vorschläge zu Ihrer persönlichen Cybernetic's Program Base. Somit erneuern Sie Ihren aktuellen Stand der PBC und erfahren dadurch von täglichen Belohnungen, bekommen gelegentlich Gutscheine und sonstige Benefits, als zusätzlicher Vorteil fürs dabeibleiben und nutzen. | T144: 1500 €/mo | U144: 18000 € per year | V144: 1500 | W144: 18000 | X144: 150 | AA144: Business Plans
A145: 144 | B145: 1_1_3_144 | C145: 1 | F145: 1_3_144 | G145: 3_1 | H145: 1_3_1 | I145: 1_3_1_144 | M145: 144 | R145: Aktivierungsfunktion/ Activationfunction | S145: Einfach und schnell können Sie auch schon, ab dem Download, Ihre Program Base aktivieren. In der 14 Tage Phase, stehen Ihnen viele Features bereit. Es ist beispielsweise möglich neue Programme zu durchstöbern, verschiedenste Produkte zu bestellen (ordern), Pläne wechseln, vergleichen und vieles mehr. Zur Aktivierung erhalten Sie einen einzigartigen Lizenzschlüssel, den Sie Ihren Support Bot mitteilen müssen, damit Er/ Sie Ihre Basis freischalten kann. Program Base Cybernetic's KIs (Künstliche Intelligenzen) kümmern sich im System und im Service, um unverzügliche Bearbeitung der Aktivierung und sonstige Aufgaben. Dadurch können Wartezeiten reduziert werden und unnötige Aufwände beseitigt werden, die wir unseren Kunden nicht zumuten möchten. Die PBC soll ja das Leben erleichtern und nicht erschweren. Wir wünschen viel Spaß, und freuen uns auf Ihre erste Aktivierung. | T145: 1500 €/mo | U145: 18000 € per year | V145: 1500 | W145: 18000 | X145: 150 | AA145: Business Plans
A146: 145 | B146: 1_1_3_145 | C146: 1 | F146: 1_3_145 | G146: 3_1 | H146: 1_3_1 | I146: 1_3_1_145 | M146: 145 | R146: Entriegeln/ Unlock | S146: Die Unlock Funktion entsperrt weitere Marktplätze für die Kunden von Program Base Cybernetics oder Partner. Zur sicheren Bedienung der Funktionen und Programme sind die Locks kinderleicht zu entschlüsseln und auf das wesentliche reduziert. | T146: 1500 €/mo | U146: 18000 € per year | V146: 1500 | W146: 18000 | X146: 150 | AA146: Business Plans
A147: 146 | B147: 1_1_3_146 | C147: 1 | F147: 1_3_146 | G147: 3_1 | H147: 1_3_1 | I147: 1_3_1_146 | M147: 146 | R147: Pausierfunktion/ Pausefunction | S147: Pausieren leicht gemacht. Program Base Cybernetics bietet jederzeit auch eine Pause, seis für eine etwas längere Dauer oder aber auch nur kurze Zeit. Ein Reaktivierungsschlüssel schaltet Ihre Program Base wieder aktiv, sodass Sie entweder dort weitermachen können, wo Sie stoppten oder mit neuen, in der Pause gesammelten Ideen und Elan, starten. Bei der Pausierung werden die Plankosten um 90% auf 10% reduziert und ein Reaktivierungsschlüssel übermittelt. Diesen Schlüssel können Sie aber auch jederzeit erneut abfragen, sollte Ihnen dieser während Ihrer Pausierung abhanden gekommen sein, was durchaus jedem passieren kann. Kein Problem. | T147: 1500 €/mo | U147: 18000 € per year | V147: 1500 | W147: 18000 | X147: 150 | AA147: Business Plans
A148: 147 | B148: 1_1_3_147 | C148: 1 | F148: 1_3_147 | G148: 3_1 | H148: 1_3_1 | I148: 1_3_1_147 | M148: 147 | R148: Reaktivierung/ Reactivation | S148: Eine Reaktivierung der Program Base, nach Pausierung, ist jederzeit selbst bestimmbar möglich. Eine Reaktivierung ist bis zu zehn mal möglich, bis Sie Kontakt mit unseren Accountadministratoren aufnehmen müssen, da unser System bei zu häufiger Beanspruchung dieser Funktion empfindlich wird, aber keine Sorge, pausieren und reaktivieren ist jederzeit möglich. | T148: 1500 €/mo | U148: 18000 € per year | V148: 1500 | W148: 18000 | X148: 150 | AA148: Business Plans
A149: 148 | B149: 1_1_3_148 | C149: 1 | F149: 1_3_148 | G149: 3_1 | H149: 1_3_1 | I149: 1_3_1_148 | M149: 148 | R149: Deaktivierung/ Deactivation | S149: Über die Deaktivierung können Sie Ihre gekauften Produkte, vollständig deaktivieren und kündigen. Sollten Sie beispielsweise für eine unabsehbare Zeit absolut keinen Bedarf in der Program Base finden oder sehen können, so empfehlen wir eine Deaktivierung zur nächstmöglichen Zahlungsanweisung. Wir verbessern unsere Basen kontinuierlich weiter, vielleicht finden Sie etwas später Ihre richtigen Instrumente, Tools und Funktionen, Ihre Basis auszubauen und individuell und einzigartig zu konfigurieren. Bestimmte Funktionen (s. PB Functions (PBPLANS)) generieren ganz besondere Sachen für unsere Kunden, vielleicht haben Sie diese noch garnicht gefunden oder besuchen Sie unsere treuen Partnerwebseiten. Bei Verbesserungswünschen, Ideen oder besonderen Fällen können Sie auch unsere Kontakte nutzen. Wir wünschen Ihnen Bestes. Ihre PBCs. | T149: 1500 €/mo | U149: 18000 € per year | V149: 1500 | W149: 18000 | X149: 150 | AA149: Business Plans
A150: 149 | B150: 1_1_3_149 | C150: 1 | F150: 1_3_149 | G150: 3_1 | H150: 1_3_1 | I150: 1_3_1_149 | M150: 149 | R150: Neuerung/ Update | S150: Updates ohne Programme und Programme ohne Updates, wären einfach nur langweilig. Daher ergehen im Namen der Program Base Cybernetics super coole und neue Updates zu Ihrer individuellen Program Base, zu Funktionen, zu neuen Featuren und vielem mehr. Durch auslösen des Update Buttons, erhalten Sie Zugang zu beispielsweise einer neuen Program Base, verbesserten Logiken oder einfach besseren Funktionen. Die Update Funktion ist so konzipiert, dass Sie so wenig Aufwand haben wie möglich, die Neuerungen kostenlos sind, Preise reduziert und selbstverständlich kompatibel zu Ihren bisherigen Entwicklungsstatus sind. Bei Problemen, die eigentlich nicht aufkommen, können Sie sich jederzeit an den KI- Service der PBC wenden. Künstlich intelligente Systeme warten nur darauf, Probleme zu beseitigen und die Zufriedenheit und Sicherheit der PBC-Kundinnen und Kunden zu gewährleisten und zu erfüllen. | T150: 1500 €/mo | U150: 18000 € per year | V150: 1500 | W150: 18000 | X150: 150 | AA150: Business Plans
A151: 150 | B151: 1_1_3_150 | C151: 1 | F151: 1_3_150 | G151: 3_1 | H151: 1_3_1 | I151: 1_3_1_150 | M151: 150 | R151: Upgrade/ Downgrade | S151: PBC bietet neben Updates auch Upgrades an. Der Unterschied zwischen Updates und Upgrades liegt in der Segmentierung der Produkte und Services. Ein Upgrade beispielsweise kann als konkrete Erweiterung in Form eines seperaten Produktes gesehen werden. Ein Upgrade reduziert in der Regel Aufwände und erleichtert einem seine Cybernetic Program Base. Möchten Sie beispielsweise einen Plan Upgraden oder Downgraden, so wären Sie mit diesem Button an richtiger Stelle. Wenn Sie eine gebuchte Funktion doch nicht mehr haben möchten, können Sie durch Downgraden Ihrer Program Base die Funktion entfernen und somit die monatlichen Kosten reduzieren. Die Buchungen erfolgen immer zum nächstmöglichen Abrechnungszeitraum. Wir empfehlen diese Funktion zur nachhaltigen Steigerung der Funktionalitäten Ihrer Cybernetic Base zu nutzen und bedanken uns selbstverständlich für jegliches Upgrade, aber auch Anpassung Ihrer Cybernetic Base an Ihre Bedürfnisse. Dadurch können wir sicher gehen, dass wir unsere Kundinnen und Kunden glücklicher machen können. Das ist unser Ziel und dadurch haben wir gewonnen und dadurch gewinnen wir immer weiter. | T151: 1500 €/mo | U151: 18000 € per year | V151: 1500 | W151: 18000 | X151: 150 | AA151: Business Plans
A152: 151 | B152: 1_1_3_151 | C152: 1 | F152: 1_3_151 | G152: 3_1 | H152: 1_3_1 | I152: 1_3_1_151 | M152: 151 | R152: Kontostand/ Balance | S152: Der Kontostand/ Balance Ihrer Program Base gibt Ihnen Auskunft über Ihr zusätzlich gesammeltes Vermögen durch Werben/ Affilieren, Rabattkampagnien, Einladungen und vielen weiteren Möglichkeiten. Diese Gutschriften, die auch durch Gutscheine erhältlich sind, können von Ihren monatlichen oder jährlichen Plankosten (Plan+Cybernetics) abgezogen werden oder zu Neueinkäufen verwendet werden. Je nach Engagement können Sie es schaffen, eine komplette hochwertige Program Base mit Null Kostenaufwänden zu erstellen. Wir wünschen Ihnen viel Erfolg dabei und fröhliches erschaffen. | T152: 1500 €/mo | U152: 18000 € per year | V152: 1500 | W152: 18000 | X152: 150 | AA152: Business Plans
A153: 152 | B153: 1_1_3_152 | C153: 1 | F153: 1_3_152 | G153: 3_1 | H153: 1_3_1 | I153: 1_3_1_152 | M153: 152 | R153: Kontakt/ Contact | S153: Fragen gibt es immer und antworten tuen wir gern. Daher können Kunden über die Kontakt/ Contact Möglichkeit im Overview, eine Verbindung mit dem KI Service der PBC aufnehmen. Sie können beispielsweise größere Bestellanfragen machen, Fragen zu den Produkten stellen oder Kritik, Ideen und Empfehlungen schicken. Der PBC Service steht Ihnen jederzeit bereit. | T153: 1500 €/mo | U153: 18000 € per year | V153: 1500 | W153: 18000 | X153: 150 | AA153: Business Plans
A154: 153 | B154: 1_1_3_153 | C154: 1 | E154: 1_3 | F154: 1_3_153 | G154: 3_2 | H154: 1_3_2 | I154: 1_3_2_153 | L154: 2 | M154: 153 | N154: 10 | O154: 250 | Q154: Gold | R154: Beschreibung/ Description | S154: ="Program Base Cybernetic's presents: "&P154&" "&$P$1&" "&Q154&" : "&T154&" - / -"&U154&" - / -"&" "&$X$1&" "&X154&" €" -> Program Base Cybernetic's presents: Plan Gold : 2500 €/mo - / -30000 € per year - / - Pauseprice 250 € | T154: =V154&" €/mo" -> 2500 €/mo | U154: =W154&" € per year" -> 30000 € per year | V154: 2500 | W154: =V154*12 -> 30000 | X154: =V154*0.1 -> 250 | AA154: Business Plans
A155: 154 | B155: 1_1_3_154 | C155: 1 | F155: 1_3_154 | G155: 3_2 | H155: 1_3_2 | I155: 1_3_2_154 | M155: 154 | R155: Cybernetics | S155: Hier finden Sie die Teile zur Cybernetics Program Base, die Sie so wertvoll machen. Die Funktionen (Cybernetics), auch bekannt unter Bots oder Maschinen (Machineparks) beschreibt das Gesamtkonstrukt der PBC am Besten. Sie können sich einen rießigen Maschinenpark mit kybernetischen Objekten dabei vorstellen, die super leicht zum anpassen, implementieren und instanzieren sind. Cybernetics bieten im Gesamten einfache Bedienbarkeit, stetigen Service, Upgradebarkeit, individuelle Konfigurierbarkeit und Einzigartigkeit. Alle verfügbaren Funktionen können über die Plattform (PB Cybernetics) abgefragt werden. Viel Spaß, wünschen wir beim erstellen Ihrer eigenen und einzigartigen Cybernetic Program Base mit Funktionen (Cybernetics, Bots, Generatoren, Maschienen, Terminals uvm.). | T155: 2500 €/mo | U155: 30000 € per year | V155: 2500 | W155: 30000 | X155: 250 | AA155: Business Plans
A156: 155 | B156: 1_1_3_155 | C156: 1 | F156: 1_3_155 | G156: 3_2 | H156: 1_3_2 | I156: 1_3_2_155 | M156: 155 | R156: Bestellen/ Ordern | S156: Eine der wichtigsten Basisfunktionen ist das Bestellen/ Ordern bei Program Base Cybernetics. Über die PBC Plattform oder dem Overview wählen Sie Ihr gewünschtes Produkt durch anklicken aus. Diese eine Auswahl wird Ihnen im Anschluss über "Auswahl/Selection" im etwas größeren Kästchen auf der PBC Plattform mit zugehörigen Features angezeigt. Durch anklicken der einzelnen Features, erhalten Sie nähere Informationen über Ihre Auswahl. Durch klicken/drücken des Bestell/ Order Buttons, öffnet sich ein Fenster mit den entsprechenden Bestellinformationen, die Sie an PBC schicken. Durch Bestätigung des Sende-Vorgangs, also durch das Abschicken Ihrer Bestellung/ Order, setzen Sie den Kauf in Gang. In den Incoterms können Sie nachlesen, welche weiteren Optionen Sie haben und welchen Abrechnungszeiträume (ab Erhalt der Aktivierungsschlüssel zu den Bestellungen) gelten. Bei den Lizensverträgen, können Sie eine Vorauswahl machen, ob Sie beispielsweise eine monatliche Abbuchung oder eine einmalige jährliche Abbuchung (ermäßigt) möchten. | T156: 2500 €/mo | U156: 30000 € per year | V156: 2500 | W156: 30000 | X156: 250 | AA156: Business Plans
A157: 156 | B157: 1_1_3_156 | C157: 1 | F157: 1_3_156 | G157: 3_2 | H157: 1_3_2 | I157: 1_3_2_156 | M157: 156 | R157: Warenkorb/ Cart | S157: Sammelbestellungen können Sie über die Warenkorb/ Cart Möglichkeit machen. Wir empfehlen diesen Weg bei einer Bestellmenge über eins, also bei einer gewünschten Bestellauswahl von mehr als einem konkreten Produkt von der Plattform. Im Log können Sie Ihre gemachten Bestellungen (Outlook Synchronisierung) einsehen und behalten somit immer Überblick über Ihre aktuellen Vorgänge. | T157: 2500 €/mo | U157: 30000 € per year | V157: 2500 | W157: 30000 | X157: 250 | AA157: Business Plans
A158: 157 | B158: 1_1_3_157 | C158: 1 | F158: 1_3_157 | G158: 3_2 | H158: 1_3_2 | I158: 1_3_2_157 | M158: 157 | R158: Eigenen Account/ Own Account | S158: PBC oder auch Program Base Cybernetics genannt, stellt hier den Basis Plan mit kostenloser Lizens (Free)vor, welche über eine Vielzahl an nützlichen Grund-Funktionen verfügt . Schon mit der Free License, können Sie beispielsweise Freunde affilieren (Geld verdienen), verschiedenste Produkte auswählen, neue Funktionen zur "Program Base" hinzufügen oder einfach und präzise, Ihr eigenes Profil erstellen und verwalten. | T158: 2500 €/mo | U158: 30000 € per year | V158: 2500 | W158: 30000 | X158: 250 | AA158: Business Plans
A159: 158 | B159: 1_1_3_158 | C159: 1 | F159: 1_3_158 | G159: 3_2 | H159: 1_3_2 | I159: 1_3_2_158 | M159: 158 | R159: Neuigkeiten/ News | S159: Über den Neuigkeiten/ News Button, bekommen Sie im Overview alle Informationen, über Updates, neue Entwicklungen und Geschenke, angezeigt. Hieraus können Sie eine direkte Auswahl treffen. Mit vielfältigen und unterschiedlichen Specials möchten wir von Program Base Cybernetics unsere Kundinnen und Kunden auf dem aktuellen Stand der Entwicklungen und des Fortschritts halten, sodass Sie größtmöglichen Nutzen und Gewinn aus Ihrer Cybernetic Base haben, schaffen und generieren können. | T159: 2500 €/mo | U159: 30000 € per year | V159: 2500 | W159: 30000 | X159: 250 | AA159: Business Plans
A160: 159 | B160: 1_1_3_159 | C160: 1 | F160: 1_3_159 | G160: 3_2 | H160: 1_3_2 | I160: 1_3_2_159 | M160: 159 | R160: Einladung/ Invitation | S160: Die Einladung/ Invitation Funktion der Cybernetic Program Base ermöglicht Ihnen über Social Media (Facebook, Twitter ect.) all Ihren Freunden auf einmal eine Einladung zu Program Base Cybernetics zu schicken. Mit Ihren persönlichen Affiliation Key, wird Ihnen jede erfolgreiche Transaktion Ihrem Konto gutgeschrieben. Die Werben/ Affiliierungskurse können bis zu 5 € pro erfolgreich geworbene/n Kunden/ Kundin betragen. Laut Hochrechnung ist dadurch schnell eine jährliche Balance (Kontostandsausgleich) für qualitativ hochwertigste und einzigartige Cybernetic Basen möglich. Der Unterschied zu der Werben/Affiliate Funktion ist der, dass Sie dort per E-Mail Werben/ Affilieren und über Einladung/Invitation auf bekannten Social Media Seiten zu PBC einladen. Ein sehr entgegenkommendes Angebot seitens PBC und zu empfehlen täglich zu werben. | T160: 2500 €/mo | U160: 30000 € per year | V160: 2500 | W160: 30000 | X160: 250 | AA160: Business Plans
A161: 160 | B161: 1_1_3_160 | C161: 1 | F161: 1_3_160 | G161: 3_2 | H161: 1_3_2 | I161: 1_3_2_160 | M161: 160 | R161: Geschenke/ Gifts | S161: Program Base Cybernetics möchte die Kunden und Kundinnen, belohnen und danken. Durch tägliche Ausschüttung von Rabatten, Gutscheinen, Spezialangeboten und kostenlosen Extrafunktionen, werden alle Kundinnen und Kunden beschenkt. Die erhaltenen Güter können gesammelt werden und bei Neukäufen gutgeschrieben werden. Manche Angebote laufen zeitlich ab, daher empfehlen wir, die Ermäßigungen sobald Sie diese erhalten haben, zu verwenden. | T161: 2500 €/mo | U161: 30000 € per year | V161: 2500 | W161: 30000 | X161: 250 | AA161: Business Plans
A162: 161 | B162: 1_1_3_161 | C162: 1 | F162: 1_3_161 | G162: 3_2 | H162: 1_3_2 | I162: 1_3_2_161 | M162: 161 | R162: Werben/ Affiliate | S162: Geld verdienen bei PBC? Das ist mehr als nur möglich. Mit deinem persönlichen Affiliation Key, kannst du über den Werbe und Affiliate Button, Freunde und Bekannte dazu bewegen, Kunde bei Program Base Cybernetics zu werden. Dafür gibt dir PBC pro erfolgreich geworbenen Kunden bis zu 5€. Das Guthaben wird dir auf deinem Konto gut geschrieben. Den aktuellen Werbekurswert erfährst du über den News Button und wird dir direkt im Overview angezeigt. Dein Guthaben kannst du direkt für neue Bestellungen verwenden oder beispielsweise von deinen monatlichen Plankosten abziehen. Die Einstellungen zu den Transaktionsprozessen findest du über den Button "Balance". Im Laufe der Zeit werden kontinuierlich Werbe/ Affiliation Quests erneuert und entwickelt. Wir empfehlen daher stets die Augen nach neuen Angeboten offen zu halten Viel Spaß beim Werben/ Affilieren/ Geldverdienen. | T162: 2500 €/mo | U162: 30000 € per year | V162: 2500 | W162: 30000 | X162: 250 | AA162: Business Plans
A163: 162 | B163: 1_1_3_162 | C163: 1 | F163: 1_3_162 | G163: 3_2 | H163: 1_3_2 | I163: 1_3_2_162 | M163: 162 | R163: Aktualisieren/ Actualize | S163: Mittels Aktualisieren/ Actualize erhalten Sie automatisch die neuesten Angebote und Vorschläge zu Ihrer persönlichen Cybernetic's Program Base. Somit erneuern Sie Ihren aktuellen Stand der PBC und erfahren dadurch von täglichen Belohnungen, bekommen gelegentlich Gutscheine und sonstige Benefits, als zusätzlicher Vorteil fürs dabeibleiben und nutzen. | T163: 2500 €/mo | U163: 30000 € per year | V163: 2500 | W163: 30000 | X163: 250 | AA163: Business Plans
A164: 163 | B164: 1_1_3_163 | C164: 1 | F164: 1_3_163 | G164: 3_2 | H164: 1_3_2 | I164: 1_3_2_163 | M164: 163 | R164: Aktivierungsfunktion/ Activationfunction | S164: Einfach und schnell können Sie auch schon, ab dem Download, Ihre Program Base aktivieren. In der 14 Tage Phase, stehen Ihnen viele Features bereit. Es ist beispielsweise möglich neue Programme zu durchstöbern, verschiedenste Produkte zu bestellen (ordern), Pläne wechseln, vergleichen und vieles mehr. Zur Aktivierung erhalten Sie einen einzigartigen Lizenzschlüssel, den Sie Ihren Support Bot mitteilen müssen, damit Er/ Sie Ihre Basis freischalten kann. Program Base Cybernetic's KIs (Künstliche Intelligenzen) kümmern sich im System und im Service, um unverzügliche Bearbeitung der Aktivierung und sonstige Aufgaben. Dadurch können Wartezeiten reduziert werden und unnötige Aufwände beseitigt werden, die wir unseren Kunden nicht zumuten möchten. Die PBC soll ja das Leben erleichtern und nicht erschweren. Wir wünschen viel Spaß, und freuen uns auf Ihre erste Aktivierung. | T164: 2500 €/mo | U164: 30000 € per year | V164: 2500 | W164: 30000 | X164: 250 | AA164: Business Plans
A165: 164 | B165: 1_1_3_164 | C165: 1 | F165: 1_3_164 | G165: 3_2 | H165: 1_3_2 | I165: 1_3_2_164 | M165: 164 | R165: Entriegeln/ Unlock | S165: Die Unlock Funktion entsperrt weitere Marktplätze für die Kunden von Program Base Cybernetics oder Partner. Zur sicheren Bedienung der Funktionen und Programme sind die Locks kinderleicht zu entschlüsseln und auf das wesentliche reduziert. | T165: 2500 €/mo | U165: 30000 € per year | V165: 2500 | W165: 30000 | X165: 250 | AA165: Business Plans
A166: 165 | B166: 1_1_3_165 | C166: 1 | F166: 1_3_165 | G166: 3_2 | H166: 1_3_2 | I166: 1_3_2_165 | M166: 165 | R166: Pausierfunktion/ Pausefunction | S166: Pausieren leicht gemacht. Program Base Cybernetics bietet jederzeit auch eine Pause, seis für eine etwas längere Dauer oder aber auch nur kurze Zeit. Ein Reaktivierungsschlüssel schaltet Ihre Program Base wieder aktiv, sodass Sie entweder dort weitermachen können, wo Sie stoppten oder mit neuen, in der Pause gesammelten Ideen und Elan, starten. Bei der Pausierung werden die Plankosten um 90% auf 10% reduziert und ein Reaktivierungsschlüssel übermittelt. Diesen Schlüssel können Sie aber auch jederzeit erneut abfragen, sollte Ihnen dieser während Ihrer Pausierung abhanden gekommen sein, was durchaus jedem passieren kann. Kein Problem. | T166: 2500 €/mo | U166: 30000 € per year | V166: 2500 | W166: 30000 | X166: 250 | AA166: Business Plans
A167: 166 | B167: 1_1_3_166 | C167: 1 | F167: 1_3_166 | G167: 3_2 | H167: 1_3_2 | I167: 1_3_2_166 | M167: 166 | R167: Reaktivierung/ Reactivation | S167: Eine Reaktivierung der Program Base, nach Pausierung, ist jederzeit selbst bestimmbar möglich. Eine Reaktivierung ist bis zu zehn mal möglich, bis Sie Kontakt mit unseren Accountadministratoren aufnehmen müssen, da unser System bei zu häufiger Beanspruchung dieser Funktion empfindlich wird, aber keine Sorge, pausieren und reaktivieren ist jederzeit möglich. | T167: 2500 €/mo | U167: 30000 € per year | V167: 2500 | W167: 30000 | X167: 250 | AA167: Business Plans
A168: 167 | B168: 1_1_3_167 | C168: 1 | F168: 1_3_167 | G168: 3_2 | H168: 1_3_2 | I168: 1_3_2_167 | M168: 167 | R168: Deaktivierung/ Deactivation | S168: Über die Deaktivierung können Sie Ihre gekauften Produkte, vollständig deaktivieren und kündigen. Sollten Sie beispielsweise für eine unabsehbare Zeit absolut keinen Bedarf in der Program Base finden oder sehen können, so empfehlen wir eine Deaktivierung zur nächstmöglichen Zahlungsanweisung. Wir verbessern unsere Basen kontinuierlich weiter, vielleicht finden Sie etwas später Ihre richtigen Instrumente, Tools und Funktionen, Ihre Basis auszubauen und individuell und einzigartig zu konfigurieren. Bestimmte Funktionen (s. PB Functions (PBPLANS)) generieren ganz besondere Sachen für unsere Kunden, vielleicht haben Sie diese noch garnicht gefunden oder besuchen Sie unsere treuen Partnerwebseiten. Bei Verbesserungswünschen, Ideen oder besonderen Fällen können Sie auch unsere Kontakte nutzen. Wir wünschen Ihnen Bestes. Ihre PBCs. | T168: 2500 €/mo | U168: 30000 € per year | V168: 2500 | W168: 30000 | X168: 250 | AA168: Business Plans
A169: 168 | B169: 1_1_3_168 | C169: 1 | F169: 1_3_168 | G169: 3_2 | H169: 1_3_2 | I169: 1_3_2_168 | M169: 168 | R169: Neuerung/ Update | S169: Updates ohne Programme und Programme ohne Updates, wären einfach nur langweilig. Daher ergehen im Namen der Program Base Cybernetics super coole und neue Updates zu Ihrer individuellen Program Base, zu Funktionen, zu neuen Featuren und vielem mehr. Durch auslösen des Update Buttons, erhalten Sie Zugang zu beispielsweise einer neuen Program Base, verbesserten Logiken oder einfach besseren Funktionen. Die Update Funktion ist so konzipiert, dass Sie so wenig Aufwand haben wie möglich, die Neuerungen kostenlos sind, Preise reduziert und selbstverständlich kompatibel zu Ihren bisherigen Entwicklungsstatus sind. Bei Problemen, die eigentlich nicht aufkommen, können Sie sich jederzeit an den KI- Service der PBC wenden. Künstlich intelligente Systeme warten nur darauf, Probleme zu beseitigen und die Zufriedenheit und Sicherheit der PBC-Kundinnen und Kunden zu gewährleisten und zu erfüllen. | T169: 2500 €/mo | U169: 30000 € per year | V169: 2500 | W169: 30000 | X169: 250 | AA169: Business Plans
A170: 169 | B170: 1_1_3_169 | C170: 1 | F170: 1_3_169 | G170: 3_2 | H170: 1_3_2 | I170: 1_3_2_169 | M170: 169 | R170: Upgrade/ Downgrade | S170: PBC bietet neben Updates auch Upgrades an. Der Unterschied zwischen Updates und Upgrades liegt in der Segmentierung der Produkte und Services. Ein Upgrade beispielsweise kann als konkrete Erweiterung in Form eines seperaten Produktes gesehen werden. Ein Upgrade reduziert in der Regel Aufwände und erleichtert einem seine Cybernetic Program Base. Möchten Sie beispielsweise einen Plan Upgraden oder Downgraden, so wären Sie mit diesem Button an richtiger Stelle. Wenn Sie eine gebuchte Funktion doch nicht mehr haben möchten, können Sie durch Downgraden Ihrer Program Base die Funktion entfernen und somit die monatlichen Kosten reduzieren. Die Buchungen erfolgen immer zum nächstmöglichen Abrechnungszeitraum. Wir empfehlen diese Funktion zur nachhaltigen Steigerung der Funktionalitäten Ihrer Cybernetic Base zu nutzen und bedanken uns selbstverständlich für jegliches Upgrade, aber auch Anpassung Ihrer Cybernetic Base an Ihre Bedürfnisse. Dadurch können wir sicher gehen, dass wir unsere Kundinnen und Kunden glücklicher machen können. Das ist unser Ziel und dadurch haben wir gewonnen und dadurch gewinnen wir immer weiter. | T170: 2500 €/mo | U170: 30000 € per year | V170: 2500 | W170: 30000 | X170: 250 | AA170: Business Plans
A171: 170 | B171: 1_1_3_170 | C171: 1 | F171: 1_3_170 | G171: 3_2 | H171: 1_3_2 | I171: 1_3_2_170 | M171: 170 | R171: Kontostand/ Balance | S171: Der Kontostand/ Balance Ihrer Program Base gibt Ihnen Auskunft über Ihr zusätzlich gesammeltes Vermögen durch Werben/ Affilieren, Rabattkampagnien, Einladungen und vielen weiteren Möglichkeiten. Diese Gutschriften, die auch durch Gutscheine erhältlich sind, können von Ihren monatlichen oder jährlichen Plankosten (Plan+Cybernetics) abgezogen werden oder zu Neueinkäufen verwendet werden. Je nach Engagement können Sie es schaffen, eine komplette hochwertige Program Base mit Null Kostenaufwänden zu erstellen. Wir wünschen Ihnen viel Erfolg dabei und fröhliches erschaffen. | T171: 2500 €/mo | U171: 30000 € per year | V171: 2500 | W171: 30000 | X171: 250 | AA171: Business Plans
A172: 171 | B172: 1_1_3_171 | C172: 1 | F172: 1_3_171 | G172: 3_2 | H172: 1_3_2 | I172: 1_3_2_171 | M172: 171 | R172: Kontakt/ Contact | S172: Fragen gibt es immer und antworten tuen wir gern. Daher können Kunden über die Kontakt/ Contact Möglichkeit im Overview, eine Verbindung mit dem KI Service der PBC aufnehmen. Sie können beispielsweise größere Bestellanfragen machen, Fragen zu den Produkten stellen oder Kritik, Ideen und Empfehlungen schicken. Der PBC Service steht Ihnen jederzeit bereit. | T172: 2500 €/mo | U172: 30000 € per year | V172: 2500 | W172: 30000 | X172: 250 | AA172: Business Plans
A173: 172 | B173: 1_1_3_172 | C173: 1 | E173: 1_3 | F173: 1_3_172 | G173: 3_3 | H173: 1_3_3 | I173: 1_3_3_172 | L173: 3 | M173: 172 | N173: 15 | O173: 300 | Q173: Platin | R173: Beschreibung/ Description | S173: ="Program Base Cybernetic's presents: "&P173&" "&$P$1&" "&Q173&" : "&T173&" - / -"&U173&" - / -"&" "&$X$1&" "&X173&" €" -> Program Base Cybernetic's presents: Plan Platin : 3500 €/mo - / -42000 € per year - / - Pauseprice 350 € | T173: =V173&" €/mo" -> 3500 €/mo | U173: =W173&" € per year" -> 42000 € per year | V173: 3500 | W173: =V173*12 -> 42000 | X173: =V173*0.1 -> 350 | AA173: Business Plans
A174: 173 | B174: 1_1_3_173 | C174: 1 | F174: 1_3_173 | G174: 3_3 | H174: 1_3_3 | I174: 1_3_3_173 | M174: 173 | R174: Cybernetics | S174: Hier finden Sie die Teile zur Cybernetics Program Base, die Sie so wertvoll machen. Die Funktionen (Cybernetics), auch bekannt unter Bots oder Maschinen (Machineparks) beschreibt das Gesamtkonstrukt der PBC am Besten. Sie können sich einen rießigen Maschinenpark mit kybernetischen Objekten dabei vorstellen, die super leicht zum anpassen, implementieren und instanzieren sind. Cybernetics bieten im Gesamten einfache Bedienbarkeit, stetigen Service, Upgradebarkeit, individuelle Konfigurierbarkeit und Einzigartigkeit. Alle verfügbaren Funktionen können über die Plattform (PB Cybernetics) abgefragt werden. Viel Spaß, wünschen wir beim erstellen Ihrer eigenen und einzigartigen Cybernetic Program Base mit Funktionen (Cybernetics, Bots, Generatoren, Maschienen, Terminals uvm.). | T174: 3500 €/mo | U174: 42000 € per year | V174: 3500 | W174: 42000 | X174: 350 | AA174: Business Plans
A175: 174 | B175: 1_1_3_174 | C175: 1 | F175: 1_3_174 | G175: 3_3 | H175: 1_3_3 | I175: 1_3_3_174 | M175: 174 | R175: Bestellen/ Ordern | S175: Eine der wichtigsten Basisfunktionen ist das Bestellen/ Ordern bei Program Base Cybernetics. Über die PBC Plattform oder dem Overview wählen Sie Ihr gewünschtes Produkt durch anklicken aus. Diese eine Auswahl wird Ihnen im Anschluss über "Auswahl/Selection" im etwas größeren Kästchen auf der PBC Plattform mit zugehörigen Features angezeigt. Durch anklicken der einzelnen Features, erhalten Sie nähere Informationen über Ihre Auswahl. Durch klicken/drücken des Bestell/ Order Buttons, öffnet sich ein Fenster mit den entsprechenden Bestellinformationen, die Sie an PBC schicken. Durch Bestätigung des Sende-Vorgangs, also durch das Abschicken Ihrer Bestellung/ Order, setzen Sie den Kauf in Gang. In den Incoterms können Sie nachlesen, welche weiteren Optionen Sie haben und welchen Abrechnungszeiträume (ab Erhalt der Aktivierungsschlüssel zu den Bestellungen) gelten. Bei den Lizensverträgen, können Sie eine Vorauswahl machen, ob Sie beispielsweise eine monatliche Abbuchung oder eine einmalige jährliche Abbuchung (ermäßigt) möchten. | T175: 3500 €/mo | U175: 42000 € per year | V175: 3500 | W175: 42000 | X175: 350 | AA175: Business Plans
A176: 175 | B176: 1_1_3_175 | C176: 1 | F176: 1_3_175 | G176: 3_3 | H176: 1_3_3 | I176: 1_3_3_175 | M176: 175 | R176: Warenkorb/ Cart | S176: Sammelbestellungen können Sie über die Warenkorb/ Cart Möglichkeit machen. Wir empfehlen diesen Weg bei einer Bestellmenge über eins, also bei einer gewünschten Bestellauswahl von mehr als einem konkreten Produkt von der Plattform. Im Log können Sie Ihre gemachten Bestellungen (Outlook Synchronisierung) einsehen und behalten somit immer Überblick über Ihre aktuellen Vorgänge. | T176: 3500 €/mo | U176: 42000 € per year | V176: 3500 | W176: 42000 | X176: 350 | AA176: Business Plans
A177: 176 | B177: 1_1_3_176 | C177: 1 | F177: 1_3_176 | G177: 3_3 | H177: 1_3_3 | I177: 1_3_3_176 | M177: 176 | R177: Eigenen Account/ Own Account | S177: PBC oder auch Program Base Cybernetics genannt, stellt hier den Basis Plan mit kostenloser Lizens (Free)vor, welche über eine Vielzahl an nützlichen Grund-Funktionen verfügt . Schon mit der Free License, können Sie beispielsweise Freunde affilieren (Geld verdienen), verschiedenste Produkte auswählen, neue Funktionen zur "Program Base" hinzufügen oder einfach und präzise, Ihr eigenes Profil erstellen und verwalten. | T177: 3500 €/mo | U177: 42000 € per year | V177: 3500 | W177: 42000 | X177: 350 | AA177: Business Plans
A178: 177 | B178: 1_1_3_177 | C178: 1 | F178: 1_3_177 | G178: 3_3 | H178: 1_3_3 | I178: 1_3_3_177 | M178: 177 | R178: Neuigkeiten/ News | S178: Über den Neuigkeiten/ News Button, bekommen Sie im Overview alle Informationen, über Updates, neue Entwicklungen und Geschenke, angezeigt. Hieraus können Sie eine direkte Auswahl treffen. Mit vielfältigen und unterschiedlichen Specials möchten wir von Program Base Cybernetics unsere Kundinnen und Kunden auf dem aktuellen Stand der Entwicklungen und des Fortschritts halten, sodass Sie größtmöglichen Nutzen und Gewinn aus Ihrer Cybernetic Base haben, schaffen und generieren können. | T178: 3500 €/mo | U178: 42000 € per year | V178: 3500 | W178: 42000 | X178: 350 | AA178: Business Plans
A179: 178 | B179: 1_1_3_178 | C179: 1 | F179: 1_3_178 | G179: 3_3 | H179: 1_3_3 | I179: 1_3_3_178 | M179: 178 | R179: Einladung/ Invitation | S179: Die Einladung/ Invitation Funktion der Cybernetic Program Base ermöglicht Ihnen über Social Media (Facebook, Twitter ect.) all Ihren Freunden auf einmal eine Einladung zu Program Base Cybernetics zu schicken. Mit Ihren persönlichen Affiliation Key, wird Ihnen jede erfolgreiche Transaktion Ihrem Konto gutgeschrieben. Die Werben/ Affiliierungskurse können bis zu 5 € pro erfolgreich geworbene/n Kunden/ Kundin betragen. Laut Hochrechnung ist dadurch schnell eine jährliche Balance (Kontostandsausgleich) für qualitativ hochwertigste und einzigartige Cybernetic Basen möglich. Der Unterschied zu der Werben/Affiliate Funktion ist der, dass Sie dort per E-Mail Werben/ Affilieren und über Einladung/Invitation auf bekannten Social Media Seiten zu PBC einladen. Ein sehr entgegenkommendes Angebot seitens PBC und zu empfehlen täglich zu werben. | T179: 3500 €/mo | U179: 42000 € per year | V179: 3500 | W179: 42000 | X179: 350 | AA179: Business Plans
A180: 179 | B180: 1_1_3_179 | C180: 1 | F180: 1_3_179 | G180: 3_3 | H180: 1_3_3 | I180: 1_3_3_179 | M180: 179 | R180: Geschenke/ Gifts | S180: Program Base Cybernetics möchte die Kunden und Kundinnen, belohnen und danken. Durch tägliche Ausschüttung von Rabatten, Gutscheinen, Spezialangeboten und kostenlosen Extrafunktionen, werden alle Kundinnen und Kunden beschenkt. Die erhaltenen Güter können gesammelt werden und bei Neukäufen gutgeschrieben werden. Manche Angebote laufen zeitlich ab, daher empfehlen wir, die Ermäßigungen sobald Sie diese erhalten haben, zu verwenden. | T180: 3500 €/mo | U180: 42000 € per year | V180: 3500 | W180: 42000 | X180: 350 | AA180: Business Plans
A181: 180 | B181: 1_1_3_180 | C181: 1 | F181: 1_3_180 | G181: 3_3 | H181: 1_3_3 | I181: 1_3_3_180 | M181: 180 | R181: Werben/ Affiliate | S181: Geld verdienen bei PBC? Das ist mehr als nur möglich. Mit deinem persönlichen Affiliation Key, kannst du über den Werbe und Affiliate Button, Freunde und Bekannte dazu bewegen, Kunde bei Program Base Cybernetics zu werden. Dafür gibt dir PBC pro erfolgreich geworbenen Kunden bis zu 5€. Das Guthaben wird dir auf deinem Konto gut geschrieben. Den aktuellen Werbekurswert erfährst du über den News Button und wird dir direkt im Overview angezeigt. Dein Guthaben kannst du direkt für neue Bestellungen verwenden oder beispielsweise von deinen monatlichen Plankosten abziehen. Die Einstellungen zu den Transaktionsprozessen findest du über den Button "Balance". Im Laufe der Zeit werden kontinuierlich Werbe/ Affiliation Quests erneuert und entwickelt. Wir empfehlen daher stets die Augen nach neuen Angeboten offen zu halten Viel Spaß beim Werben/ Affilieren/ Geldverdienen. | T181: 3500 €/mo | U181: 42000 € per year | V181: 3500 | W181: 42000 | X181: 350 | AA181: Business Plans
A182: 181 | B182: 1_1_3_181 | C182: 1 | F182: 1_3_181 | G182: 3_3 | H182: 1_3_3 | I182: 1_3_3_181 | M182: 181 | R182: Aktualisieren/ Actualize | S182: Mittels Aktualisieren/ Actualize erhalten Sie automatisch die neuesten Angebote und Vorschläge zu Ihrer persönlichen Cybernetic's Program Base. Somit erneuern Sie Ihren aktuellen Stand der PBC und erfahren dadurch von täglichen Belohnungen, bekommen gelegentlich Gutscheine und sonstige Benefits, als zusätzlicher Vorteil fürs dabeibleiben und nutzen. | T182: 3500 €/mo | U182: 42000 € per year | V182: 3500 | W182: 42000 | X182: 350 | AA182: Business Plans
A183: 182 | B183: 1_1_3_182 | C183: 1 | F183: 1_3_182 | G183: 3_3 | H183: 1_3_3 | I183: 1_3_3_182 | M183: 182 | R183: Aktivierungsfunktion/ Activationfunction | S183: Einfach und schnell können Sie auch schon, ab dem Download, Ihre Program Base aktivieren. In der 14 Tage Phase, stehen Ihnen viele Features bereit. Es ist beispielsweise möglich neue Programme zu durchstöbern, verschiedenste Produkte zu bestellen (ordern), Pläne wechseln, vergleichen und vieles mehr. Zur Aktivierung erhalten Sie einen einzigartigen Lizenzschlüssel, den Sie Ihren Support Bot mitteilen müssen, damit Er/ Sie Ihre Basis freischalten kann. Program Base Cybernetic's KIs (Künstliche Intelligenzen) kümmern sich im System und im Service, um unverzügliche Bearbeitung der Aktivierung und sonstige Aufgaben. Dadurch können Wartezeiten reduziert werden und unnötige Aufwände beseitigt werden, die wir unseren Kunden nicht zumuten möchten. Die PBC soll ja das Leben erleichtern und nicht erschweren. Wir wünschen viel Spaß, und freuen uns auf Ihre erste Aktivierung. | T183: 3500 €/mo | U183: 42000 € per year | V183: 3500 | W183: 42000 | X183: 350 | AA183: Business Plans
A184: 183 | B184: 1_1_3_183 | C184: 1 | F184: 1_3_183 | G184: 3_3 | H184: 1_3_3 | I184: 1_3_3_183 | M184: 183 | R184: Entriegeln/ Unlock | S184: Die Unlock Funktion entsperrt weitere Marktplätze für die Kunden von Program Base Cybernetics oder Partner. Zur sicheren Bedienung der Funktionen und Programme sind die Locks kinderleicht zu entschlüsseln und auf das wesentliche reduziert. | T184: 3500 €/mo | U184: 42000 € per year | V184: 3500 | W184: 42000 | X184: 350 | AA184: Business Plans
A185: 184 | B185: 1_1_3_184 | C185: 1 | F185: 1_3_184 | G185: 3_3 | H185: 1_3_3 | I185: 1_3_3_184 | M185: 184 | R185: Pausierfunktion/ Pausefunction | S185: Pausieren leicht gemacht. Program Base Cybernetics bietet jederzeit auch eine Pause, seis für eine etwas längere Dauer oder aber auch nur kurze Zeit. Ein Reaktivierungsschlüssel schaltet Ihre Program Base wieder aktiv, sodass Sie entweder dort weitermachen können, wo Sie stoppten oder mit neuen, in der Pause gesammelten Ideen und Elan, starten. Bei der Pausierung werden die Plankosten um 90% auf 10% reduziert und ein Reaktivierungsschlüssel übermittelt. Diesen Schlüssel können Sie aber auch jederzeit erneut abfragen, sollte Ihnen dieser während Ihrer Pausierung abhanden gekommen sein, was durchaus jedem passieren kann. Kein Problem. | T185: 3500 €/mo | U185: 42000 € per year | V185: 3500 | W185: 42000 | X185: 350 | AA185: Business Plans
A186: 185 | B186: 1_1_3_185 | C186: 1 | F186: 1_3_185 | G186: 3_3 | H186: 1_3_3 | I186: 1_3_3_185 | M186: 185 | R186: Reaktivierung/ Reactivation | S186: Eine Reaktivierung der Program Base, nach Pausierung, ist jederzeit selbst bestimmbar möglich. Eine Reaktivierung ist bis zu zehn mal möglich, bis Sie Kontakt mit unseren Accountadministratoren aufnehmen müssen, da unser System bei zu häufiger Beanspruchung dieser Funktion empfindlich wird, aber keine Sorge, pausieren und reaktivieren ist jederzeit möglich. | T186: 3500 €/mo | U186: 42000 € per year | V186: 3500 | W186: 42000 | X186: 350 | AA186: Business Plans
A187: 186 | B187: 1_1_3_186 | C187: 1 | F187: 1_3_186 | G187: 3_3 | H187: 1_3_3 | I187: 1_3_3_186 | M187: 186 | R187: Deaktivierung/ Deactivation | S187: Über die Deaktivierung können Sie Ihre gekauften Produkte, vollständig deaktivieren und kündigen. Sollten Sie beispielsweise für eine unabsehbare Zeit absolut keinen Bedarf in der Program Base finden oder sehen können, so empfehlen wir eine Deaktivierung zur nächstmöglichen Zahlungsanweisung. Wir verbessern unsere Basen kontinuierlich weiter, vielleicht finden Sie etwas später Ihre richtigen Instrumente, Tools und Funktionen, Ihre Basis auszubauen und individuell und einzigartig zu konfigurieren. Bestimmte Funktionen (s. PB Functions (PBPLANS)) generieren ganz besondere Sachen für unsere Kunden, vielleicht haben Sie diese noch garnicht gefunden oder besuchen Sie unsere treuen Partnerwebseiten. Bei Verbesserungswünschen, Ideen oder besonderen Fällen können Sie auch unsere Kontakte nutzen. Wir wünschen Ihnen Bestes. Ihre PBCs. | T187: 3500 €/mo | U187: 42000 € per year | V187: 3500 | W187: 42000 | X187: 350 | AA187: Business Plans
A188: 187 | B188: 1_1_3_187 | C188: 1 | F188: 1_3_187 | G188: 3_3 | H188: 1_3_3 | I188: 1_3_3_187 | M188: 187 | R188: Neuerung/ Update | S188: Updates ohne Programme und Programme ohne Updates, wären einfach nur langweilig. Daher ergehen im Namen der Program Base Cybernetics super coole und neue Updates zu Ihrer individuellen Program Base, zu Funktionen, zu neuen Featuren und vielem mehr. Durch auslösen des Update Buttons, erhalten Sie Zugang zu beispielsweise einer neuen Program Base, verbesserten Logiken oder einfach besseren Funktionen. Die Update Funktion ist so konzipiert, dass Sie so wenig Aufwand haben wie möglich, die Neuerungen kostenlos sind, Preise reduziert und selbstverständlich kompatibel zu Ihren bisherigen Entwicklungsstatus sind. Bei Problemen, die eigentlich nicht aufkommen, können Sie sich jederzeit an den KI- Service der PBC wenden. Künstlich intelligente Systeme warten nur darauf, Probleme zu beseitigen und die Zufriedenheit und Sicherheit der PBC-Kundinnen und Kunden zu gewährleisten und zu erfüllen. | T188: 3500 €/mo | U188: 42000 € per year | V188: 3500 | W188: 42000 | X188: 350 | AA188: Business Plans
A189: 188 | B189: 1_1_3_188 | C189: 1 | F189: 1_3_188 | G189: 3_3 | H189: 1_3_3 | I189: 1_3_3_188 | M189: 188 | R189: Upgrade/ Downgrade | S189: PBC bietet neben Updates auch Upgrades an. Der Unterschied zwischen Updates und Upgrades liegt in der Segmentierung der Produkte und Services. Ein Upgrade beispielsweise kann als konkrete Erweiterung in Form eines seperaten Produktes gesehen werden. Ein Upgrade reduziert in der Regel Aufwände und erleichtert einem seine Cybernetic Program Base. Möchten Sie beispielsweise einen Plan Upgraden oder Downgraden, so wären Sie mit diesem Button an richtiger Stelle. Wenn Sie eine gebuchte Funktion doch nicht mehr haben möchten, können Sie durch Downgraden Ihrer Program Base die Funktion entfernen und somit die monatlichen Kosten reduzieren. Die Buchungen erfolgen immer zum nächstmöglichen Abrechnungszeitraum. Wir empfehlen diese Funktion zur nachhaltigen Steigerung der Funktionalitäten Ihrer Cybernetic Base zu nutzen und bedanken uns selbstverständlich für jegliches Upgrade, aber auch Anpassung Ihrer Cybernetic Base an Ihre Bedürfnisse. Dadurch können wir sicher gehen, dass wir unsere Kundinnen und Kunden glücklicher machen können. Das ist unser Ziel und dadurch haben wir gewonnen und dadurch gewinnen wir immer weiter. | T189: 3500 €/mo | U189: 42000 € per year | V189: 3500 | W189: 42000 | X189: 350 | AA189: Business Plans
A190: 189 | B190: 1_1_3_189 | C190: 1 | F190: 1_3_189 | G190: 3_3 | H190: 1_3_3 | I190: 1_3_3_189 | M190: 189 | R190: Kontostand/ Balance | S190: Der Kontostand/ Balance Ihrer Program Base gibt Ihnen Auskunft über Ihr zusätzlich gesammeltes Vermögen durch Werben/ Affilieren, Rabattkampagnien, Einladungen und vielen weiteren Möglichkeiten. Diese Gutschriften, die auch durch Gutscheine erhältlich sind, können von Ihren monatlichen oder jährlichen Plankosten (Plan+Cybernetics) abgezogen werden oder zu Neueinkäufen verwendet werden. Je nach Engagement können Sie es schaffen, eine komplette hochwertige Program Base mit Null Kostenaufwänden zu erstellen. Wir wünschen Ihnen viel Erfolg dabei und fröhliches erschaffen. | T190: 3500 €/mo | U190: 42000 € per year | V190: 3500 | W190: 42000 | X190: 350 | AA190: Business Plans
A191: 190 | B191: 1_1_3_190 | C191: 1 | F191: 1_3_190 | G191: 3_3 | H191: 1_3_3 | I191: 1_3_3_190 | M191: 190 | R191: Kontakt/ Contact | S191: Fragen gibt es immer und antworten tuen wir gern. Daher können Kunden über die Kontakt/ Contact Möglichkeit im Overview, eine Verbindung mit dem KI Service der PBC aufnehmen. Sie können beispielsweise größere Bestellanfragen machen, Fragen zu den Produkten stellen oder Kritik, Ideen und Empfehlungen schicken. Der PBC Service steht Ihnen jederzeit bereit. | T191: 3500 €/mo | U191: 42000 € per year | V191: 3500 | W191: 42000 | X191: 350 | AA191: Business Plans
A192: 191 | B192: 1_1_3_191 | C192: 1 | E192: 1_3 | F192: 1_3_191 | G192: 3_4 | H192: 1_3_4 | I192: 1_3_4_191 | L192: 4 | M192: 191 | N192: 20 | O192: 350 | Q192: Californium | R192: Beschreibung/ Description | S192: ="Program Base Cybernetic's presents: "&P192&" "&$P$1&" "&Q192&" : "&T192&" - / -"&U192&" - / -"&" "&$X$1&" "&X192&" €" -> Program Base Cybernetic's presents: Plan Californium : 5000 €/mo - / -60000 € per year - / - Pauseprice 500 € | T192: =V192&" €/mo" -> 5000 €/mo | U192: =W192&" € per year" -> 60000 € per year | V192: 5000 | W192: =V192*12 -> 60000 | X192: =V192*0.1 -> 500 | AA192: Business Plans
A193: 192 | B193: 1_1_3_192 | C193: 1 | F193: 1_3_192 | G193: 3_4 | H193: 1_3_4 | I193: 1_3_4_192 | M193: 192 | R193: Cybernetics | S193: Hier finden Sie die Teile zur Cybernetics Program Base, die Sie so wertvoll machen. Die Funktionen (Cybernetics), auch bekannt unter Bots oder Maschinen (Machineparks) beschreibt das Gesamtkonstrukt der PBC am Besten. Sie können sich einen rießigen Maschinenpark mit kybernetischen Objekten dabei vorstellen, die super leicht zum anpassen, implementieren und instanzieren sind. Cybernetics bieten im Gesamten einfache Bedienbarkeit, stetigen Service, Upgradebarkeit, individuelle Konfigurierbarkeit und Einzigartigkeit. Alle verfügbaren Funktionen können über die Plattform (PB Cybernetics) abgefragt werden. Viel Spaß, wünschen wir beim erstellen Ihrer eigenen und einzigartigen Cybernetic Program Base mit Funktionen (Cybernetics, Bots, Generatoren, Maschienen, Terminals uvm.). | T193: 5000 €/mo | U193: 60000 € per year | V193: 5000 | W193: 60000 | X193: 500 | AA193: Business Plans
A194: 193 | B194: 1_1_3_193 | C194: 1 | F194: 1_3_193 | G194: 3_4 | H194: 1_3_4 | I194: 1_3_4_193 | M194: 193 | R194: Bestellen/ Ordern | S194: Eine der wichtigsten Basisfunktionen ist das Bestellen/ Ordern bei Program Base Cybernetics. Über die PBC Plattform oder dem Overview wählen Sie Ihr gewünschtes Produkt durch anklicken aus. Diese eine Auswahl wird Ihnen im Anschluss über "Auswahl/Selection" im etwas größeren Kästchen auf der PBC Plattform mit zugehörigen Features angezeigt. Durch anklicken der einzelnen Features, erhalten Sie nähere Informationen über Ihre Auswahl. Durch klicken/drücken des Bestell/ Order Buttons, öffnet sich ein Fenster mit den entsprechenden Bestellinformationen, die Sie an PBC schicken. Durch Bestätigung des Sende-Vorgangs, also durch das Abschicken Ihrer Bestellung/ Order, setzen Sie den Kauf in Gang. In den Incoterms können Sie nachlesen, welche weiteren Optionen Sie haben und welchen Abrechnungszeiträume (ab Erhalt der Aktivierungsschlüssel zu den Bestellungen) gelten. Bei den Lizensverträgen, können Sie eine Vorauswahl machen, ob Sie beispielsweise eine monatliche Abbuchung oder eine einmalige jährliche Abbuchung (ermäßigt) möchten. | T194: 5000 €/mo | U194: 60000 € per year | V194: 5000 | W194: 60000 | X194: 500 | AA194: Business Plans
A195: 194 | B195: 1_1_3_194 | C195: 1 | F195: 1_3_194 | G195: 3_4 | H195: 1_3_4 | I195: 1_3_4_194 | M195: 194 | R195: Warenkorb/ Cart | S195: Sammelbestellungen können Sie über die Warenkorb/ Cart Möglichkeit machen. Wir empfehlen diesen Weg bei einer Bestellmenge über eins, also bei einer gewünschten Bestellauswahl von mehr als einem konkreten Produkt von der Plattform. Im Log können Sie Ihre gemachten Bestellungen (Outlook Synchronisierung) einsehen und behalten somit immer Überblick über Ihre aktuellen Vorgänge. | T195: 5000 €/mo | U195: 60000 € per year | V195: 5000 | W195: 60000 | X195: 500 | AA195: Business Plans
A196: 195 | B196: 1_1_3_195 | C196: 1 | F196: 1_3_195 | G196: 3_4 | H196: 1_3_4 | I196: 1_3_4_195 | M196: 195 | R196: Eigenen Account/ Own Account | S196: PBC oder auch Program Base Cybernetics genannt, stellt hier den Basis Plan mit kostenloser Lizens (Free)vor, welche über eine Vielzahl an nützlichen Grund-Funktionen verfügt . Schon mit der Free License, können Sie beispielsweise Freunde affilieren (Geld verdienen), verschiedenste Produkte auswählen, neue Funktionen zur "Program Base" hinzufügen oder einfach und präzise, Ihr eigenes Profil erstellen und verwalten. | T196: 5000 €/mo | U196: 60000 € per year | V196: 5000 | W196: 60000 | X196: 500 | AA196: Business Plans
A197: 196 | B197: 1_1_3_196 | C197: 1 | F197: 1_3_196 | G197: 3_4 | H197: 1_3_4 | I197: 1_3_4_196 | M197: 196 | R197: Neuigkeiten/ News | S197: Über den Neuigkeiten/ News Button, bekommen Sie im Overview alle Informationen, über Updates, neue Entwicklungen und Geschenke, angezeigt. Hieraus können Sie eine direkte Auswahl treffen. Mit vielfältigen und unterschiedlichen Specials möchten wir von Program Base Cybernetics unsere Kundinnen und Kunden auf dem aktuellen Stand der Entwicklungen und des Fortschritts halten, sodass Sie größtmöglichen Nutzen und Gewinn aus Ihrer Cybernetic Base haben, schaffen und generieren können. | T197: 5000 €/mo | U197: 60000 € per year | V197: 5000 | W197: 60000 | X197: 500 | AA197: Business Plans
A198: 197 | B198: 1_1_3_197 | C198: 1 | F198: 1_3_197 | G198: 3_4 | H198: 1_3_4 | I198: 1_3_4_197 | M198: 197 | R198: Einladung/ Invitation | S198: Die Einladung/ Invitation Funktion der Cybernetic Program Base ermöglicht Ihnen über Social Media (Facebook, Twitter ect.) all Ihren Freunden auf einmal eine Einladung zu Program Base Cybernetics zu schicken. Mit Ihren persönlichen Affiliation Key, wird Ihnen jede erfolgreiche Transaktion Ihrem Konto gutgeschrieben. Die Werben/ Affiliierungskurse können bis zu 5 € pro erfolgreich geworbene/n Kunden/ Kundin betragen. Laut Hochrechnung ist dadurch schnell eine jährliche Balance (Kontostandsausgleich) für qualitativ hochwertigste und einzigartige Cybernetic Basen möglich. Der Unterschied zu der Werben/Affiliate Funktion ist der, dass Sie dort per E-Mail Werben/ Affilieren und über Einladung/Invitation auf bekannten Social Media Seiten zu PBC einladen. Ein sehr entgegenkommendes Angebot seitens PBC und zu empfehlen täglich zu werben. | T198: 5000 €/mo | U198: 60000 € per year | V198: 5000 | W198: 60000 | X198: 500 | AA198: Business Plans
A199: 198 | B199: 1_1_3_198 | C199: 1 | F199: 1_3_198 | G199: 3_4 | H199: 1_3_4 | I199: 1_3_4_198 | M199: 198 | R199: Geschenke/ Gifts | S199: Program Base Cybernetics möchte die Kunden und Kundinnen, belohnen und danken. Durch tägliche Ausschüttung von Rabatten, Gutscheinen, Spezialangeboten und kostenlosen Extrafunktionen, werden alle Kundinnen und Kunden beschenkt. Die erhaltenen Güter können gesammelt werden und bei Neukäufen gutgeschrieben werden. Manche Angebote laufen zeitlich ab, daher empfehlen wir, die Ermäßigungen sobald Sie diese erhalten haben, zu verwenden. | T199: 5000 €/mo | U199: 60000 € per year | V199: 5000 | W199: 60000 | X199: 500 | AA199: Business Plans
A200: 199 | B200: 1_1_3_199 | C200: 1 | F200: 1_3_199 | G200: 3_4 | H200: 1_3_4 | I200: 1_3_4_199 | M200: 199 | R200: Werben/ Affiliate | S200: Geld verdienen bei PBC? Das ist mehr als nur möglich. Mit deinem persönlichen Affiliation Key, kannst du über den Werbe und Affiliate Button, Freunde und Bekannte dazu bewegen, Kunde bei Program Base Cybernetics zu werden. Dafür gibt dir PBC pro erfolgreich geworbenen Kunden bis zu 5€. Das Guthaben wird dir auf deinem Konto gut geschrieben. Den aktuellen Werbekurswert erfährst du über den News Button und wird dir direkt im Overview angezeigt. Dein Guthaben kannst du direkt für neue Bestellungen verwenden oder beispielsweise von deinen monatlichen Plankosten abziehen. Die Einstellungen zu den Transaktionsprozessen findest du über den Button "Balance". Im Laufe der Zeit werden kontinuierlich Werbe/ Affiliation Quests erneuert und entwickelt. Wir empfehlen daher stets die Augen nach neuen Angeboten offen zu halten Viel Spaß beim Werben/ Affilieren/ Geldverdienen. | T200: 5000 €/mo | U200: 60000 € per year | V200: 5000 | W200: 60000 | X200: 500 | AA200: Business Plans
... 48 more rows

Sheet News (hidden)
N2: Refresh

Sheet PW (hidden)
D2: =InsertPicFromURL1("http://apbci.com/.cm4all/mediadb/Bilder/Bild1.jpg") ->  | G2: http://apbci.com/.cm4all/mediadb/Bilder/Bild1.jpg | H2: =InsertPicFromURL1("http://apbci.com/.cm4all/mediadb/Bilder/Bild2.jpg") ->  | K2: http://apbci.com/.cm4all/mediadb/Bilder/Bild2.jpg | L2: =InsertPicFromURL1("http://apbci.com/.cm4all/mediadb/Bilder/Bild3.jpg") ->  | O2: http://apbci.com/.cm4all/mediadb/Bilder/Bild3.jpg | P2: =InsertPicFromURL1("http://apbci.com/.cm4all/mediadb/Bilder/Bild4.jpg") ->  | S2: http://apbci.com/.cm4all/mediadb/Bilder/Bild4.jpg | T2: =InsertPicFromURL1("http://apbci.com/.cm4all/mediadb/Bilder/Bild5.jpg") ->  | W2: http://apbci.com/.cm4all/mediadb/Bilder/Bild5.jpg | X2: =InsertPicFromURL1("http://apbci.com/.cm4all/mediadb/Bilder/Bild6.jpg") ->  | AA2: http://apbci.com/.cm4all/mediadb/Bilder/Bild6.jpg | AC2: Refresh | AG2: http://apbci.com/.cm4all/mediadb/Bilder/Bild1.jpg | AH2: http://apbci.com/.cm4all/mediadb/Bilder/Bild37.jpg | AI2: http://apbci.com/.cm4all/mediadb/Bilder/Bild73.jpg | AJ2: http://apbci.com/.cm4all/mediadb/Bilder/Bild109.jpg | AK2: http://apbci.com/.cm4all/mediadb/Bilder/Bild145.jpg | AL2: http://apbci.com/.cm4all/mediadb/Bilder/Bild181.jpg | AM2: http://apbci.com/.cm4all/mediadb/Bilder/Bild217.jpg
AG3: http://apbci.com/.cm4all/mediadb/Bilder/Bild2.jpg | AH3: http://apbci.com/.cm4all/mediadb/Bilder/Bild38.jpg | AI3: http://apbci.com/.cm4all/mediadb/Bilder/Bild74.jpg | AJ3: http://apbci.com/.cm4all/mediadb/Bilder/Bild110.jpg | AK3: http://apbci.com/.cm4all/mediadb/Bilder/Bild146.jpg | AL3: http://apbci.com/.cm4all/mediadb/Bilder/Bild182.jpg | AM3: http://apbci.com/.cm4all/mediadb/Bilder/Bild218.jpg
AG4: http://apbci.com/.cm4all/mediadb/Bilder/Bild3.jpg | AH4: http://apbci.com/.cm4all/mediadb/Bilder/Bild39.jpg | AI4: http://apbci.com/.cm4all/mediadb/Bilder/Bild75.jpg | AJ4: http://apbci.com/.cm4all/mediadb/Bilder/Bild111.jpg | AK4: http://apbci.com/.cm4all/mediadb/Bilder/Bild147.jpg | AL4: http://apbci.com/.cm4all/mediadb/Bilder/Bild183.jpg | AM4: http://apbci.com/.cm4all/mediadb/Bilder/Bild219.jpg
AG5: http://apbci.com/.cm4all/mediadb/Bilder/Bild4.jpg | AH5: http://apbci.com/.cm4all/mediadb/Bilder/Bild40.jpg | AI5: http://apbci.com/.cm4all/mediadb/Bilder/Bild76.jpg | AJ5: http://apbci.com/.cm4all/mediadb/Bilder/Bild112.jpg | AK5: http://apbci.com/.cm4all/mediadb/Bilder/Bild148.jpg | AL5: http://apbci.com/.cm4all/mediadb/Bilder/Bild184.jpg | AM5: http://apbci.com/.cm4all/mediadb/Bilder/Bild220.jpg
AG6: http://apbci.com/.cm4all/mediadb/Bilder/Bild5.jpg | AH6: http://apbci.com/.cm4all/mediadb/Bilder/Bild41.jpg | AI6: http://apbci.com/.cm4all/mediadb/Bilder/Bild77.jpg | AJ6: http://apbci.com/.cm4all/mediadb/Bilder/Bild113.jpg | AK6: http://apbci.com/.cm4all/mediadb/Bilder/Bild149.jpg | AL6: http://apbci.com/.cm4all/mediadb/Bilder/Bild185.jpg | AM6: http://apbci.com/.cm4all/mediadb/Bilder/Bild221.jpg
C7: https://cache3.pbwstatic.com/thumbnail/LhSMqZdNvFN/180x135/5ba8f4ba6a5e3.mp4-6.jpg | D7: =InsertPicFromURL1("http://apbci.com/.cm4all/mediadb/Bilder/Bild7.jpg") ->  | G7: http://apbci.com/.cm4all/mediadb/Bilder/Bild7.jpg | H7: =InsertPicFromURL1("http://apbci.com/.cm4all/mediadb/Bilder/Bild8.jpg") ->  | K7: http://apbci.com/.cm4all/mediadb/Bilder/Bild8.jpg | L7: =InsertPicFromURL1("http://apbci.com/.cm4all/mediadb/Bilder/Bild9.jpg") ->  | O7: http://apbci.com/.cm4all/mediadb/Bilder/Bild9.jpg | P7: =InsertPicFromURL1("http://apbci.com/.cm4all/mediadb/Bilder/Bild10.jpg") ->  | S7: http://apbci.com/.cm4all/mediadb/Bilder/Bild10.jpg | T7: =InsertPicFromURL1("http://apbci.com/.cm4all/mediadb/Bilder/Bild11.jpg") ->  | W7: http://apbci.com/.cm4all/mediadb/Bilder/Bild11.jpg | X7: =InsertPicFromURL1("http://apbci.com/.cm4all/mediadb/Bilder/Bild12.jpg") ->  | AA7: http://apbci.com/.cm4all/mediadb/Bilder/Bild12.jpg | AC7: Clear | AG7: http://apbci.com/.cm4all/mediadb/Bilder/Bild6.jpg | AH7: http://apbci.com/.cm4all/mediadb/Bilder/Bild42.jpg | AI7: http://apbci.com/.cm4all/mediadb/Bilder/Bild78.jpg | AJ7: http://apbci.com/.cm4all/mediadb/Bilder/Bild114.jpg | AK7: http://apbci.com/.cm4all/mediadb/Bilder/Bild150.jpg | AL7: http://apbci.com/.cm4all/mediadb/Bilder/Bild186.jpg | AM7: http://apbci.com/.cm4all/mediadb/Bilder/Bild222.jpg
AG8: http://apbci.com/.cm4all/mediadb/Bilder/Bild7.jpg | AH8: http://apbci.com/.cm4all/mediadb/Bilder/Bild43.jpg | AI8: http://apbci.com/.cm4all/mediadb/Bilder/Bild79.jpg | AJ8: http://apbci.com/.cm4all/mediadb/Bilder/Bild115.jpg | AK8: http://apbci.com/.cm4all/mediadb/Bilder/Bild151.jpg | AL8: http://apbci.com/.cm4all/mediadb/Bilder/Bild187.jpg | AM8: http://apbci.com/.cm4all/mediadb/Bilder/Bild223.jpg
AG9: http://apbci.com/.cm4all/mediadb/Bilder/Bild8.jpg | AH9: http://apbci.com/.cm4all/mediadb/Bilder/Bild44.jpg | AI9: http://apbci.com/.cm4all/mediadb/Bilder/Bild80.jpg | AJ9: http://apbci.com/.cm4all/mediadb/Bilder/Bild116.jpg | AK9: http://apbci.com/.cm4all/mediadb/Bilder/Bild152.jpg | AL9: http://apbci.com/.cm4all/mediadb/Bilder/Bild188.jpg | AM9: http://apbci.com/.cm4all/mediadb/Bilder/Bild224.jpg
AG10: http://apbci.com/.cm4all/mediadb/Bilder/Bild9.jpg | AH10: http://apbci.com/.cm4all/mediadb/Bilder/Bild45.jpg | AI10: http://apbci.com/.cm4all/mediadb/Bilder/Bild81.jpg | AJ10: http://apbci.com/.cm4all/mediadb/Bilder/Bild117.jpg | AK10: http://apbci.com/.cm4all/mediadb/Bilder/Bild153.jpg | AL10: http://apbci.com/.cm4all/mediadb/Bilder/Bild189.jpg | AM10: http://apbci.com/.cm4all/mediadb/Bilder/Bild225.jpg
AG11: http://apbci.com/.cm4all/mediadb/Bilder/Bild10.jpg | AH11: http://apbci.com/.cm4all/mediadb/Bilder/Bild46.jpg | AI11: http://apbci.com/.cm4all/mediadb/Bilder/Bild82.jpg | AJ11: http://apbci.com/.cm4all/mediadb/Bilder/Bild118.jpg | AK11: http://apbci.com/.cm4all/mediadb/Bilder/Bild154.jpg | AL11: http://apbci.com/.cm4all/mediadb/Bilder/Bild190.jpg | AM11: http://apbci.com/.cm4all/mediadb/Bilder/Bild226.jpg
D12: =InsertPicFromURL1("http://apbci.com/.cm4all/mediadb/Bilder/Bild13.jpg") ->  | G12: http://apbci.com/.cm4all/mediadb/Bilder/Bild13.jpg | H12: =InsertPicFromURL1("http://apbci.com/.cm4all/mediadb/Bilder/Bild14.jpg") ->  | K12: http://apbci.com/.cm4all/mediadb/Bilder/Bild14.jpg | L12: =InsertPicFromURL1("http://apbci.com/.cm4all/mediadb/Bilder/Bild15.jpg") ->  | O12: http://apbci.com/.cm4all/mediadb/Bilder/Bild15.jpg | P12: =InsertPicFromURL1("http://apbci.com/.cm4all/mediadb/Bilder/Bild16.jpg") ->  | S12: http://apbci.com/.cm4all/mediadb/Bilder/Bild16.jpg | T12: =InsertPicFromURL1("http://apbci.com/.cm4all/mediadb/Bilder/Bild17.jpg") ->  | W12: http://apbci.com/.cm4all/mediadb/Bilder/Bild17.jpg | X12: =InsertPicFromURL1("http://apbci.com/.cm4all/mediadb/Bilder/Bild18.jpg") ->  | AA12: http://apbci.com/.cm4all/mediadb/Bilder/Bild18.jpg | AG12: http://apbci.com/.cm4all/mediadb/Bilder/Bild11.jpg | AH12: http://apbci.com/.cm4all/mediadb/Bilder/Bild47.jpg | AI12: http://apbci.com/.cm4all/mediadb/Bilder/Bild83.jpg | AJ12: http://apbci.com/.cm4all/mediadb/Bilder/Bild119.jpg | AK12: http://apbci.com/.cm4all/mediadb/Bilder/Bild155.jpg | AL12: http://apbci.com/.cm4all/mediadb/Bilder/Bild191.jpg | AM12: http://apbci.com/.cm4all/mediadb/Bilder/Bild227.jpg
AG13: http://apbci.com/.cm4all/mediadb/Bilder/Bild12.jpg | AH13: http://apbci.com/.cm4all/mediadb/Bilder/Bild48.jpg | AI13: http://apbci.com/.cm4all/mediadb/Bilder/Bild84.jpg | AJ13: http://apbci.com/.cm4all/mediadb/Bilder/Bild120.jpg | AK13: http://apbci.com/.cm4all/mediadb/Bilder/Bild156.jpg | AL13: http://apbci.com/.cm4all/mediadb/Bilder/Bild192.jpg | AM13: http://apbci.com/.cm4all/mediadb/Bilder/Bild228.jpg
AG14: http://apbci.com/.cm4all/mediadb/Bilder/Bild13.jpg | AH14: http://apbci.com/.cm4all/mediadb/Bilder/Bild49.jpg | AI14: http://apbci.com/.cm4all/mediadb/Bilder/Bild85.jpg | AJ14: http://apbci.com/.cm4all/mediadb/Bilder/Bild121.jpg | AK14: http://apbci.com/.cm4all/mediadb/Bilder/Bild157.jpg | AL14: http://apbci.com/.cm4all/mediadb/Bilder/Bild193.jpg | AM14: http://apbci.com/.cm4all/mediadb/Bilder/Bild229.jpg
AG15: http://apbci.com/.cm4all/mediadb/Bilder/Bild14.jpg | AH15: http://apbci.com/.cm4all/mediadb/Bilder/Bild50.jpg | AI15: http://apbci.com/.cm4all/mediadb/Bilder/Bild86.jpg | AJ15: http://apbci.com/.cm4all/mediadb/Bilder/Bild122.jpg | AK15: http://apbci.com/.cm4all/mediadb/Bilder/Bild158.jpg | AL15: http://apbci.com/.cm4all/mediadb/Bilder/Bild194.jpg | AM15: http://apbci.com/.cm4all/mediadb/Bilder/Bild230.jpg
AG16: http://apbci.com/.cm4all/mediadb/Bilder/Bild15.jpg | AH16: http://apbci.com/.cm4all/mediadb/Bilder/Bild51.jpg | AI16: http://apbci.com/.cm4all/mediadb/Bilder/Bild87.jpg | AJ16: http://apbci.com/.cm4all/mediadb/Bilder/Bild123.jpg | AK16: http://apbci.com/.cm4all/mediadb/Bilder/Bild159.jpg | AL16: http://apbci.com/.cm4all/mediadb/Bilder/Bild195.jpg | AM16: http://apbci.com/.cm4all/mediadb/Bilder/Bild231.jpg
D17: =InsertPicFromURL1("http://apbci.com/.cm4all/mediadb/Bilder/Bild19.jpg") ->  | G17: http://apbci.com/.cm4all/mediadb/Bilder/Bild19.jpg | H17: =InsertPicFromURL1("http://apbci.com/.cm4all/mediadb/Bilder/Bild20.jpg") ->  | K17: http://apbci.com/.cm4all/mediadb/Bilder/Bild20.jpg | L17: =InsertPicFromURL1("http://apbci.com/.cm4all/mediadb/Bilder/Bild21.jpg") ->  | O17: http://apbci.com/.cm4all/mediadb/Bilder/Bild21.jpg | P17: =InsertPicFromURL1("http://apbci.com/.cm4all/mediadb/Bilder/Bild22.jpg") ->  | S17: http://apbci.com/.cm4all/mediadb/Bilder/Bild22.jpg | T17: =InsertPicFromURL1("http://apbci.com/.cm4all/mediadb/Bilder/Bild23.jpg") ->  | W17: http://apbci.com/.cm4all/mediadb/Bilder/Bild23.jpg | X17: =InsertPicFromURL1("http://apbci.com/.cm4all/mediadb/Bilder/Bild24.jpg") ->  | AA17: http://apbci.com/.cm4all/mediadb/Bilder/Bild24.jpg | AG17: http://apbci.com/.cm4all/mediadb/Bilder/Bild16.jpg | AH17: http://apbci.com/.cm4all/mediadb/Bilder/Bild52.jpg | AI17: http://apbci.com/.cm4all/mediadb/Bilder/Bild88.jpg | AJ17: http://apbci.com/.cm4all/mediadb/Bilder/Bild124.jpg | AK17: http://apbci.com/.cm4all/mediadb/Bilder/Bild160.jpg | AL17: http://apbci.com/.cm4all/mediadb/Bilder/Bild196.jpg | AM17: http://apbci.com/.cm4all/mediadb/Bilder/Bild232.jpg
AG18: http://apbci.com/.cm4all/mediadb/Bilder/Bild17.jpg | AH18: http://apbci.com/.cm4all/mediadb/Bilder/Bild53.jpg | AI18: http://apbci.com/.cm4all/mediadb/Bilder/Bild89.jpg | AJ18: http://apbci.com/.cm4all/mediadb/Bilder/Bild125.jpg | AK18: http://apbci.com/.cm4all/mediadb/Bilder/Bild161.jpg | AL18: http://apbci.com/.cm4all/mediadb/Bilder/Bild197.jpg | AM18: http://apbci.com/.cm4all/mediadb/Bilder/Bild233.jpg
AG19: http://apbci.com/.cm4all/mediadb/Bilder/Bild18.jpg | AH19: http://apbci.com/.cm4all/mediadb/Bilder/Bild54.jpg | AI19: http://apbci.com/.cm4all/mediadb/Bilder/Bild90.jpg | AJ19: http://apbci.com/.cm4all/mediadb/Bilder/Bild126.jpg | AK19: http://apbci.com/.cm4all/mediadb/Bilder/Bild162.jpg | AL19: http://apbci.com/.cm4all/mediadb/Bilder/Bild198.jpg | AM19: http://apbci.com/.cm4all/mediadb/Bilder/Bild234.jpg
AG20: http://apbci.com/.cm4all/mediadb/Bilder/Bild19.jpg | AH20: http://apbci.com/.cm4all/mediadb/Bilder/Bild55.jpg | AI20: http://apbci.com/.cm4all/mediadb/Bilder/Bild91.jpg | AJ20: http://apbci.com/.cm4all/mediadb/Bilder/Bild127.jpg | AK20: http://apbci.com/.cm4all/mediadb/Bilder/Bild163.jpg | AL20: http://apbci.com/.cm4all/mediadb/Bilder/Bild199.jpg | AM20: http://apbci.com/.cm4all/mediadb/Bilder/Bild235.jpg
AG21: http://apbci.com/.cm4all/mediadb/Bilder/Bild20.jpg | AH21: http://apbci.com/.cm4all/mediadb/Bilder/Bild56.jpg | AI21: http://apbci.com/.cm4all/mediadb/Bilder/Bild92.jpg | AJ21: http://apbci.com/.cm4all/mediadb/Bilder/Bild128.jpg | AK21: http://apbci.com/.cm4all/mediadb/Bilder/Bild164.jpg | AL21: http://apbci.com/.cm4all/mediadb/Bilder/Bild200.jpg | AM21: http://apbci.com/.cm4all/mediadb/Bilder/Bild236.jpg
D22: =InsertPicFromURL1("http://apbci.com/.cm4all/mediadb/Bilder/Bild25.jpg") ->  | G22: http://apbci.com/.cm4all/mediadb/Bilder/Bild25.jpg | H22: =InsertPicFromURL1("http://apbci.com/.cm4all/mediadb/Bilder/Bild26.jpg") ->  | K22: http://apbci.com/.cm4all/mediadb/Bilder/Bild26.jpg | L22: =InsertPicFromURL1("http://apbci.com/.cm4all/mediadb/Bilder/Bild27.jpg") ->  | O22: http://apbci.com/.cm4all/mediadb/Bilder/Bild27.jpg | P22: =InsertPicFromURL1("http://apbci.com/.cm4all/mediadb/Bilder/Bild28.jpg") ->  | S22: http://apbci.com/.cm4all/mediadb/Bilder/Bild28.jpg | T22: =InsertPicFromURL1("http://apbci.com/.cm4all/mediadb/Bilder/Bild29.jpg") ->  | W22: http://apbci.com/.cm4all/mediadb/Bilder/Bild29.jpg | X22: =InsertPicFromURL1("http://apbci.com/.cm4all/mediadb/Bilder/Bild30.jpg") ->  | AA22: http://apbci.com/.cm4all/mediadb/Bilder/Bild30.jpg | AG22: http://apbci.com/.cm4all/mediadb/Bilder/Bild21.jpg | AH22: http://apbci.com/.cm4all/mediadb/Bilder/Bild57.jpg | AI22: http://apbci.com/.cm4all/mediadb/Bilder/Bild93.jpg | AJ22: http://apbci.com/.cm4all/mediadb/Bilder/Bild129.jpg | AK22: http://apbci.com/.cm4all/mediadb/Bilder/Bild165.jpg | AL22: http://apbci.com/.cm4all/mediadb/Bilder/Bild201.jpg | AM22: http://apbci.com/.cm4all/mediadb/Bilder/Bild237.jpg
AG23: http://apbci.com/.cm4all/mediadb/Bilder/Bild22.jpg | AH23: http://apbci.com/.cm4all/mediadb/Bilder/Bild58.jpg | AI23: http://apbci.com/.cm4all/mediadb/Bilder/Bild94.jpg | AJ23: http://apbci.com/.cm4all/mediadb/Bilder/Bild130.jpg | AK23: http://apbci.com/.cm4all/mediadb/Bilder/Bild166.jpg | AL23: http://apbci.com/.cm4all/mediadb/Bilder/Bild202.jpg | AM23: http://apbci.com/.cm4all/mediadb/Bilder/Bild238.jpg
AG24: http://apbci.com/.cm4all/mediadb/Bilder/Bild23.jpg | AH24: http://apbci.com/.cm4all/mediadb/Bilder/Bild59.jpg | AI24: http://apbci.com/.cm4all/mediadb/Bilder/Bild95.jpg | AJ24: http://apbci.com/.cm4all/mediadb/Bilder/Bild131.jpg | AK24: http://apbci.com/.cm4all/mediadb/Bilder/Bild167.jpg | AL24: http://apbci.com/.cm4all/mediadb/Bilder/Bild203.jpg | AM24: http://apbci.com/.cm4all/mediadb/Bilder/Bild239.jpg
AG25: http://apbci.com/.cm4all/mediadb/Bilder/Bild24.jpg | AH25: http://apbci.com/.cm4all/mediadb/Bilder/Bild60.jpg | AI25: http://apbci.com/.cm4all/mediadb/Bilder/Bild96.jpg | AJ25: http://apbci.com/.cm4all/mediadb/Bilder/Bild132.jpg | AK25: http://apbci.com/.cm4all/mediadb/Bilder/Bild168.jpg | AL25: http://apbci.com/.cm4all/mediadb/Bilder/Bild204.jpg | AM25: http://apbci.com/.cm4all/mediadb/Bilder/Bild240.jpg
AG26: http://apbci.com/.cm4all/mediadb/Bilder/Bild25.jpg | AH26: http://apbci.com/.cm4all/mediadb/Bilder/Bild61.jpg | AI26: http://apbci.com/.cm4all/mediadb/Bilder/Bild97.jpg | AJ26: http://apbci.com/.cm4all/mediadb/Bilder/Bild133.jpg | AK26: http://apbci.com/.cm4all/mediadb/Bilder/Bild169.jpg | AL26: http://apbci.com/.cm4all/mediadb/Bilder/Bild205.jpg | AM26: http://apbci.com/.cm4all/mediadb/Bilder/Bild241.jpg
D27: =InsertPicFromURL1("http://apbci.com/.cm4all/mediadb/Bilder/Bild31.jpg") ->  | G27: http://apbci.com/.cm4all/mediadb/Bilder/Bild31.jpg | H27: =InsertPicFromURL1("http://apbci.com/.cm4all/mediadb/Bilder/Bild32.jpg") ->  | K27: http://apbci.com/.cm4all/mediadb/Bilder/Bild32.jpg | L27: =InsertPicFromURL1("http://apbci.com/.cm4all/mediadb/Bilder/Bild33.jpg") ->  | O27: http://apbci.com/.cm4all/mediadb/Bilder/Bild33.jpg | P27: =InsertPicFromURL1("http://apbci.com/.cm4all/mediadb/Bilder/Bild34.jpg") ->  | S27: http://apbci.com/.cm4all/mediadb/Bilder/Bild34.jpg | T27: =InsertPicFromURL1("http://apbci.com/.cm4all/mediadb/Bilder/Bild35.jpg") ->  | W27: http://apbci.com/.cm4all/mediadb/Bilder/Bild35.jpg | X27: =InsertPicFromURL1("http://apbci.com/.cm4all/mediadb/Bilder/Bild36.jpg") ->  | AA27: http://apbci.com/.cm4all/mediadb/Bilder/Bild36.jpg | AG27: http://apbci.com/.cm4all/mediadb/Bilder/Bild26.jpg | AH27: http://apbci.com/.cm4all/mediadb/Bilder/Bild62.jpg | AI27: http://apbci.com/.cm4all/mediadb/Bilder/Bild98.jpg | AJ27: http://apbci.com/.cm4all/mediadb/Bilder/Bild134.jpg | AK27: http://apbci.com/.cm4all/mediadb/Bilder/Bild170.jpg | AL27: http://apbci.com/.cm4all/mediadb/Bilder/Bild206.jpg | AM27: http://apbci.com/.cm4all/mediadb/Bilder/Bild242.jpg
AG28: http://apbci.com/.cm4all/mediadb/Bilder/Bild27.jpg | AH28: http://apbci.com/.cm4all/mediadb/Bilder/Bild63.jpg | AI28: http://apbci.com/.cm4all/mediadb/Bilder/Bild99.jpg | AJ28: http://apbci.com/.cm4all/mediadb/Bilder/Bild135.jpg | AK28: http://apbci.com/.cm4all/mediadb/Bilder/Bild171.jpg | AL28: http://apbci.com/.cm4all/mediadb/Bilder/Bild207.jpg | AM28: http://apbci.com/.cm4all/mediadb/Bilder/Bild243.jpg
AG29: http://apbci.com/.cm4all/mediadb/Bilder/Bild28.jpg | AH29: http://apbci.com/.cm4all/mediadb/Bilder/Bild64.jpg | AI29: http://apbci.com/.cm4all/mediadb/Bilder/Bild100.jpg | AJ29: http://apbci.com/.cm4all/mediadb/Bilder/Bild136.jpg | AK29: http://apbci.com/.cm4all/mediadb/Bilder/Bild172.jpg | AL29: http://apbci.com/.cm4all/mediadb/Bilder/Bild208.jpg | AM29: http://apbci.com/.cm4all/mediadb/Bilder/Bild244.jpg
AG30: http://apbci.com/.cm4all/mediadb/Bilder/Bild29.jpg | AH30: http://apbci.com/.cm4all/mediadb/Bilder/Bild65.jpg | AI30: http://apbci.com/.cm4all/mediadb/Bilder/Bild101.jpg | AJ30: http://apbci.com/.cm4all/mediadb/Bilder/Bild137.jpg | AK30: http://apbci.com/.cm4all/mediadb/Bilder/Bild173.jpg | AL30: http://apbci.com/.cm4all/mediadb/Bilder/Bild209.jpg | AM30: http://apbci.com/.cm4all/mediadb/Bilder/Bild245.jpg
AG31: http://apbci.com/.cm4all/mediadb/Bilder/Bild30.jpg | AH31: http://apbci.com/.cm4all/mediadb/Bilder/Bild66.jpg | AI31: http://apbci.com/.cm4all/mediadb/Bilder/Bild102.jpg | AJ31: http://apbci.com/.cm4all/mediadb/Bilder/Bild138.jpg | AK31: http://apbci.com/.cm4all/mediadb/Bilder/Bild174.jpg | AL31: http://apbci.com/.cm4all/mediadb/Bilder/Bild210.jpg | AM31: http://apbci.com/.cm4all/mediadb/Bilder/Bild246.jpg
AG32: http://apbci.com/.cm4all/mediadb/Bilder/Bild31.jpg | AH32: http://apbci.com/.cm4all/mediadb/Bilder/Bild67.jpg | AI32: http://apbci.com/.cm4all/mediadb/Bilder/Bild103.jpg | AJ32: http://apbci.com/.cm4all/mediadb/Bilder/Bild139.jpg | AK32: http://apbci.com/.cm4all/mediadb/Bilder/Bild175.jpg | AL32: http://apbci.com/.cm4all/mediadb/Bilder/Bild211.jpg | AM32: http://apbci.com/.cm4all/mediadb/Bilder/Bild247.jpg
AG33: http://apbci.com/.cm4all/mediadb/Bilder/Bild32.jpg | AH33: http://apbci.com/.cm4all/mediadb/Bilder/Bild68.jpg | AI33: http://apbci.com/.cm4all/mediadb/Bilder/Bild104.jpg | AJ33: http://apbci.com/.cm4all/mediadb/Bilder/Bild140.jpg | AK33: http://apbci.com/.cm4all/mediadb/Bilder/Bild176.jpg | AL33: http://apbci.com/.cm4all/mediadb/Bilder/Bild212.jpg | AM33: http://apbci.com/.cm4all/mediadb/Bilder/Bild248.jpg
AG34: http://apbci.com/.cm4all/mediadb/Bilder/Bild33.jpg | AH34: http://apbci.com/.cm4all/mediadb/Bilder/Bild69.jpg | AI34: http://apbci.com/.cm4all/mediadb/Bilder/Bild105.jpg | AJ34: http://apbci.com/.cm4all/mediadb/Bilder/Bild141.jpg | AK34: http://apbci.com/.cm4all/mediadb/Bilder/Bild177.jpg | AL34: http://apbci.com/.cm4all/mediadb/Bilder/Bild213.jpg | AM34: http://apbci.com/.cm4all/mediadb/Bilder/Bild249.jpg
AG35: http://apbci.com/.cm4all/mediadb/Bilder/Bild34.jpg | AH35: http://apbci.com/.cm4all/mediadb/Bilder/Bild70.jpg | AI35: http://apbci.com/.cm4all/mediadb/Bilder/Bild106.jpg | AJ35: http://apbci.com/.cm4all/mediadb/Bilder/Bild142.jpg | AK35: http://apbci.com/.cm4all/mediadb/Bilder/Bild178.jpg | AL35: http://apbci.com/.cm4all/mediadb/Bilder/Bild214.jpg | AM35: http://apbci.com/.cm4all/mediadb/Bilder/Bild250.jpg
AG36: http://apbci.com/.cm4all/mediadb/Bilder/Bild35.jpg | AH36: http://apbci.com/.cm4all/mediadb/Bilder/Bild71.jpg | AI36: http://apbci.com/.cm4all/mediadb/Bilder/Bild107.jpg | AJ36: http://apbci.com/.cm4all/mediadb/Bilder/Bild143.jpg | AK36: http://apbci.com/.cm4all/mediadb/Bilder/Bild179.jpg | AL36: http://apbci.com/.cm4all/mediadb/Bilder/Bild215.jpg | AM36: http://apbci.com/.cm4all/mediadb/Bilder/Bild251.jpg
AG37: http://apbci.com/.cm4all/mediadb/Bilder/Bild36.jpg | AH37: http://apbci.com/.cm4all/mediadb/Bilder/Bild72.jpg | AI37: http://apbci.com/.cm4all/mediadb/Bilder/Bild108.jpg | AJ37: http://apbci.com/.cm4all/mediadb/Bilder/Bild144.jpg | AK37: http://apbci.com/.cm4all/mediadb/Bilder/Bild180.jpg | AL37: http://apbci.com/.cm4all/mediadb/Bilder/Bild216.jpg | AM37: http://apbci.com/.cm4all/mediadb/Bilder/Bild252.jpg

Sheet Description (hidden)
B1: ID. | C1: What | D1: Beschreibung | E1: Monatspreis/ monthly price | F1: Jahresspreis/ yearly price | G1: Price | H1: Yearprice | I1: Pauseprice | J1: Users | K1: PCs | L1: Pics | M1: Porns | N1: videos | O1: links
B2: 1 | C2: Plans
B3: 2 | C3: Cybernetics
B4: 1_1 | C4: Basic
B5: 1_2 | C5: Advanced
B6: 1_3 | C6: Business
B7: 2_1 | C7: Cybernetics Lvl 1
B8: 2_2 | C8: Cybernetics Lvl 2
B9: 2_3 | C9: Cybernetics Lvl 3
B10: 1_1_1 | C10: Free | E10: get if vorhanden build reihe abruf
B11: 1_1_2 | C11: Discover
B12: 1_1_3 | C12: Build
B13: 1_1_4 | C13: Rise
B14: 1_2_1 | C14: General
B15: 1_2_2 | C15: Business
B16: 1_2_3 | C16: Vip
B17: 1_3_1 | C17: Silver
B18: 1_3_2 | C18: Gold
B19: 1_3_3 | C19: Platin
B20: 1_3_4 | C20: Californium
B21: 1_3_5 | C21: Hydrogen
B22: 1_3_6 | C22: Antimatter
B23: 2_1_1 | C23: Specials
B24: 2_1_2 | C24: Analyser
B25: 2_1_3 | C25: PLMSS
B26: 2_1_4 | C26: Visual
B27: 2_1_5 | C27: Tasks
B28: 2_2_1 | C28: Date Management
B29: 2_2_2 | C29: Databank Tools
B30: 2_2_3 | C30: Data Processing
B31: 2_2_4 | C31: Document Generator | D31: Program Base Cybernetic's presents: 1 Pauseprice 1 : 0 €/mo - / -0 €/per year - / - 0 €
B32: 2_2_5 | C32: E-Mail Tools
B33: 2_3_1 | C33: Law
B34: 2_3_2 | C34: Kis
B35: 1_1_1_1 | C35: Beschreibung/ Description | D35: ="Program Base Cybernetic's presents: "& J35&" "&$I$1&" "&K35&" : "&E35&" - / -"&F35&" - / -"&" "&$X$1&" "&I35&" €" -> Program Base Cybernetic's presents: 1 Pauseprice 1 : 0 €/mo - / -0 €/per year - / - 0 € | E35: 0 €/mo | F35: 0 €/per year | G35: 0 | H35: =G35*12 -> 0 | I35: 0.00 | J35: 1 | K35: 1 | L35: http://apbci.com/.cm4all/mediadb/a/PBC.JPG
B36: 1_1_1_2 | C36: Cybernetics | D36: Hier finden Sie die Teile zur Cybernetics Program Base, die Sie so wertvoll machen. Die Funktionen (Cybernetics), auch bekannt unter Bots oder Maschinen (Machineparks) beschreibt das Gesamtkonstrukt der PBC am Besten. Sie können sich einen rießigen Maschinenpark mit kybernetischen Objekten dabei vorstellen, die super leicht zum anpassen, implementieren und instanzieren sind. Cybernetics bieten im Gesamten einfache Bedienbarkeit, stetigen Service, Upgradebarkeit, individuelle Konfigurierbarkeit und Einzigartigkeit. Alle verfügbaren Funktionen können über die Plattform (PB Cybernetics) abgefragt werden. Viel Spaß, wünschen wir beim erstellen Ihrer eigenen und einzigartigen Cybernetic Program Base mit Funktionen (Cybernetics, Bots, Generatoren, Maschienen, Terminals uvm.). | E36: 0 €/mo | F36: 0 €/per year | G36: 0 | H36: 0 | I36: 0.00 | L36: http://apbci.com/.cm4all/mediadb/a/PBC.JPG
B37: 1_1_1_3 | C37: Bestellen/ Ordern | D37: Eine der wichtigsten Basisfunktionen ist das Bestellen/ Ordern bei Program Base Cybernetics. Über die PBC Plattform oder dem Overview wählen Sie Ihr gewünschtes Produkt durch anklicken aus. Diese eine Auswahl wird Ihnen im Anschluss über "Auswahl/Selection" im etwas größeren Kästchen auf der PBC Plattform mit zugehörigen Features angezeigt. Durch anklicken der einzelnen Features, erhalten Sie nähere Informationen über Ihre Auswahl. Durch klicken/drücken des Bestell/ Order Buttons, öffnet sich ein Fenster mit den entsprechenden Bestellinformationen, die Sie an PBC schicken. Durch Bestätigung des Sende-Vorgangs, also durch das Abschicken Ihrer Bestellung/ Order, setzen Sie den Kauf in Gang. In den Incoterms können Sie nachlesen, welche weiteren Optionen Sie haben und welchen Abrechnungszeiträume (ab Erhalt der Aktivierungsschlüssel zu den Bestellungen) gelten. Bei den Lizensverträgen, können Sie eine Vorauswahl machen, ob Sie beispielsweise eine monatliche Abbuchung oder eine einmalige jährliche Abbuchung (ermäßigt) möchten. | E37: 0 €/mo | F37: 0 €/per year | G37: 0 | H37: 0 | I37: 0.00 | L37: http://apbci.com/.cm4all/mediadb/a/PBC.JPG
B38: 1_1_1_4 | C38: Warenkorb/ Cart | D38: Sammelbestellungen können Sie über die Warenkorb/ Cart Möglichkeit machen. Wir empfehlen diesen Weg bei einer Bestellmenge über eins, also bei einer gewünschten Bestellauswahl von mehr als einem konkreten Produkt von der Plattform. Im Log können Sie Ihre gemachten Bestellungen (Outlook Synchronisierung) einsehen und behalten somit immer Überblick über Ihre aktuellen Vorgänge. | E38: 0 €/mo | F38: 0 €/per year | G38: 0 | H38: 0 | I38: 0.00 | L38: http://apbci.com/.cm4all/mediadb/a/PBC.JPG
B39: 1_1_1_5 | C39: Eigenen Account/ Own Account | D39: PBC oder auch Program Base Cybernetics genannt, stellt hier den Basis Plan mit kostenloser Lizens (Free)vor, welche über eine Vielzahl an nützlichen Grund-Funktionen verfügt . Schon mit der Free License, können Sie beispielsweise Freunde affilieren (Geld verdienen), verschiedenste Produkte auswählen, neue Funktionen zur "Program Base" hinzufügen oder einfach und präzise, Ihr eigenes Profil erstellen und verwalten. | E39: 0 €/mo | F39: 0 €/per year | G39: 0 | H39: 0 | I39: 0.00 | L39: http://apbci.com/.cm4all/mediadb/a/PBC.JPG
B40: 1_1_1_6 | C40: Neuigkeiten/ News | D40: Über den Neuigkeiten/ News Button, bekommen Sie im Overview alle Informationen, über Updates, neue Entwicklungen und Geschenke, angezeigt. Hieraus können Sie eine direkte Auswahl treffen. Mit vielfältigen und unterschiedlichen Specials möchten wir von Program Base Cybernetics unsere Kundinnen und Kunden auf dem aktuellen Stand der Entwicklungen und des Fortschritts halten, sodass Sie größtmöglichen Nutzen und Gewinn aus Ihrer Cybernetic Base haben, schaffen und generieren können. | E40: 0 €/mo | F40: 0 €/per year | G40: 0 | H40: 0 | I40: 0.00 | L40: http://apbci.com/.cm4all/mediadb/a/PBC.JPG
B41: 1_1_1_7 | C41: Einladung/ Invitation | D41: Die Einladung/ Invitation Funktion der Cybernetic Program Base ermöglicht Ihnen über Social Media (Facebook, Twitter ect.) all Ihren Freunden auf einmal eine Einladung zu Program Base Cybernetics zu schicken. Mit Ihren persönlichen Affiliation Key, wird Ihnen jede erfolgreiche Transaktion Ihrem Konto gutgeschrieben. Die Werben/ Affiliierungskurse können bis zu 5 € pro erfolgreich geworbene/n Kunden/ Kundin betragen. Laut Hochrechnung ist dadurch schnell eine jährliche Balance (Kontostandsausgleich) für qualitativ hochwertigste und einzigartige Cybernetic Basen möglich. Der Unterschied zu der Werben/Affiliate Funktion ist der, dass Sie dort per E-Mail Werben/ Affilieren und über Einladung/Invitation auf bekannten Social Media Seiten zu PBC einladen. Ein sehr entgegenkommendes Angebot seitens PBC und zu empfehlen täglich zu werben. | E41: 0 €/mo | F41: 0 €/per year | G41: 0 | H41: 0 | I41: 0.00 | L41: http://apbci.com/.cm4all/mediadb/a/PBC.JPG
B42: 1_1_1_8 | C42: Geschenke/ Gifts | D42: Program Base Cybernetics möchte die Kunden und Kundinnen, belohnen und danken. Durch tägliche Ausschüttung von Rabatten, Gutscheinen, Spezialangeboten und kostenlosen Extrafunktionen, werden alle Kundinnen und Kunden beschenkt. Die erhaltenen Güter können gesammelt werden und bei Neukäufen gutgeschrieben werden. Manche Angebote laufen zeitlich ab, daher empfehlen wir, die Ermäßigungen sobald Sie diese erhalten haben, zu verwenden. | E42: 0 €/mo | F42: 0 €/per year | G42: 0 | H42: 0 | I42: 0.00 | L42: http://apbci.com/.cm4all/mediadb/a/PBC.JPG
B43: 1_1_1_9 | C43: Werben/ Affiliate | D43: Geld verdienen bei PBC? Das ist mehr als nur möglich. Mit deinem persönlichen Affiliation Key, kannst du über den Werbe und Affiliate Button, Freunde und Bekannte dazu bewegen, Kunde bei Program Base Cybernetics zu werden. Dafür gibt dir PBC pro erfolgreich geworbenen Kunden bis zu 5€. Das Guthaben wird dir auf deinem Konto gut geschrieben. Den aktuellen Werbekurswert erfährst du über den News Button und wird dir direkt im Overview angezeigt. Dein Guthaben kannst du direkt für neue Bestellungen verwenden oder beispielsweise von deinen monatlichen Plankosten abziehen. Die Einstellungen zu den Transaktionsprozessen findest du über den Button "Balance". Im Laufe der Zeit werden kontinuierlich Werbe/ Affiliation Quests erneuert und entwickelt. Wir empfehlen daher stets die Augen nach neuen Angeboten offen zu halten Viel Spaß beim Werben/ Affilieren/ Geldverdienen. | E43: 0 €/mo | F43: 0 €/per year | G43: 0 | H43: 0 | I43: 0.00
B44: 1_1_1_10 | C44: Aktualisieren/ Actualize | D44: Mittels Aktualisieren/ Actualize erhalten Sie automatisch die neuesten Angebote und Vorschläge zu Ihrer persönlichen Cybernetic's Program Base. Somit erneuern Sie Ihren aktuellen Stand der PBC und erfahren dadurch von täglichen Belohnungen, bekommen gelegentlich Gutscheine und sonstige Benefits, als zusätzlicher Vorteil fürs dabeibleiben und nutzen. | E44: 0 €/mo | F44: 0 €/per year | G44: 0 | H44: 0 | I44: 0.00
B45: 1_1_1_11 | C45: Aktivierungsfunktion/ Activationfunction | D45: Einfach und schnell können Sie auch schon, ab dem Download, Ihre Program Base aktivieren. In der 14 Tage Phase, stehen Ihnen viele Features bereit. Es ist beispielsweise möglich neue Programme zu durchstöbern, verschiedenste Produkte zu bestellen (ordern), Pläne wechseln, vergleichen und vieles mehr. Zur Aktivierung erhalten Sie einen einzigartigen Lizenzschlüssel, den Sie Ihren Support Bot mitteilen müssen, damit Er/ Sie Ihre Basis freischalten kann. Program Base Cybernetic's KIs (Künstliche Intelligenzen) kümmern sich im System und im Service, um unverzügliche Bearbeitung der Aktivierung und sonstige Aufgaben. Dadurch können Wartezeiten reduziert werden und unnötige Aufwände beseitigt werden, die wir unseren Kunden nicht zumuten möchten. Die PBC soll ja das Leben erleichtern und nicht erschweren. Wir wünschen viel Spaß, und freuen uns auf Ihre erste Aktivierung. | E45: 0 €/mo | F45: 0 €/per year | G45: 0 | H45: 0 | I45: 0.00
B46: 1_1_1_12 | C46: Entriegeln/ Unlock | D46: Die Unlock Funktion entsperrt weitere Marktplätze für die Kunden von Program Base Cybernetics oder Partner. Zur sicheren Bedienung der Funktionen und Programme sind die Locks kinderleicht zu entschlüsseln und auf das wesentliche reduziert. | E46: 0 €/mo | F46: 0 €/per year | G46: 0 | H46: 0 | I46: 0.00
B47: 1_1_1_13 | C47: Pausierfunktion/ Pausefunction | D47: Pausieren leicht gemacht. Program Base Cybernetics bietet jederzeit auch eine Pause, seis für eine etwas längere Dauer oder aber auch nur kurze Zeit. Ein Reaktivierungsschlüssel schaltet Ihre Program Base wieder aktiv, sodass Sie entweder dort weitermachen können, wo Sie stoppten oder mit neuen, in der Pause gesammelten Ideen und Elan, starten. Bei der Pausierung werden die Plankosten um 90% auf 10% reduziert und ein Reaktivierungsschlüssel übermittelt. Diesen Schlüssel können Sie aber auch jederzeit erneut abfragen, sollte Ihnen dieser während Ihrer Pausierung abhanden gekommen sein, was durchaus jedem passieren kann. Kein Problem. | E47: 0 €/mo | F47: 0 €/per year | G47: 0 | H47: 0 | I47: 0.00
B48: 1_1_1_14 | C48: Reaktivierung/ Reactivation | D48: Eine Reaktivierung der Program Base, nach Pausierung, ist jederzeit selbst bestimmbar möglich. Eine Reaktivierung ist bis zu zehn mal möglich, bis Sie Kontakt mit unseren Accountadministratoren aufnehmen müssen, da unser System bei zu häufiger Beanspruchung dieser Funktion empfindlich wird, aber keine Sorge, pausieren und reaktivieren ist jederzeit möglich. | E48: 0 €/mo | F48: 0 €/per year | G48: 0 | H48: 0 | I48: 0.00
B49: 1_1_1_15 | C49: Deaktivierung/ Deactivation | D49: Über die Deaktivierung können Sie Ihre gekauften Produkte, vollständig deaktivieren und kündigen. Sollten Sie beispielsweise für eine unabsehbare Zeit absolut keinen Bedarf in der Program Base finden oder sehen können, so empfehlen wir eine Deaktivierung zur nächstmöglichen Zahlungsanweisung. Wir verbessern unsere Basen kontinuierlich weiter, vielleicht finden Sie etwas später Ihre richtigen Instrumente, Tools und Funktionen, Ihre Basis auszubauen und individuell und einzigartig zu konfigurieren. Bestimmte Funktionen (s. PB Functions (PBPLANS)) generieren ganz besondere Sachen für unsere Kunden, vielleicht haben Sie diese noch garnicht gefunden oder besuchen Sie unsere treuen Partnerwebseiten. Bei Verbesserungswünschen, Ideen oder besonderen Fällen können Sie auch unsere Kontakte nutzen. Wir wünschen Ihnen Bestes. Ihre PBCs. | E49: 0 €/mo | F49: 0 €/per year | G49: 0 | H49: 0 | I49: 0.00
B50: 1_1_1_16 | C50: Neuerung/ Update | D50: Updates ohne Programme und Programme ohne Updates, wären einfach nur langweilig. Daher ergehen im Namen der Program Base Cybernetics super coole und neue Updates zu Ihrer individuellen Program Base, zu Funktionen, zu neuen Featuren und vielem mehr. Durch auslösen des Update Buttons, erhalten Sie Zugang zu beispielsweise einer neuen Program Base, verbesserten Logiken oder einfach besseren Funktionen. Die Update Funktion ist so konzipiert, dass Sie so wenig Aufwand haben wie möglich, die Neuerungen kostenlos sind, Preise reduziert und selbstverständlich kompatibel zu Ihren bisherigen Entwicklungsstatus sind. Bei Problemen, die eigentlich nicht aufkommen, können Sie sich jederzeit an den KI- Service der PBC wenden. Künstlich intelligente Systeme warten nur darauf, Probleme zu beseitigen und die Zufriedenheit und Sicherheit der PBC-Kundinnen und Kunden zu gewährleisten und zu erfüllen. | E50: 0 €/mo | F50: 0 €/per year | G50: 0 | H50: 0 | I50: 0.00
B51: 1_1_1_17 | C51: Upgrade/ Downgrade | D51: PBC bietet neben Updates auch Upgrades an. Der Unterschied zwischen Updates und Upgrades liegt in der Segmentierung der Produkte und Services. Ein Upgrade beispielsweise kann als konkrete Erweiterung in Form eines seperaten Produktes gesehen werden. Ein Upgrade reduziert in der Regel Aufwände und erleichtert einem seine Cybernetic Program Base. Möchten Sie beispielsweise einen Plan Upgraden oder Downgraden, so wären Sie mit diesem Button an richtiger Stelle. Wenn Sie eine gebuchte Funktion doch nicht mehr haben möchten, können Sie durch Downgraden Ihrer Program Base die Funktion entfernen und somit die monatlichen Kosten reduzieren. Die Buchungen erfolgen immer zum nächstmöglichen Abrechnungszeitraum. Wir empfehlen diese Funktion zur nachhaltigen Steigerung der Funktionalitäten Ihrer Cybernetic Base zu nutzen und bedanken uns selbstverständlich für jegliches Upgrade, aber auch Anpassung Ihrer Cybernetic Base an Ihre Bedürfnisse. Dadurch können wir sicher gehen, dass wir unsere Kundinnen und Kunden glücklicher machen können. Das ist unser Ziel und dadurch haben wir gewonnen und dadurch gewinnen wir immer weiter. | E51: 0 €/mo | F51: 0 €/per year | G51: 0 | H51: 0 | I51: 0.00
B52: 1_1_1_18 | C52: Kontostand/ Balance | D52: Der Kontostand/ Balance Ihrer Program Base gibt Ihnen Auskunft über Ihr zusätzlich gesammeltes Vermögen durch Werben/ Affilieren, Rabattkampagnien, Einladungen und vielen weiteren Möglichkeiten. Diese Gutschriften, die auch durch Gutscheine erhältlich sind, können von Ihren monatlichen oder jährlichen Plankosten (Plan+Cybernetics) abgezogen werden oder zu Neueinkäufen verwendet werden. Je nach Engagement können Sie es schaffen, eine komplette hochwertige Program Base mit Null Kostenaufwänden zu erstellen. Wir wünschen Ihnen viel Erfolg dabei und fröhliches erschaffen. | E52: 0 €/mo | F52: 0 €/per year | G52: 0 | H52: 0 | I52: 0.00
B53: 1_1_1_19 | C53: Kontakt/ Contact | D53: Fragen gibt es immer und antworten tuen wir gern. Daher können Kunden über die Kontakt/ Contact Möglichkeit im Overview, eine Verbindung mit dem KI Service der PBC aufnehmen. Sie können beispielsweise größere Bestellanfragen machen, Fragen zu den Produkten stellen oder Kritik, Ideen und Empfehlungen schicken. Der PBC Service steht Ihnen jederzeit bereit. | E53: 0 €/mo | F53: 0 €/per year | G53: 0 | H53: 0 | I53: 0.00
B54: 1_1_2_1 | C54: Beschreibung/ Description | D54: ="Program Base Cybernetic's presents: "&A54&" "&$P$1&" "&B54&" : "&E54&" - / -"&F54&" - / -"&" "&$X$1&" "&I54&" €" -> Program Base Cybernetic's presents: 1_1_2_1 : 29 €/mo - / -348 € per year - / - 2,9 € | E54: =G54&" €/mo" -> 29 €/mo | F54: =H54&" € per year" -> 348 € per year | G54: 29 | H54: =G54*12 -> 348 | I54: =G54*0.1 -> 2.90 | J54: 2 | K54: 5
B55: 1_1_2_2 | C55: Cybernetics | D55: Hier finden Sie die Teile zur Cybernetics Program Base, die Sie so wertvoll machen. Die Funktionen (Cybernetics), auch bekannt unter Bots oder Maschinen (Machineparks) beschreibt das Gesamtkonstrukt der PBC am Besten. Sie können sich einen rießigen Maschinenpark mit kybernetischen Objekten dabei vorstellen, die super leicht zum anpassen, implementieren und instanzieren sind. Cybernetics bieten im Gesamten einfache Bedienbarkeit, stetigen Service, Upgradebarkeit, individuelle Konfigurierbarkeit und Einzigartigkeit. Alle verfügbaren Funktionen können über die Plattform (PB Cybernetics) abgefragt werden. Viel Spaß, wünschen wir beim erstellen Ihrer eigenen und einzigartigen Cybernetic Program Base mit Funktionen (Cybernetics, Bots, Generatoren, Maschienen, Terminals uvm.). | E55: 29 €/mo | F55: 348 € per year | G55: 29 | H55: 348 | I55: 2.90
B56: 1_1_2_3 | C56: Bestellen/ Ordern | D56: Eine der wichtigsten Basisfunktionen ist das Bestellen/ Ordern bei Program Base Cybernetics. Über die PBC Plattform oder dem Overview wählen Sie Ihr gewünschtes Produkt durch anklicken aus. Diese eine Auswahl wird Ihnen im Anschluss über "Auswahl/Selection" im etwas größeren Kästchen auf der PBC Plattform mit zugehörigen Features angezeigt. Durch anklicken der einzelnen Features, erhalten Sie nähere Informationen über Ihre Auswahl. Durch klicken/drücken des Bestell/ Order Buttons, öffnet sich ein Fenster mit den entsprechenden Bestellinformationen, die Sie an PBC schicken. Durch Bestätigung des Sende-Vorgangs, also durch das Abschicken Ihrer Bestellung/ Order, setzen Sie den Kauf in Gang. In den Incoterms können Sie nachlesen, welche weiteren Optionen Sie haben und welchen Abrechnungszeiträume (ab Erhalt der Aktivierungsschlüssel zu den Bestellungen) gelten. Bei den Lizensverträgen, können Sie eine Vorauswahl machen, ob Sie beispielsweise eine monatliche Abbuchung oder eine einmalige jährliche Abbuchung (ermäßigt) möchten. | E56: 29 €/mo | F56: 348 € per year | G56: 29 | H56: 348 | I56: 2.90
B57: 1_1_2_4 | C57: Warenkorb/ Cart | D57: Sammelbestellungen können Sie über die Warenkorb/ Cart Möglichkeit machen. Wir empfehlen diesen Weg bei einer Bestellmenge über eins, also bei einer gewünschten Bestellauswahl von mehr als einem konkreten Produkt von der Plattform. Im Log können Sie Ihre gemachten Bestellungen (Outlook Synchronisierung) einsehen und behalten somit immer Überblick über Ihre aktuellen Vorgänge. | E57: 29 €/mo | F57: 348 € per year | G57: 29 | H57: 348 | I57: 2.90
B58: 1_1_2_5 | C58: Eigenen Account/ Own Account | D58: PBC oder auch Program Base Cybernetics genannt, stellt hier den Basis Plan mit kostenloser Lizens (Free)vor, welche über eine Vielzahl an nützlichen Grund-Funktionen verfügt . Schon mit der Free License, können Sie beispielsweise Freunde affilieren (Geld verdienen), verschiedenste Produkte auswählen, neue Funktionen zur "Program Base" hinzufügen oder einfach und präzise, Ihr eigenes Profil erstellen und verwalten. | E58: 29 €/mo | F58: 348 € per year | G58: 29 | H58: 348 | I58: 2.90
B59: 1_1_2_6 | C59: Neuigkeiten/ News | D59: Über den Neuigkeiten/ News Button, bekommen Sie im Overview alle Informationen, über Updates, neue Entwicklungen und Geschenke, angezeigt. Hieraus können Sie eine direkte Auswahl treffen. Mit vielfältigen und unterschiedlichen Specials möchten wir von Program Base Cybernetics unsere Kundinnen und Kunden auf dem aktuellen Stand der Entwicklungen und des Fortschritts halten, sodass Sie größtmöglichen Nutzen und Gewinn aus Ihrer Cybernetic Base haben, schaffen und generieren können. | E59: 29 €/mo | F59: 348 € per year | G59: 29 | H59: 348 | I59: 2.90
B60: 1_1_2_7 | C60: Einladung/ Invitation | D60: Die Einladung/ Invitation Funktion der Cybernetic Program Base ermöglicht Ihnen über Social Media (Facebook, Twitter ect.) all Ihren Freunden auf einmal eine Einladung zu Program Base Cybernetics zu schicken. Mit Ihren persönlichen Affiliation Key, wird Ihnen jede erfolgreiche Transaktion Ihrem Konto gutgeschrieben. Die Werben/ Affiliierungskurse können bis zu 5 € pro erfolgreich geworbene/n Kunden/ Kundin betragen. Laut Hochrechnung ist dadurch schnell eine jährliche Balance (Kontostandsausgleich) für qualitativ hochwertigste und einzigartige Cybernetic Basen möglich. Der Unterschied zu der Werben/Affiliate Funktion ist der, dass Sie dort per E-Mail Werben/ Affilieren und über Einladung/Invitation auf bekannten Social Media Seiten zu PBC einladen. Ein sehr entgegenkommendes Angebot seitens PBC und zu empfehlen täglich zu werben. | E60: 29 €/mo | F60: 348 € per year | G60: 29 | H60: 348 | I60: 2.90
B61: 1_1_2_8 | C61: Geschenke/ Gifts | D61: Program Base Cybernetics möchte die Kunden und Kundinnen, belohnen und danken. Durch tägliche Ausschüttung von Rabatten, Gutscheinen, Spezialangeboten und kostenlosen Extrafunktionen, werden alle Kundinnen und Kunden beschenkt. Die erhaltenen Güter können gesammelt werden und bei Neukäufen gutgeschrieben werden. Manche Angebote laufen zeitlich ab, daher empfehlen wir, die Ermäßigungen sobald Sie diese erhalten haben, zu verwenden. | E61: 29 €/mo | F61: 348 € per year | G61: 29 | H61: 348 | I61: 2.90
B62: 1_1_2_9 | C62: Werben/ Affiliate | D62: Geld verdienen bei PBC? Das ist mehr als nur möglich. Mit deinem persönlichen Affiliation Key, kannst du über den Werbe und Affiliate Button, Freunde und Bekannte dazu bewegen, Kunde bei Program Base Cybernetics zu werden. Dafür gibt dir PBC pro erfolgreich geworbenen Kunden bis zu 5€. Das Guthaben wird dir auf deinem Konto gut geschrieben. Den aktuellen Werbekurswert erfährst du über den News Button und wird dir direkt im Overview angezeigt. Dein Guthaben kannst du direkt für neue Bestellungen verwenden oder beispielsweise von deinen monatlichen Plankosten abziehen. Die Einstellungen zu den Transaktionsprozessen findest du über den Button "Balance". Im Laufe der Zeit werden kontinuierlich Werbe/ Affiliation Quests erneuert und entwickelt. Wir empfehlen daher stets die Augen nach neuen Angeboten offen zu halten Viel Spaß beim Werben/ Affilieren/ Geldverdienen. | E62: 29 €/mo | F62: 348 € per year | G62: 29 | H62: 348 | I62: 2.90
B63: 1_1_2_10 | C63: Aktualisieren/ Actualize | D63: Mittels Aktualisieren/ Actualize erhalten Sie automatisch die neuesten Angebote und Vorschläge zu Ihrer persönlichen Cybernetic's Program Base. Somit erneuern Sie Ihren aktuellen Stand der PBC und erfahren dadurch von täglichen Belohnungen, bekommen gelegentlich Gutscheine und sonstige Benefits, als zusätzlicher Vorteil fürs dabeibleiben und nutzen. | E63: 29 €/mo | F63: 348 € per year | G63: 29 | H63: 348 | I63: 2.90
B64: 1_1_2_11 | C64: Aktivierungsfunktion/ Activationfunction | D64: Einfach und schnell können Sie auch schon, ab dem Download, Ihre Program Base aktivieren. In der 14 Tage Phase, stehen Ihnen viele Features bereit. Es ist beispielsweise möglich neue Programme zu durchstöbern, verschiedenste Produkte zu bestellen (ordern), Pläne wechseln, vergleichen und vieles mehr. Zur Aktivierung erhalten Sie einen einzigartigen Lizenzschlüssel, den Sie Ihren Support Bot mitteilen müssen, damit Er/ Sie Ihre Basis freischalten kann. Program Base Cybernetic's KIs (Künstliche Intelligenzen) kümmern sich im System und im Service, um unverzügliche Bearbeitung der Aktivierung und sonstige Aufgaben. Dadurch können Wartezeiten reduziert werden und unnötige Aufwände beseitigt werden, die wir unseren Kunden nicht zumuten möchten. Die PBC soll ja das Leben erleichtern und nicht erschweren. Wir wünschen viel Spaß, und freuen uns auf Ihre erste Aktivierung. | E64: 29 €/mo | F64: 348 € per year | G64: 29 | H64: 348 | I64: 2.90
B65: 1_1_2_12 | C65: Entriegeln/ Unlock | D65: Die Unlock Funktion entsperrt weitere Marktplätze für die Kunden von Program Base Cybernetics oder Partner. Zur sicheren Bedienung der Funktionen und Programme sind die Locks kinderleicht zu entschlüsseln und auf das wesentliche reduziert. | E65: 29 €/mo | F65: 348 € per year | G65: 29 | H65: 348 | I65: 2.90
B66: 1_1_2_13 | C66: Pausierfunktion/ Pausefunction | D66: Pausieren leicht gemacht. Program Base Cybernetics bietet jederzeit auch eine Pause, seis für eine etwas längere Dauer oder aber auch nur kurze Zeit. Ein Reaktivierungsschlüssel schaltet Ihre Program Base wieder aktiv, sodass Sie entweder dort weitermachen können, wo Sie stoppten oder mit neuen, in der Pause gesammelten Ideen und Elan, starten. Bei der Pausierung werden die Plankosten um 90% auf 10% reduziert und ein Reaktivierungsschlüssel übermittelt. Diesen Schlüssel können Sie aber auch jederzeit erneut abfragen, sollte Ihnen dieser während Ihrer Pausierung abhanden gekommen sein, was durchaus jedem passieren kann. Kein Problem. | E66: 29 €/mo | F66: 348 € per year | G66: 29 | H66: 348 | I66: 2.90
B67: 1_1_2_14 | C67: Reaktivierung/ Reactivation | D67: Eine Reaktivierung der Program Base, nach Pausierung, ist jederzeit selbst bestimmbar möglich. Eine Reaktivierung ist bis zu zehn mal möglich, bis Sie Kontakt mit unseren Accountadministratoren aufnehmen müssen, da unser System bei zu häufiger Beanspruchung dieser Funktion empfindlich wird, aber keine Sorge, pausieren und reaktivieren ist jederzeit möglich. | E67: 29 €/mo | F67: 348 € per year | G67: 29 | H67: 348 | I67: 2.90
B68: 1_1_2_15 | C68: Deaktivierung/ Deactivation | D68: Über die Deaktivierung können Sie Ihre gekauften Produkte, vollständig deaktivieren und kündigen. Sollten Sie beispielsweise für eine unabsehbare Zeit absolut keinen Bedarf in der Program Base finden oder sehen können, so empfehlen wir eine Deaktivierung zur nächstmöglichen Zahlungsanweisung. Wir verbessern unsere Basen kontinuierlich weiter, vielleicht finden Sie etwas später Ihre richtigen Instrumente, Tools und Funktionen, Ihre Basis auszubauen und individuell und einzigartig zu konfigurieren. Bestimmte Funktionen (s. PB Functions (PBPLANS)) generieren ganz besondere Sachen für unsere Kunden, vielleicht haben Sie diese noch garnicht gefunden oder besuchen Sie unsere treuen Partnerwebseiten. Bei Verbesserungswünschen, Ideen oder besonderen Fällen können Sie auch unsere Kontakte nutzen. Wir wünschen Ihnen Bestes. Ihre PBCs. | E68: 29 €/mo | F68: 348 € per year | G68: 29 | H68: 348 | I68: 2.90
B69: 1_1_2_16 | C69: Neuerung/ Update | D69: Updates ohne Programme und Programme ohne Updates, wären einfach nur langweilig. Daher ergehen im Namen der Program Base Cybernetics super coole und neue Updates zu Ihrer individuellen Program Base, zu Funktionen, zu neuen Featuren und vielem mehr. Durch auslösen des Update Buttons, erhalten Sie Zugang zu beispielsweise einer neuen Program Base, verbesserten Logiken oder einfach besseren Funktionen. Die Update Funktion ist so konzipiert, dass Sie so wenig Aufwand haben wie möglich, die Neuerungen kostenlos sind, Preise reduziert und selbstverständlich kompatibel zu Ihren bisherigen Entwicklungsstatus sind. Bei Problemen, die eigentlich nicht aufkommen, können Sie sich jederzeit an den KI- Service der PBC wenden. Künstlich intelligente Systeme warten nur darauf, Probleme zu beseitigen und die Zufriedenheit und Sicherheit der PBC-Kundinnen und Kunden zu gewährleisten und zu erfüllen. | E69: 29 €/mo | F69: 348 € per year | G69: 29 | H69: 348 | I69: 2.90
B70: 1_1_2_17 | C70: Upgrade/ Downgrade | D70: PBC bietet neben Updates auch Upgrades an. Der Unterschied zwischen Updates und Upgrades liegt in der Segmentierung der Produkte und Services. Ein Upgrade beispielsweise kann als konkrete Erweiterung in Form eines seperaten Produktes gesehen werden. Ein Upgrade reduziert in der Regel Aufwände und erleichtert einem seine Cybernetic Program Base. Möchten Sie beispielsweise einen Plan Upgraden oder Downgraden, so wären Sie mit diesem Button an richtiger Stelle. Wenn Sie eine gebuchte Funktion doch nicht mehr haben möchten, können Sie durch Downgraden Ihrer Program Base die Funktion entfernen und somit die monatlichen Kosten reduzieren. Die Buchungen erfolgen immer zum nächstmöglichen Abrechnungszeitraum. Wir empfehlen diese Funktion zur nachhaltigen Steigerung der Funktionalitäten Ihrer Cybernetic Base zu nutzen und bedanken uns selbstverständlich für jegliches Upgrade, aber auch Anpassung Ihrer Cybernetic Base an Ihre Bedürfnisse. Dadurch können wir sicher gehen, dass wir unsere Kundinnen und Kunden glücklicher machen können. Das ist unser Ziel und dadurch haben wir gewonnen und dadurch gewinnen wir immer weiter. | E70: 29 €/mo | F70: 348 € per year | G70: 29 | H70: 348 | I70: 2.90
B71: 1_1_2_18 | C71: Kontostand/ Balance | D71: Der Kontostand/ Balance Ihrer Program Base gibt Ihnen Auskunft über Ihr zusätzlich gesammeltes Vermögen durch Werben/ Affilieren, Rabattkampagnien, Einladungen und vielen weiteren Möglichkeiten. Diese Gutschriften, die auch durch Gutscheine erhältlich sind, können von Ihren monatlichen oder jährlichen Plankosten (Plan+Cybernetics) abgezogen werden oder zu Neueinkäufen verwendet werden. Je nach Engagement können Sie es schaffen, eine komplette hochwertige Program Base mit Null Kostenaufwänden zu erstellen. Wir wünschen Ihnen viel Erfolg dabei und fröhliches erschaffen. | E71: 29 €/mo | F71: 348 € per year | G71: 29 | H71: 348 | I71: 2.90
B72: 1_1_2_19 | C72: Kontakt/ Contact | D72: Fragen gibt es immer und antworten tuen wir gern. Daher können Kunden über die Kontakt/ Contact Möglichkeit im Overview, eine Verbindung mit dem KI Service der PBC aufnehmen. Sie können beispielsweise größere Bestellanfragen machen, Fragen zu den Produkten stellen oder Kritik, Ideen und Empfehlungen schicken. Der PBC Service steht Ihnen jederzeit bereit. | E72: 29 €/mo | F72: 348 € per year | G72: 29 | H72: 348 | I72: 2.90
B73: 1_1_3_1 | C73: Beschreibung/ Description | D73: ="Program Base Cybernetic's presents: "&A73&" "&$P$1&" "&B73&" : "&E73&" - / -"&F73&" - / -"&" "&$X$1&" "&I73&" €" -> Program Base Cybernetic's presents: 1_1_3_1 : 159 €/mo - / -1908 € per year - / - 15,9 € | E73: =G73&" €/mo" -> 159 €/mo | F73: =H73&" € per year" -> 1908 € per year | G73: 159 | H73: =G73*12 -> 1908 | I73: =G73*0.1 -> 15.90 | J73: 3 | K73: 10
B74: 1_1_3_2 | C74: Cybernetics | D74: Hier finden Sie die Teile zur Cybernetics Program Base, die Sie so wertvoll machen. Die Funktionen (Cybernetics), auch bekannt unter Bots oder Maschinen (Machineparks) beschreibt das Gesamtkonstrukt der PBC am Besten. Sie können sich einen rießigen Maschinenpark mit kybernetischen Objekten dabei vorstellen, die super leicht zum anpassen, implementieren und instanzieren sind. Cybernetics bieten im Gesamten einfache Bedienbarkeit, stetigen Service, Upgradebarkeit, individuelle Konfigurierbarkeit und Einzigartigkeit. Alle verfügbaren Funktionen können über die Plattform (PB Cybernetics) abgefragt werden. Viel Spaß, wünschen wir beim erstellen Ihrer eigenen und einzigartigen Cybernetic Program Base mit Funktionen (Cybernetics, Bots, Generatoren, Maschienen, Terminals uvm.). | E74: 159 €/mo | F74: 1908 € per year | G74: 159 | H74: 1908 | I74: 15.90
B75: 1_1_3_3 | C75: Bestellen/ Ordern | D75: Eine der wichtigsten Basisfunktionen ist das Bestellen/ Ordern bei Program Base Cybernetics. Über die PBC Plattform oder dem Overview wählen Sie Ihr gewünschtes Produkt durch anklicken aus. Diese eine Auswahl wird Ihnen im Anschluss über "Auswahl/Selection" im etwas größeren Kästchen auf der PBC Plattform mit zugehörigen Features angezeigt. Durch anklicken der einzelnen Features, erhalten Sie nähere Informationen über Ihre Auswahl. Durch klicken/drücken des Bestell/ Order Buttons, öffnet sich ein Fenster mit den entsprechenden Bestellinformationen, die Sie an PBC schicken. Durch Bestätigung des Sende-Vorgangs, also durch das Abschicken Ihrer Bestellung/ Order, setzen Sie den Kauf in Gang. In den Incoterms können Sie nachlesen, welche weiteren Optionen Sie haben und welchen Abrechnungszeiträume (ab Erhalt der Aktivierungsschlüssel zu den Bestellungen) gelten. Bei den Lizensverträgen, können Sie eine Vorauswahl machen, ob Sie beispielsweise eine monatliche Abbuchung oder eine einmalige jährliche Abbuchung (ermäßigt) möchten. | E75: 159 €/mo | F75: 1908 € per year | G75: 159 | H75: 1908 | I75: 15.90
